Workbook

Sheet 个人工作台需求模板
A1: 序号 | B1: 分类 | C1: 事项 （或者报表标题） | E1: 统计范围 (用于财务报表) | F1: 频度 | G1: 推送方式 | H1: 推送角色 (请参考模板规则) | I1: 备注1： （用于补充\备注。如果有多推送方式，也可在这备注） | J1: 备注2 | L1: 业务系统是否有该模块 | M1: 模块位置 | N1: 对应序号 | O1: 核实情况 | P1: 附件
B2: 预警提醒 | C2: 船公司收据签收十天未换发票 | D2: 从业务系统取数 | E2: 单体 | F2: 每天 | G2: 系统在线 | H2: 财务经理、总账会计、会计 | I2: 取数：收据签收日期+10 | L2: 系统无
B3: 我的报表 | C3: 单票费用统计表 | D3: 暂时保留，和领导对碰 | E3: 事业部、单体 | F3: 每天 | G3: 系统在线 | H3: 财务经理、总账会计、商务经理 | I3: 动态表，需在线查询 | L3: 系统有 | M3: 报表中心--每日报表--单票费用统计 | N3: 14 | O3: 已完成
B4: 我的报表 | C4: 单票利润滚动表（船名，柜量柜型字段缺少） | D4: 从k3取数 | E4: 事业部、单体 | F4: 每天 | G4: 系统在线 | H4: 财务经理、总账会计、商务经理 | L4: 系统无
B5: 我的报表 | C5: 经营财务分析（按经营单位统计） | D5: 从k3取数 | E5: 事业部、单体 | F5: 每周 | G5: 系统在线 | H5: 财务经理、商务经理、总账会计 | I5: 每月推送货代总：同比按周折线对比图 | L5: 系统无
B6: 我的报表 | C6: 经营财务分析（按开票单位统计） | D6: 从k3取数 | E6: 事业部、单体 | F6: 每周 | G6: 系统在线 | H6: 财务经理、商务经理、总账会计 | I6: 每月推送货代总：同比按周折线对比图 | L6: 系统无
B7: 我的报表 | C7: 分环节统计表 | D7: 从业务系统取数（添加完结筛选，表格列转行），考虑合并到合并到单票费用统计表 | E7: 事业部、单体 | F7: 每周 | G7: 系统在线 | H7: 货代总、财务经理、商务经理、总账会计 | I7: 推送货代总：分环节对比图 | J7: 待确认 | L7: 系统有 | M7: 报表中心--每日报表--货代分段核算列表 | N7: 7 | O7: 1、未完成，无法查询出数据，见附件。
B8: 我的报表 | C8: 分货名单吨毛利明细表 | D8: 合并到单票费用统计表 | E8: 事业部、单体 | F8: 每月 | G8: 系统在线 | H8: 货代总、财务经理、商务经理、总账会计 | L8: 系统有 | M8: 报表中心--每日报表--分货类单吨毛利明细表 | N8: 12 | O8: 1、分货类单吨毛利明细表未完成，无货名货类，等于要人为导出该表后按照业务号去匹配货名并汇总整理出数据。
B9: 图表 | C9: 分客户单吨（单车、单船）毛利明细表 | D9: 合并到单票费用统计表 | E9: 事业部、单体 | F9: 每月 | G9: 系统在线 | H9: 货代总、财务经理、商务经理、总账会计 | I9: 前五大货类按货量做成饼图，每块饼前五大客户（货量）的单吨毛利在图边上列示 | L9: 系统无
B10: 图表 | C10: 单吨毛利前十大客户（柱形图） | D10: 合并到单票费用统计表 | E10: 事业部、单体 | F10: 每月 | G10: 系统在线 | H10: 货代总、财务经理、商务经理、总账会计 | L10: 系统无
B11: 图表 | C11: 收入贡献前十大客户（饼图） | D11: 合并到单票费用统计表 | E11: 股份合并、事业部、单体 | F11: 每月 | G11: 系统在线 | H11: 货代总、财务经理、商务经理、总账会计 | L11: 系统无
B12: 图表 | C12: 毛利贡献前十大客户（饼图） | D12: 合并到单票费用统计表 | E12: 股份合并、事业部、单体 | F12: 每月 | G12: 系统在线 | H12: 货代总、财务经理、商务经理、总账会计 | L12: 系统无
B13: 我的报表 | C13: 可用资金汇总表 | D13: 财务已有，不用再做 | E13: 股份合并、事业部、单体 | F13: 每周 | G13: 系统在线 | H13: 货代总、财务经理、商务经理、总账会计 | L13: 系统有 | M13: 报表中心--每日报表--可用资金汇总表 | N13: 17 | O13: 1、未完成，搜索条件无年份、月份，统计表无经营单位；
B14: 我的报表 | C14: 应付未回票 | D14: 合并到单票费用统计表 | E14: 单体 | F14: 每周 | G14: 系统在线 | H14: 各部门经理 | I14: 要求含所有部门申请未回票的统计，每周发送累计应付未回票（结算单位、工作单号、通关收货人、金额） | L14: 系统有 | M14: 报表中心--每日报表--累计应付未回票 | N14: 1 | O14: 1、增加结算单位、业务号作为搜索条件，并按帐套区分；按模版增加内容
B15: 我的报表 | C15: 关联方交易统计表 | D15: 从k3取数（待明确关联方配置） | E15: 股份合并、事业部、单体 | F15: 每周 | G15: 系统在线 | H15: 财务经理、总账会计 | I15: 每月推送集团领导 | L15: 系统有 | M15: 报表中心--每日报表--关联方交易统计表 | N15: 15 | O15: 1、该统计表无法查询出数据。
B16: 我的报表 | C16: 已/未达权责点已开票及已回票 | D16: 从业务系统取数 | E16: 事业部、单体 | F16: 每月 | G16: 系统在线 | H16: 财务经理、总账会计 | I16: 没有完结的，统计开票信息 | L16: 系统有 | M16: 报表中心--每日报表--未达权责点已开票及已回票 | N16: 22 | O16: 1、缺少以下查询条件：业务区域、服务类型、负责人、环节、虚拟单号、查看费用明细； 2、表头名称错误，该表名称应是“未达权责点已开票及已回票”； 3、增加权责点日期、会计期作为搜索条件。
B17: 我的报表 | C17: 应收、预收账龄表（预收放在财务系统表） | D17: 从业务系统取数（取业务完结日期） | E17: 股份合并、事业部、单体 | F17: 每月 | G17: 系统在线 | H17: 财务经理、商务经理、总账会计 | I17: 推送货代总：前十大排名及账龄图 | J17: 按会计期来查 | L17: 系统有 | M17: 报表中心--每日报表--预收账龄表 | N17: 29 | O17: 1、该表搜索条件无经营单位、会计期，搜索条件应增加按帐套区分，总预收金额一列为空； 2、该表导出excel后单位名称显示为代码； 3、该表数据不准确： 3.1、例如：预收账龄表客户厦门建发能源有限公司30天以内的预收有45800元，91-120天的预收有2000000元，查询收款通知和财务系统并未见到这两笔预收款，请核实。 3.2、又例如：预收账龄表客户招远市宝发食品有限公司30天以内的预收有160000元，查询收款通知和财务系统并未见到这两笔预收款，请核实。
B18: 我的报表 | C18: 应付、预付账龄表（预付放在财务系统表） | D18: 从业务系统取数（取业务完结日期） | E18: 股份合并、事业部、单体 | F18: 每月 | G18: 系统在线 | H18: 财务经理、商务经理、总账会计 | I18: 推送货代总：前十大排名及账龄图 | J18: 按会计期来查 | L18: 系统有 | M18: 报表中心--每日报表--预付账龄表 | N18: 35 | O18: 1、预付账款账龄表金额一列为空，搜索条件缺少经营单位、会计期，应增加按帐套区分； 2、预付账款账龄表从系统导出excel后单位名称显示为代码； 3、该表数据不对 3.1、例如，预付账款账龄表上广州市锦运物流有限公司91-120天预付款10000元，实际是2018年5月11日退押金给广州市锦运物流有限公司10000元，并非预付账款。 3.2、又例如，预付账款账龄表上湛江市源利国际货运代理有限公司31-60天预付款30000元，实际是2018年7月退押金给湛江市源利国际货运代理有限公司30000元，并非预付账款。1、应付账龄该表搜索条件无经营单位、会计期，搜索条件应增加按帐套区分，总应付金额一列为空； 2、应付账款账龄表从系统导出excel后单位名称显示为代码； 3、该表数据待核实，例如，广州市广海物流有限公司，30天以内应付金额为12000元，并未有收到该公司的应付发票12000元。
B19: 我的报表 | C19: 业务员业绩统计表 | E19: 股份合并、事业部、单体 | L19: 系统无
B20: 我的报表 | C20: 协同业务明细表 | E20: 股份合并、事业部、单体 | F20: 每月 | G20: 系统在线 | H20: 货代总、市场部、财务经理、总账会计 | L20: 系统无
B21: 我的报表 | C21: 信控风险分析（暂未作表样） | E21: 股份合并、事业部、单体 | L21: 系统无
B22: 我的报表 | C22: 业务完结情况表 | D22: 业务取数 | E22: 事业部、单体 | F22: 每周 | G22: 系统在线 | H22: 货代总、财务经理、商务经理、总账会计
B23: 我的报表 | C23: 月度回款统计 | E23: 事业部、单体 | F23: 每周 | G23: 系统在线 | H23: 货代总、财务经理、商务经理、总账会计
B24: 我的报表 | C24: 港口对账单统计 | D24: 暂放取数逻辑核对 | E24: 事业部、单体 | F24: 每周 | G24: 系统在线 | H24: 货代总、财务经理、商务经理、总账会计、商务主管
B25: 我的报表 | C25: 商务KPI（lfs系统数据调整） | F25: 每周 | G25: 系统在线 | H25: 货代总、财务经理、商务经理、总账会计、商务部 | L25: 系统有 | O25: 核销完结、收款完结未控制，可任意点击完结，导致数据不真实
B26: 我的报表 | C26: 平仓损益表（暂未作表样） | F26: 月 | G26: 系统在线 | H26: 货代总、财务经理、商务经理、总账会计、商务主管
H1592: 鲅鱼圈项目人力行政专员
H1593: 鲅鱼圈项目业务经理
H1594: 鲅鱼圈项目业务员
H1595: 鲅鱼圈项目总经理
H1596: 北海元亨副总经理
H1597: 北海元亨人力行政专员
H1598: 北海元亨商务员
H1599: 北海元亨调度员
H1600: 北海元亨外勤
H1601: 财务总监
H1602: 仓储部经理
H1603: 仓储部专员
H1604: 仓储财务经理
H1605: 仓储出纳
H1606: 仓储会计
H1607: 船代财务经理
H1608: 船代出纳
H1609: 船代会计
H1610: 船代-结算提醒
H1611: 船代事业部风控
H1612: 船代事业部副总经理
H1613: 船代事业部商务
H1614: 船代事业部市场专员
H1615: 船代事业部调度
H1616: 船代事业部外勤
H1617: 船代事业部总经理
H1618: 东北项目人力行政专员
H1619: 东北项目业务经理
H1620: 东北项目业务员
H1621: 东北项目总经理
H1622: 东莞元亨副总经理
H1623: 东莞元亨人力行政专员
H1624: 东莞元亨商务员
H1625: 东莞元亨调度员
H1626: 东莞元亨外勤
H1627: 防城港元亨副总经理
H1628: 防城港元亨人力行政专员
H1629: 防城港元亨商务员
H1630: 防城港元亨调度员
H1631: 防城港元亨外勤
H1632: 供应商管理（仓储）
H1633: 供应商管理（车队）
H1634: 供应商管理（船代）
H1635: 供应商管理（船公司）
H1636: 供应商管理（检验公司、报关报检）
H1637: 供应商管理（码头、堆场）
H1638: 供应商管理（消毒公司）
H1639: 供应商管理（运输）
H1640: 供应商结算
H1641: 股份财务经理
H1642: 股份出纳
H1643: 股份公司副总经理
H1644: 股份公司总经理
H1645: 股份会计
H1646: 股份资金经理
H1647: 广西侨益副总经理
H1648: 广西侨益人力行政专员
H1649: 广西侨益业务经理
H1650: 广西侨益业务员
H1651: 广西侨益总经理
H1652: 广西悦达人力行政专员
H1653: 广西悦达业务经理
H1654: 广西悦达业务员
H1655: 广西悦达总经理
H1656: 广州惠安茅岗仓仓管
H1657: 广州惠安茅岗仓经理
H1658: 广州惠安明珠仓仓管
H1659: 广州惠安明珠仓经理
H1660: 广州惠安南沙仓仓管
H1661: 广州惠安南沙仓经理
H1662: 广州惠安人力行政专员
H1663: 广州惠安市场部经理
H1664: 广州惠安市场部专员
H1665: 广州惠安信华仓仓管
H1666: 广州惠安信华仓经理
H1667: 广州惠安总经理
H1668: 广州惠安总经理助理
H1669: 广州侨益办单专员
H1670: 广州侨益报价员
H1671: 广州侨益操作经理
H1672: 广州侨益发卡专员
H1673: 广州侨益副总经理
H1674: 广州侨益黄埔通关内勤
H1675: 广州侨益客服经理
H1676: 广州侨益客服主管
H1677: 广州侨益控货复核
H1678: 广州侨益控货专员
H1679: 广州侨益联运经理
H1680: 广州侨益联运专员
H1681: 广州侨益南沙通关内勤
H1682: 广州侨益人力行政经理
H1683: 广州侨益人力行政专员
H1684: 广州侨益商务经理
H1685: 广州侨益商务主管
H1686: 广州侨益商务专员
H1687: 广州侨益市场经理
H1688: 广州侨益市场专员
H1689: 广州侨益通关经理
H1690: 广州侨益总经理
H1691: 广州侨益总经理助理
H1692: 广州生生驳船
H1693: 广州生生航运经理
H1694: 广州生生航运调度
H1695: 广州生生汽运经理
H1696: 广州生生汽运调度
H1697: 广州生生人力行政经理
H1698: 广州生生人力行政专员
H1699: 广州生生市场经理
H1700: 广州生生市场专员
H1701: 广州生生司机
H1702: 广州生生装卸经理
H1703: 广州生生装卸专员
H1704: 广州生生总经理
H1705: 广州元亨船务部经理
H1706: 广州元亨副总经理
H1707: 广州元亨人力行政专员
H1708: 广州元亨商务经理
H1709: 广州元亨商务员
H1710: 广州元亨市场经理
H1711: 广州元亨市场专员
H1712: 广州元亨调度经理
H1713: 广州元亨调度员
H1714: 广州元亨外勤
H1715: 广州元亨外勤经理
H1716: 广州元亨总经理
H1717: 广州悦达人力行政专员
H1718: 广州悦达业务经理
H1719: 广州悦达业务员
H1720: 广州悦达总经理
H1721: 黄埔报关报检员
H1722: 黄埔通关外勤
H1723: 黄埔主管
H1724: 货代财务经理
H1725: 货代出纳
H1726: 货代会计
H1727: 货代事业部客服专员
H1728: 货代事业部商务专员
H1729: 货代事业部市场专员
H1730: 货代事业部通关专员
H1731: 货代事业部总经理
H1732: 货代物料管理专员
H1733: 检验鉴定员
H1734: 客服1组
H1735: 客服2组
H1736: 客服3组
H1737: 客服4组
H1738: 客服5组
H1739: 客户资料审核人
H1740: 老港报关供应商
H1741: 老港操作外勤
H1742: 南沙报关报检员
H1743: 南沙操作外勤
H1744: 南沙通关外勤
H1745: 南沙主管
H1746: 南通侨益副总经理
H1747: 南通侨益人力行政专员
H1748: 南通侨益业务经理
H1749: 南通侨益业务员
H1750: 南通侨益总经理
H1751: 南通元亨副总经理
H1752: 南通元亨人力行政专员
H1753: 南通元亨商务员
H1754: 南通元亨调度员
H1755: 南通元亨外勤
H1756: 南通元亨总经理
H1757: 内部审计
H1758: 企发经理
H1759: 企发专员
H1760: 企发总监
H1761: 钦州元亨副总经理
H1762: 钦州元亨人力行政专员
H1763: 钦州元亨商务员
H1764: 钦州元亨调度员
H1765: 钦州元亨外勤
... 52 more rows

Sheet 单票利润滚动表
H3: 查询期间
B5: 统计条件：以权责点日期
A6: 当前进度 | B6: 状态 | C6: 工作单号 | D6: 经营单位 | E6: 结算单位 | F6: 船名 | G6: 货名 | H6: 货量 | I6: 柜型柜量 | J6: ATA卸货码头 | K6: 建单时间 | L6: 流向完结时间 | M6: 清货完结时间 | N6: 权责点 | O6: 1月 | R6: 2月 | V6: 。。。 | X6: 合计
O7: 收入 | P7: 成本 | Q7: 利润 | R7: 收入 | S7: 成本 | T7: 利润 | U7: 应收 | V7: 成本 | W7: 利润 | X7: 收入 | Y7: 成本 | Z7: 利润
A8: 商检申报 | B8: 确认 | C8: QYIC18030131F01 | D8: 广州俊泰饲料有限公司
A9: 待确认 | B9: 新建 | C9: QYIC18030145F01 | D9: 凯配贸易（上海）有限公司
A10: 接收委托 | B10: 确认 | C10: QYIC18030147F01 | D10: 东莞嘉吉粮油有限公司
A11: ETA中转港 | B11: 确认 | C11: QYIC18030135F01 | D11: 浙江省粮食集团有限公司
A12: 接收委托 | B12: 确认 | C12: QYIC18030155F01 | D12: 厦门建发原材料贸易有限公司
A13: 待确认 | B13: 新建 | C13: QYIB18030027F01 | D13: 托福国际贸易（上海）有限公司
A14: ETA中转港 | B14: 确认 | C14: QYIC18030134F01 | D14: 宁波晶海工贸有限公司
A15: ETA中转港 | B15: 确认 | C15: QYIC18030142F01 | D15: 厦门建发原材料贸易有限公司
A16: ETA中转港 | B16: 确认 | C16: QYIC18030136F01 | D16: 宁波晶海工贸有限公司
A17: ETA中转港 | B17: 确认 | C17: QYIC18030137F01 | D17: 宁波晶海工贸有限公司
A18: ETA中转港 | B18: 确认 | C18: QYIC18030138F01 | D18: 宁波晶海工贸有限公司
A19: ETA中转港 | B19: 确认 | C19: QYIC18030140F01 | D19: 厦门建发原材料贸易有限公司
A20: ETA中转港 | B20: 确认 | C20: QYIC18030141F01 | D20: 广东恒兴饲料实业股份有限公司
A21: 待确认 | B21: 新建 | C21: QYIB18030028F01 | D21: 中粮四海丰（张家港）贸易有限公司
A22: ETA中转港 | B22: 确认 | C22: ZJIC18030001F01 | D22: 北大荒粮食集团广州仁亿贸易有限公司
A23: 接收委托 | B23: 确认 | C23: QYIC18030146F01 | D23: 东莞嘉吉粮油有限公司
A24: ETA中转港 | B24: 确认 | C24: QYIC18030143F01 | D24: 厦门建发原材料贸易有限公司
A25: ETA中转港 | B25: 确认 | C25: QYIC18030133F01 | D25: 宁波晶海工贸有限公司
A26: ETA中转港 | B26: 确认 | C26: QYIC18030139F01 | D26: 宁波晶海工贸有限公司
A27: ETA中转港 | B27: 确认 | C27: QYIC18030148F01 | D27: 天津建源供应链管理有限公司

Sheet 单票毛利异常表
A3: 主要为毛利为负及单吨毛利高于平均毛利的 %，待与商务及分管领导进一步定义标准

Sheet 未达权责点已开票及已回票
A5: 当前进度 | B5: 状态 | C5: 工作单号 | D5: 经营单位 | E5: 结算单位 | F5: 船名 | G5: 货名 | H5: 货量 | I5: 币别 | J5: 已开发票 | K5: 已回发票
A6: 商检申报 | B6: 确认 | C6: QYIC18030131F01 | D6: 广州俊泰饲料有限公司 | I6: 人民币 | J6: 62257.55 | K6: 62257.55
A7: 待确认 | B7: 新建 | C7: QYIC18030145F01 | D7: 凯配贸易（上海）有限公司 | I7: 人民币 | J7: 7874.59 | K7: 7391.6
A8: 接收委托 | B8: 确认 | C8: QYIC18030147F01 | D8: 东莞嘉吉粮油有限公司 | I8: 人民币 | J8: 1855 | K8: 2056
A9: ETA中转港 | B9: 确认 | C9: QYIC18030135F01 | D9: 浙江省粮食集团有限公司 | I9: 人民币 | J9: 13572 | K9: 9211
A10: 接收委托 | B10: 确认 | C10: QYIC18030155F01 | D10: 厦门建发原材料贸易有限公司 | I10: 人民币 | J10: 74298.32 | K10: 72789.41
A11: 待确认 | B11: 新建 | C11: QYIB18030027F01 | D11: 托福国际贸易（上海）有限公司 | I11: 人民币 | J11: 4382660.36 | K11: 4382650
A12: ETA中转港 | B12: 确认 | C12: QYIC18030134F01 | D12: 宁波晶海工贸有限公司 | I12: 人民币 | J12: 5382.71 | K12: 5100.24
A13: ETA中转港 | B13: 确认 | C13: QYIC18030142F01 | D13: 厦门建发原材料贸易有限公司 | I13: 人民币 | J13: 74302.98 | K13: 72789.41
A14: ETA中转港 | B14: 确认 | C14: QYIC18030136F01 | D14: 宁波晶海工贸有限公司 | I14: 人民币 | J14: 6252.11 | K14: 5985.24
A15: ETA中转港 | B15: 确认 | C15: QYIC18030137F01 | D15: 宁波晶海工贸有限公司 | I15: 人民币 | J15: 5382.71 | K15: 5100.24
A16: ETA中转港 | B16: 确认 | C16: QYIC18030138F01 | D16: 宁波晶海工贸有限公司 | I16: 人民币 | J16: 5382.71 | K16: 5100.24
A17: ETA中转港 | B17: 确认 | C17: QYIC18030140F01 | D17: 厦门建发原材料贸易有限公司 | I17: 人民币 | J17: 74298.32 | K17: 72789.41
A18: ETA中转港 | B18: 确认 | C18: QYIC18030141F01 | D18: 广东恒兴饲料实业股份有限公司 | I18: 人民币 | J18: 49171.07 | K18: 49157
A19: 待确认 | B19: 新建 | C19: QYIB18030028F01 | D19: 中粮四海丰（张家港）贸易有限公司 | I19: 人民币 | J19: 0 | K19: 0
A20: ETA中转港 | B20: 确认 | C20: ZJIC18030001F01 | D20: 北大荒粮食集团广州仁亿贸易有限公司 | I20: 人民币 | J20: 19771.59 | K20: 19757.6
A21: 接收委托 | B21: 确认 | C21: QYIC18030146F01 | D21: 东莞嘉吉粮油有限公司 | I21: 人民币 | J21: 1250 | K21: 2281
A22: ETA中转港 | B22: 确认 | C22: QYIC18030143F01 | D22: 厦门建发原材料贸易有限公司 | I22: 人民币 | J22: 74298.32 | K22: 72789.41
A23: ETA中转港 | B23: 确认 | C23: QYIC18030133F01 | D23: 宁波晶海工贸有限公司 | I23: 人民币 | J23: 5382.71 | K23: 5100.24
A24: ETA中转港 | B24: 确认 | C24: QYIC18030139F01 | D24: 宁波晶海工贸有限公司 | I24: 人民币 | J24: 5382.71 | K24: 5100.24
A25: ETA中转港 | B25: 确认 | C25: QYIC18030148F01 | D25: 天津建源供应链管理有限公司 | I25: 人民币 | J25: 49154.2 | K25: 48900.24
A27: 1、缺少以下查询条件：业务区域、服务类型、负责人、环节、虚拟单号、查看费用明细；
A42: 2、表头名称错误，该表名称应是“未达权责点已开票及已回票”。

Sheet 已达权责点未开票及未回票
A5: 当前进度 | B5: 状态 | C5: 工作单号 | D5: 经营单位 | E5: 结算单位 | F5: 船名 | G5: 货名 | H5: 货量 | I5: 币别 | J5: 未开发票 | K5: 未回发票
A6: 商检申报 | B6: 确认 | C6: QYIC18030131F01 | D6: 广州俊泰饲料有限公司 | I6: 人民币 | J6: 62257.55 | K6: 62257.55
A7: 待确认 | B7: 新建 | C7: QYIC18030145F01 | D7: 凯配贸易（上海）有限公司 | I7: 人民币 | J7: 7874.59 | K7: 7391.6
A8: 接收委托 | B8: 确认 | C8: QYIC18030147F01 | D8: 东莞嘉吉粮油有限公司 | I8: 人民币 | J8: 1855 | K8: 2056
A9: ETA中转港 | B9: 确认 | C9: QYIC18030135F01 | D9: 浙江省粮食集团有限公司 | I9: 人民币 | J9: 13572 | K9: 9211
A10: 接收委托 | B10: 确认 | C10: QYIC18030155F01 | D10: 厦门建发原材料贸易有限公司 | I10: 人民币 | J10: 74298.32 | K10: 72789.41
A11: 待确认 | B11: 新建 | C11: QYIB18030027F01 | D11: 托福国际贸易（上海）有限公司 | I11: 人民币 | J11: 4382660.36 | K11: 4382650
A12: ETA中转港 | B12: 确认 | C12: QYIC18030134F01 | D12: 宁波晶海工贸有限公司 | I12: 人民币 | J12: 5382.71 | K12: 5100.24
A13: ETA中转港 | B13: 确认 | C13: QYIC18030142F01 | D13: 厦门建发原材料贸易有限公司 | I13: 人民币 | J13: 74302.98 | K13: 72789.41
A14: ETA中转港 | B14: 确认 | C14: QYIC18030136F01 | D14: 宁波晶海工贸有限公司 | I14: 人民币 | J14: 6252.11 | K14: 5985.24
A15: ETA中转港 | B15: 确认 | C15: QYIC18030137F01 | D15: 宁波晶海工贸有限公司 | I15: 人民币 | J15: 5382.71 | K15: 5100.24
A16: ETA中转港 | B16: 确认 | C16: QYIC18030138F01 | D16: 宁波晶海工贸有限公司 | I16: 人民币 | J16: 5382.71 | K16: 5100.24
A17: ETA中转港 | B17: 确认 | C17: QYIC18030140F01 | D17: 厦门建发原材料贸易有限公司 | I17: 人民币 | J17: 74298.32 | K17: 72789.41
A18: ETA中转港 | B18: 确认 | C18: QYIC18030141F01 | D18: 广东恒兴饲料实业股份有限公司 | I18: 人民币 | J18: 49171.07 | K18: 49157
A19: 待确认 | B19: 新建 | C19: QYIB18030028F01 | D19: 中粮四海丰（张家港）贸易有限公司 | I19: 人民币 | J19: 0 | K19: 0
A20: ETA中转港 | B20: 确认 | C20: ZJIC18030001F01 | D20: 北大荒粮食集团广州仁亿贸易有限公司 | I20: 人民币 | J20: 19771.59 | K20: 19757.6
A21: 接收委托 | B21: 确认 | C21: QYIC18030146F01 | D21: 东莞嘉吉粮油有限公司 | I21: 人民币 | J21: 1250 | K21: 2281
A22: ETA中转港 | B22: 确认 | C22: QYIC18030143F01 | D22: 厦门建发原材料贸易有限公司 | I22: 人民币 | J22: 74298.32 | K22: 72789.41
A23: ETA中转港 | B23: 确认 | C23: QYIC18030133F01 | D23: 宁波晶海工贸有限公司 | I23: 人民币 | J23: 5382.71 | K23: 5100.24
A24: ETA中转港 | B24: 确认 | C24: QYIC18030139F01 | D24: 宁波晶海工贸有限公司 | I24: 人民币 | J24: 5382.71 | K24: 5100.24
A25: ETA中转港 | B25: 确认 | C25: QYIC18030148F01 | D25: 天津建源供应链管理有限公司 | I25: 人民币 | J25: 49154.2 | K25: 48900.24
A27: 1、缺少以下查询条件：业务区域、服务类型、负责人、环节、虚拟单号、查看费用明细；

Sheet 预收账款未拆分统计表
A6: &#160; | B6: 财务No. | C6: 账套号 | D6: 收款日期 | E6: 会计期 | F6: 收款编号 | G6: 结算对象 | H6: 金额 | I6: 已核销金额 | J6: 退款金额 | K6: 押金种类 | L6: 押金类型 | M6: 币种 | N6: 汇率 | O6: 部门 | P6: 是否预收 | Q6: 结算方式 | R6: 凭证号 | S6: 是否入账 | T6: 上传财务 | U6: 银行手续费 | V6: 我方账户 | W6: 我方银行 | X6: 创建人 | Y6: 创建时间 | Z6: 对方账号 | AA6: 对方银行 | AB6: 文件名 | AC6: 操作
B7: 77929 | C7: (111)广州元亨国际船务代理有限公司 | D7: 2018-03-01 | E7: 2018-3 | F7: R0000005936 | G7: 0045NGT3JOW0H | H7: 9991 | M7: 人民币 | N7: 1 | O7: 船代部门 | P7: 否 | Q7: 电汇 | S7: 1 | T7: 1 | V7: 3602014619200126230 | W7: 工行广州金港支行 | X7: CL0200288 | Y7: 2018-03-02T09:43:09 | AB7: rmb9991.png
B8: 77933 | C8: (111)广州元亨国际船务代理有限公司 | D8: 2018-03-01 | E8: 2018-3 | F8: R0000005940 | G8: D41D5F23B0BB4313B2572E8E252FCAA6 | H8: 1200 | M8: 人民币 | N8: 1 | O8: 船代部门 | P8: 否 | Q8: 电汇 | S8: 1 | T8: 1 | V8: 730257737921 | W8: 中行黄埔支行 | X8: CL0200288 | Y8: 2018-03-02T09:53:38 | AB8: RMB1200.png
B9: 78026 | C9: (101)侨益物流股份有限公司 | D9: 2018-03-02 | E9: 2018-3 | F9: R0000005949 | G9: 3E869911B0694F858D3F7C34AE670D3E | H9: 1000 | M9: 人民币 | N9: 1 | O9: 货运代理 | P9: 否 | Q9: 现金 | S9: 0 | T9: 0 | V9: 82210158700000562 | W9: 浦发银行广州金穗支行-保证金户 | X9: admin | Y9: 2018-03-02T11:03:15
B10: 79753 | C10: (101)侨益物流股份有限公司 | D10: 2018-03-02 | E10: 2018-3 | F10: R0000006049 | G10: 42D8A172202142C6B8ACC371C00B4E1E | H10: 11165.56 | I10: 11165.56 | M10: 人民币 | N10: 1 | O10: 货运代理 | P10: 否 | Q10: 电汇 | R10: 3 | S10: 1 | T10: 1 | V10: 3602014619200064936 | W10: 工行广州金港支行 | X10: CL0200356 | Y10: 2018-03-05T18:11:29
B11: 79865 | C11: (101)侨益物流股份有限公司 | D11: 2018-03-02 | E11: 2018-3 | F11: R0000006069 | G11: DD99F199188441D1AFE93012711F06EC | H11: 6000 | J11: 6000 | K11: 预收车队押金 | L11: 长押 | M11: 人民币 | N11: 1 | O11: 货运代理 | P11: 是 | Q11: 电汇 | R11: 30 | S11: 1 | T11: 1 | V11: 3602014619200064936 | W11: 工行广州金港支行 | X11: CL0200356 | Y11: 2018-03-06T09:19:32
B12: 79866 | C12: (101)侨益物流股份有限公司 | D12: 2018-03-05 | E12: 2018-3 | F12: R0000006070 | G12: 3C67F7379F8241C4A933E7DF626218AB | H12: 276594 | M12: 人民币 | N12: 1 | O12: 货运代理 | P12: 否 | Q12: 电汇 | R12: 2 | S12: 1 | T12: 1 | V12: 3602014619200064936 | W12: 工行广州金港支行 | X12: CL0200356 | Y12: 2018-03-06T09:20:12
B13: 80255 | C13: (101)侨益物流股份有限公司 | D13: 2018-03-05 | E13: 2018-3 | F13: R0000006071 | G13: 3492265BE8C446BB94A63DE4E80DCA8D | H13: 89909.3 | I13: 89909.3 | M13: 人民币 | N13: 1 | O13: 货运代理 | P13: 否 | Q13: 电汇 | R13: 4 | S13: 1 | T13: 1 | V13: 3602014619200064936 | W13: 工行广州金港支行 | X13: CL0200356 | Y13: 2018-03-06T10:21:14
B14: 80257 | C14: (101)侨益物流股份有限公司 | D14: 2018-03-05 | E14: 2018-3 | F14: R0000006072 | G14: 00449KJ3KH85J | H14: 21570 | I14: 21570 | M14: 人民币 | N14: 1 | O14: 货运代理 | P14: 否 | Q14: 电汇 | R14: 5 | S14: 1 | T14: 1 | V14: 3602014619200064936 | W14: 工行广州金港支行 | X14: CL0200356 | Y14: 2018-03-06T10:21:53
B15: 80713 | C15: (101)侨益物流股份有限公司 | D15: 2018-03-05 | E15: 2018-3 | F15: R0000006149 | G15: 0043X2UGEKHCJ | H15: 372114.37 | I15: 372114.37 | M15: 人民币 | N15: 1 | O15: 货运代理 | P15: 否 | Q15: 电汇 | R15: 6 | S15: 1 | T15: 1 | V15: 3602014619200064936 | W15: 工行广州金港支行 | X15: CL0200356 | Y15: 2018-03-06T16:10:12
B16: 81942 | C16: (101)侨益物流股份有限公司 | D16: 2018-03-06 | E16: 2018-3 | F16: R0000006199 | G16: 008BE9A234C048B2BF6E8B27727E30EB | H16: 102000 | J16: 102000 | M16: 人民币 | N16: 1 | O16: 货运代理 | P16: 否 | Q16: 电汇 | R16: 8 | S16: 1 | T16: 1 | V16: 3602014619200064936 | W16: 工行广州金港支行 | X16: CL0200356 | Y16: 2018-03-07T11:11:24
B17: 81943 | C17: (101)侨益物流股份有限公司 | D17: 2018-03-06 | E17: 2018-3 | F17: R0000006200 | G17: 170C76CD4D114DA5801E0B952FFEF434 | H17: 92586.25 | I17: 92586.25 | M17: 人民币 | N17: 1 | O17: 货运代理 | P17: 否 | Q17: 电汇 | R17: 9 | S17: 1 | T17: 1 | V17: 3602014619200064936 | W17: 工行广州金港支行 | X17: CL0200356 | Y17: 2018-03-07T11:11:56
B18: 82101 | C18: (101)侨益物流股份有限公司 | D18: 2018-03-06 | E18: 2018-3 | F18: R0000006209 | G18: 44460EBEF0394031B5049C344225B26A | H18: 9979.74 | I18: 9979.74 | M18: 人民币 | N18: 1 | O18: 货运代理 | P18: 否 | Q18: 电汇 | R18: 7 | S18: 1 | T18: 1 | V18: 3602014619200064936 | W18: 工行广州金港支行 | X18: CL0200356 | Y18: 2018-03-07T14:17:35
B19: 82102 | C19: (101)侨益物流股份有限公司 | D19: 2018-03-06 | E19: 2018-3 | F19: R0000006210 | G19: D51B71FB175D4A779AE2FA5DE0EC1B32 | H19: 30676.96 | I19: 30676.96 | M19: 人民币 | N19: 1 | O19: 货运代理 | P19: 否 | Q19: 电汇 | R19: 10 | S19: 1 | T19: 1 | V19: 3602014619200064936 | W19: 工行广州金港支行 | X19: CL0200356 | Y19: 2018-03-07T14:18:14
B20: 83037 | C20: (101)侨益物流股份有限公司 | D20: 2018-03-07 | E20: 2018-3 | F20: R0000006289 | G20: 9E76933BF6984A2DADA39C6A4A78F9C3 | H20: 102242.82 | I20: 102242.82 | M20: 人民币 | N20: 1 | O20: 货运代理 | P20: 否 | Q20: 电汇 | R20: 11 | S20: 1 | T20: 1 | V20: 3602014619200064936 | W20: 工行广州金港支行 | X20: CL0200356 | Y20: 2018-03-08T14:19:44
B21: 83038 | C21: (101)侨益物流股份有限公司 | D21: 2018-03-07 | E21: 2018-3 | F21: R0000006290 | G21: 52771F2395FD41C9A25C3379561A688A | H21: 4919.4 | I21: 4919.4 | M21: 人民币 | N21: 1 | O21: 货运代理 | P21: 否 | Q21: 电汇 | R21: 12 | S21: 1 | T21: 1 | V21: 3602014619200064936 | W21: 工行广州金港支行 | X21: CL0200356 | Y21: 2018-03-08T14:20:24
B22: 83571 | C22: (101)侨益物流股份有限公司 | D22: 2018-03-08 | E22: 2018-3 | F22: R0000006349 | G22: 3C67F7379F8241C4A933E7DF626218AB | H22: 347903.45 | M22: 人民币 | N22: 1 | O22: 货运代理 | P22: 否 | Q22: 电汇 | R22: 13 | S22: 1 | T22: 1 | V22: 3602014619200064936 | W22: 工行广州金港支行 | X22: CL0200356 | Y22: 2018-03-09T09:00:37
B23: 83572 | C23: (101)侨益物流股份有限公司 | D23: 2018-03-08 | E23: 2018-3 | F23: R0000006350 | G23: 2C60E6930B174FB2B415D88B9B89A6BF | H23: 44044.56 | I23: 44044.56 | M23: 人民币 | N23: 1 | O23: 货运代理 | P23: 否 | Q23: 电汇 | R23: 14 | S23: 1 | T23: 1 | V23: 3602014619200064936 | W23: 工行广州金港支行 | X23: CL0200356 | Y23: 2018-03-09T09:01:09
B24: 83573 | C24: (101)侨益物流股份有限公司 | D24: 2018-03-08 | E24: 2018-3 | F24: R0000006351 | G24: CB3C0CA8FD3F467ABD57B5EEA02BB86D | H24: 21008 | I24: 21008 | M24: 人民币 | N24: 1 | O24: 货运代理 | P24: 否 | Q24: 电汇 | R24: 15 | S24: 1 | T24: 1 | V24: 3602014619200064936 | W24: 工行广州金港支行 | X24: CL0200356 | Y24: 2018-03-09T09:01:49
B25: 84216 | C25: (101)侨益物流股份有限公司 | D25: 2018-03-08 | E25: 2018-3 | F25: R0000006389 | G25: 14AA2959FFAD48CEBBBAD26DD746CD09 | H25: 49420 | I25: 49420 | M25: 人民币 | N25: 1 | O25: 货运代理 | P25: 否 | Q25: 电汇 | R25: 16 | S25: 1 | T25: 1 | V25: 3602014619200064936 | W25: 工行广州金港支行 | X25: CL0200356 | Y25: 2018-03-09T14:20:13
B26: 85573 | C26: (101)侨益物流股份有限公司 | D26: 2018-03-09 | E26: 2018-3 | F26: R0000006509 | G26: CFF0C6CA1DD647209183FD16ADC00992 | H26: 5247 | I26: 5247 | M26: 人民币 | N26: 1 | O26: 货运代理 | P26: 否 | Q26: 电汇 | R26: 17 | S26: 1 | T26: 1 | V26: 3602014619200064936 | W26: 工行广州金港支行 | X26: CL0200356 | Y26: 2018-03-12T15:45:50
B27: 85574 | C27: (101)侨益物流股份有限公司 | D27: 2018-03-09 | E27: 2018-3 | F27: R0000006510 | G27: 0044SF93RO5CO | H27: 1611.91 | I27: 1611.91 | M27: 人民币 | N27: 1 | O27: 货运代理 | P27: 否 | Q27: 电汇 | R27: 18 | S27: 1 | T27: 1 | V27: 3602014619200064936 | W27: 工行广州金港支行 | X27: CL0200356 | Y27: 2018-03-12T15:46:25
B28: 87605 | C28: (101)侨益物流股份有限公司 | D28: 2018-03-05 | E28: 2018-3 | F28: R0000006709 | G28: 5E7E200903D04D9E9473AFC0834C77F0 | H28: 22560 | J28: 22560 | M28: 人民币 | N28: 1 | O28: 货运代理 | P28: 否 | Q28: 电汇 | R28: 21 | S28: 1 | T28: 1 | V28: 3602014619200064936 | W28: 工行广州金港支行 | X28: CL0200356 | Y28: 2018-03-14T16:08:36
B29: 87606 | C29: (101)侨益物流股份有限公司 | D29: 2018-03-05 | E29: 2018-3 | F29: R0000006710 | G29: 5E7E200903D04D9E9473AFC0834C77F0 | H29: 36240 | J29: 36240 | M29: 人民币 | N29: 1 | O29: 货运代理 | P29: 否 | Q29: 电汇 | R29: 22 | S29: 1 | T29: 1 | V29: 3602014619200064936 | W29: 工行广州金港支行 | X29: CL0200356 | Y29: 2018-03-14T16:09:07
B30: 87609 | C30: (101)侨益物流股份有限公司 | D30: 2018-03-05 | E30: 2018-3 | F30: R0000006711 | G30: 5E7E200903D04D9E9473AFC0834C77F0 | H30: 32640 | J30: 32640 | M30: 人民币 | N30: 1 | O30: 货运代理 | P30: 否 | Q30: 电汇 | R30: 23 | S30: 1 | T30: 1 | V30: 3602014619200064936 | W30: 工行广州金港支行 | X30: CL0200356 | Y30: 2018-03-14T16:09:55
B31: 87812 | C31: (101)侨益物流股份有限公司 | D31: 2018-03-05 | E31: 2018-3 | F31: R0000006729 | G31: 5E7E200903D04D9E9473AFC0834C77F0 | H31: 3600 | J31: 3600 | M31: 人民币 | N31: 1 | O31: 货运代理 | P31: 否 | Q31: 电汇 | R31: 24 | S31: 1 | T31: 1 | V31: 696457738064 | W31: 中行广州港湾路支行 | X31: CL0200356 | Y31: 2018-03-14T17:59:11
B32: 92070 | C32: (101)侨益物流股份有限公司 | D32: 2018-03-07 | E32: 2018-3 | F32: R0000007069 | G32: 721C9EA245FC4B21815671CBD8826CE0 | H32: 105409.94 | M32: 人民币 | N32: 1 | O32: 货运代理 | P32: 否 | Q32: 电汇 | R32: 29 | S32: 1 | T32: 1 | V32: 3602014619200064936 | W32: 工行广州金港支行 | X32: CL0200356 | Y32: 2018-03-20T15:10:14
B33: 100860 | C33: (111)广州元亨国际船务代理有限公司 | D33: 2018-03-02 | E33: 2018-3 | F33: R0000007770 | G33: 2CA9C42D5546417CB23EF0550D34AD9C | H33: 200 | M33: 人民币 | N33: 1 | O33: 船代部门 | P33: 否 | Q33: 电汇 | S33: 1 | T33: 1 | V33: 730257737921 | W33: 中行黄埔支行 | X33: CL0200288 | Y33: 2018-03-29T11:32:30 | AB33: RMB200.jpg
B34: 100869 | C34: (111)广州元亨国际船务代理有限公司 | D34: 2018-03-05 | E34: 2018-3 | F34: R0000007771 | G34: 0045811FRYJXG | H34: 29500 | M34: 人民币 | N34: 1 | O34: 船代部门 | P34: 否 | Q34: 电汇 | S34: 1 | T34: 1 | V34: 730257737921 | W34: 中行黄埔支行 | X34: CL0200288 | Y34: 2018-03-29T11:37:22 | AB34: RMB29500.jpg
B35: 100874 | C35: (111)广州元亨国际船务代理有限公司 | D35: 2018-03-02 | E35: 2018-3 | F35: R0000007772 | G35: 0045TOGXJH1EN | H35: 5872 | M35: 人民币 | N35: 1 | O35: 船代部门 | P35: 否 | Q35: 电汇 | S35: 1 | T35: 1 | V35: 730257737921 | W35: 中行黄埔支行 | X35: CL0200288 | Y35: 2018-03-29T11:43:34 | AB35: RMB5872.jpg
B36: 100875 | C36: (111)广州元亨国际船务代理有限公司 | D36: 2018-03-06 | E36: 2018-3 | F36: R0000007773 | G36: 0045C0NFM14KI | H36: 40666.6 | M36: 人民币 | N36: 1 | O36: 船代部门 | P36: 否 | Q36: 电汇 | S36: 1 | T36: 1 | V36: 730257737921 | W36: 中行黄埔支行 | X36: CL0200288 | Y36: 2018-03-29T11:46:10 | AB36: RMB40666.6.jpg
B37: 100876 | C37: (111)广州元亨国际船务代理有限公司 | D37: 2018-03-06 | E37: 2018-3 | F37: R0000007774 | G37: 3A6EC7C4A54F4B02AC777C43BF754858 | H37: 500000 | M37: 人民币 | N37: 1 | O37: 船代部门 | P37: 否 | Q37: 电汇 | S37: 1 | T37: 1 | V37: 730257737921 | W37: 中行黄埔支行 | X37: CL0200288 | Y37: 2018-03-29T11:50:06 | AB37: RMB500000.jpg
B38: 100877 | C38: (111)广州元亨国际船务代理有限公司 | D38: 2018-03-08 | E38: 2018-3 | F38: R0000007775 | G38: 0045C0NFM14KI | H38: 95745.2 | M38: 人民币 | N38: 1 | O38: 船代部门 | P38: 否 | Q38: 电汇 | S38: 1 | T38: 1 | V38: 730257737921 | W38: 中行黄埔支行 | X38: CL0200288 | Y38: 2018-03-29T11:50:53 | AB38: USD95745.2.jpg
B39: 100878 | C39: (111)广州元亨国际船务代理有限公司 | D39: 2018-03-08 | E39: 2018-3 | F39: R0000007776 | G39: 2CA9C42D5546417CB23EF0550D34AD9C | H39: 200 | M39: 人民币 | N39: 1 | O39: 船代部门 | P39: 否 | Q39: 电汇 | S39: 1 | T39: 1 | V39: 730257737921 | W39: 中行黄埔支行 | X39: CL0200288 | Y39: 2018-03-29T11:51:55 | AB39: 3-9RMB200.jpg
B40: 100879 | C40: (111)广州元亨国际船务代理有限公司 | D40: 2018-03-08 | E40: 2018-3 | F40: R0000007777 | G40: 40376F417D67485AACE57C1434C539A6 | H40: 310000 | M40: 人民币 | N40: 1 | O40: 船代部门 | P40: 否 | Q40: 电汇 | S40: 1 | T40: 1 | V40: 730257737921 | W40: 中行黄埔支行 | X40: CL0200288 | Y40: 2018-03-29T11:52:43 | AB40: USD310000.jpg
B41: 100880 | C41: (111)广州元亨国际船务代理有限公司 | D41: 2018-03-09 | E41: 2018-3 | F41: R0000007778 | G41: 40376F417D67485AACE57C1434C539A6 | H41: 90000 | M41: 人民币 | N41: 1 | O41: 船代部门 | P41: 否 | Q41: 电汇 | S41: 1 | T41: 1 | V41: 730257737921 | W41: 中行黄埔支行 | X41: CL0200288 | Y41: 2018-03-29T11:54:28 | AB41: RMB90000.jpg
B42: 100997 | C42: (111)广州元亨国际船务代理有限公司 | D42: 2018-03-01 | E42: 2018-3 | F42: R0000007796 | G42: 481AE1BF6ABC45DFB33E1987A915D44C | H42: 299984 | M42: 人民币 | N42: 1 | O42: 船代部门 | P42: 否 | Q42: 电汇 | S42: 1 | T42: 1 | V42: 3602014619200126230 | W42: 工行广州金港支行 | X42: CL0200288 | Y42: 2018-03-29T14:52:58 | AB42: RMB299984.jpg
B43: 100999 | C43: (111)广州元亨国际船务代理有限公司 | D43: 2018-03-02 | E43: 2018-3 | F43: R0000007797 | G43: A7B5CF227AC14E879A3036A11E383F42 | H43: 231000 | M43: 人民币 | N43: 1 | O43: 船代部门 | P43: 否 | Q43: 电汇 | S43: 1 | T43: 1 | V43: 3602014619200126230 | W43: 工行广州金港支行 | X43: CL0200288 | Y43: 2018-03-29T14:54:02 | AB43: RMB231000.jpg
B44: 101016 | C44: (111)广州元亨国际船务代理有限公司 | D44: 2018-03-05 | E44: 2018-3 | F44: R0000007810 | G44: 81A368F724594A0AA855D1D9DC8450E6 | H44: 5327.66 | M44: 美元 | N44: 6.3291 | O44: 船代部门 | P44: 否 | Q44: 电汇 | S44: 1 | T44: 1 | V44: 3602014609200083914 | W44: 工行广州金港支行 | X44: CL0200288 | Y44: 2018-03-29T15:16:07 | AB44: USD5327.66.jpg
B45: 101017 | C45: (111)广州元亨国际船务代理有限公司 | D45: 2018-03-08 | E45: 2018-3 | F45: R0000007811 | G45: C620A6E8D4364509887E33EA03BEF9DC | H45: 12057 | M45: 美元 | N45: 6.3171 | O45: 船代部门 | P45: 否 | Q45: 电汇 | S45: 1 | T45: 1 | V45: 3602014609200083914 | W45: 工行广州金港支行 | X45: CL0200288 | Y45: 2018-03-29T15:17:45 | AB45: USD12057.jpg
B46: 101478 | C46: (101)侨益物流股份有限公司 | D46: 2018-03-06 | E46: 2018-3 | F46: R0000007852 | G46: A39D0A991B0446FBB7E60692B516C70D | H46: 22140.88 | M46: 人民币 | N46: 1 | O46: 货运代理 | P46: 否 | Q46: 电汇 | R46: 114 | S46: 1 | T46: 1 | V46: 3602014619200064936 | W46: 工行广州金港支行 | X46: CL0200356 | Y46: 2018-03-30T11:39:15
B47: 101563 | C47: (111)广州元亨国际船务代理有限公司 | D47: 2018-03-01 | E47: 2018-3 | F47: R0000007869 | G47: 0045TOGXJHZX3 | H47: 365 | M47: 美元 | N47: 6.3346 | O47: 船代部门 | P47: 否 | Q47: 电汇 | S47: 1 | T47: 1 | V47: 3602014609200083914 | W47: 工行广州金港支行 | X47: CL0200288 | Y47: 2018-03-30T14:25:21 | AB47: 365.png
B48: 101566 | C48: (111)广州元亨国际船务代理有限公司 | D48: 2018-03-05 | E48: 2018-3 | F48: R0000007870 | G48: 0045TOGXJI08X | H48: 7038.85 | M48: 美元 | N48: 6.3291 | O48: 船代部门 | P48: 否 | Q48: 电汇 | S48: 1 | T48: 1 | V48: 3602014609200083914 | W48: 工行广州金港支行 | X48: CL0200288 | Y48: 2018-03-30T14:30:36 | AB48: USD7038.85.jpg
B49: 101567 | C49: (111)广州元亨国际船务代理有限公司 | D49: 2018-03-08 | E49: 2018-3 | F49: R0000007871 | G49: 0045TOGXJI0BN | H49: 12604 | M49: 美元 | N49: 6.3171 | O49: 船代部门 | P49: 否 | Q49: 电汇 | S49: 1 | T49: 1 | V49: 3602014609200083914 | W49: 工行广州金港支行 | X49: CL0200288 | Y49: 2018-03-30T14:33:16 | AB49: USD12604.jpg
B50: 101574 | C50: (111)广州元亨国际船务代理有限公司 | D50: 2018-03-08 | E50: 2018-3 | F50: R0000007873 | G50: 0045TOGXJI0D5 | H50: 8150 | M50: 美元 | N50: 6.3111 | O50: 船代部门 | P50: 否 | Q50: 电汇 | S50: 1 | T50: 1 | V50: 3602014609200083914 | W50: 工行广州金港支行 | X50: CL0200288 | Y50: 2018-03-30T14:38:05 | AB50: 8150.jpg
B51: 101584 | C51: (111)广州元亨国际船务代理有限公司 | D51: 2018-03-09 | E51: 2018-3 | F51: R0000007883 | G51: 00458NHRISCHD | H51: 142401.96 | M51: 人民币 | N51: 1 | O51: 船代部门 | P51: 否 | Q51: 电汇 | S51: 1 | T51: 1 | V51: 730257737921 | W51: 中行黄埔支行 | X51: CL0200288 | Y51: 2018-03-30T14:54:53 | AB51: RMB142401.96.jpg
A54: 1、该表导出后结算对象均是代码，未显示名称；

Sheet 应付未回发票
A1: 1、按账套区分。
A2: 2、搜索条件：按账套号、业务号、通关收货人、结算单位。
A3: 3、可按Excel表格形式导出数据。
A6: 账套号 | B6: 工作单号 | C6: 通关收货人 | D6: 结算单位 | E6: 应付合计 | F6: 未回票金额 | G6: 已付款已回票 | H6: 未付款已回票 | I6: 已付款未回票 | J6: 未付款未回票
A7: (101)侨益物流股份有限公司 | B7: QYIB18010003S01 | C7: 上海鹏华船务有限公司 | D7: 广州港引航站 | F7: 31278.06
A8: (101)侨益物流股份有限公司 | B8: QYIC18010028F01 | C8: 托福国际贸易（上海）有限公司 | D8: 广州惠安仓储装卸有限公司 | F8: 2905.7
A9: (101)侨益物流股份有限公司 | B9: QYIC18010061F01 | C9: 宁波晶海工贸有限公司 | D9: 广州惠安仓储装卸有限公司 | F9: 1500
A10: (101)侨益物流股份有限公司 | B10: QYD18010001TH01 | C10: 厦门建发原材料贸易有限公司 | D10: 广州惠安仓储装卸有限公司 | F10: 84.95
A11: (101)侨益物流股份有限公司 | B11: QYIC18010075F01 | C11: 上海绿地能源集团实业发展有限公司 | D11: 广州市生生物流有限公司 | F11: 4700
A12: (101)侨益物流股份有限公司 | B12: QYIC18010103F01 | C12: 中国国投国际贸易有限公司 | D12: 广州市生生物流有限公司 | F12: 14370
A13: (101)侨益物流股份有限公司 | B13: QYIC18010128F01 | C13: 宁波晶海工贸有限公司 | D13: 广州市生生物流有限公司 | F13: 7990
A14: 合计 | E14: =SUM(E7:E13) -> 0 | F14: 62828.71 | G14: 0 | H14: 0 | I14: 0 | J14: 0

Sheet 单票费用统计表
H1: LFS系统的费用统计表中已有，增加绿色区域并维护数据即可。
A5: 1、搜索条件：除上面截图外，增加以下搜索条件：时间（按起止时间，包含以下时间类型：ATA卸货码头时间、流向完结时间、清货完结时间、业务完结时间、权责点时间）、账套、业务类型；
A6: 2、统计口径：要求含货代事业部及单家公司所有业务类型的单票费用统计。
A7: 3、可按Excel表格形式导出数据。
A9: 当前进度 | B9: 状态 | C9: 账套号 | D9: 业务类型 | E9: 工作单号 | F9: 经营单位 | G9: 船名 | H9: 货名 | I9: 货量（a） | J9: ATA卸货码头 | K9: 币别 | L9: 报价应收（b） | M9: 报价成本（c） | N9: 报价利润（d=a-b） | O9: 预估单吨利润（e=d/a） | P9: 应收费用（f） | Q9: 应付费用（g） | R9: 毛利（h） | S9: 单吨利润（i=h/a） | T9: 应收差异（j=b-f） | U9: 应付差异（k=c-g） | V9: 毛利差异（l=d-h） | W9: 单吨利润差异（m=e-i） | X9: 应收未确认（n=f-o） | Y9: 应收已确认（o） | Z9: 应收未对账(p=f-q) | AA9: 应收已对账(q) | AB9: 应收未开票(r=f-s) | AC9: 应收已开票(s) | AD9: 应收未核销(t=f-u) | AE9: 应收已核销(u) | AF9: 应付未确认(v=g-w) | AG9: 应付已确认(w) | AH9: 应付未对账(x=g-y) | AI9: 应付已对账(y) | AJ9: 应付未开票(z=g-aa) | AK9: 应付已开票(aa) | AL9: 应付未核销(ab=g-ac) | AM9: 应付已核销(ac) | AN9: 流向完结时间 | AO9: 清货完结时间 | AP9: 业务完结时间 | AQ9: 权责点
A10: 商检申报 | B10: 确认 | C10: (101)侨益物流股份有限公司 | D10: 进口集装箱 | E10: QYIC18030131F01 | F10: 广州俊泰饲料有限公司 | I10: 484.1 | J10: 2018-03-30 | K10: 人民币 | L10: 62257.55 | M10: 62257.55 | N10: =L10-M10 -> 0 | Q10: 21405 | R10: =P10-Q10 -> -21405 | T10: =L10-P10 -> 62257.55 | U10: =M10-Q10 -> 40852.55 | V10: =N10-R10 -> 21405 | Y10: 0 | Z10: 0 | AA10: 0 | AB10: 0 | AC10: 0 | AD10: 0 | AE10: 0 | AF10: 0 | AG10: 21405 | AH10: 0 | AI10: 21405 | AJ10: 0 | AK10: 0 | AL10: -21405
A11: 待确认 | B11: 新建 | C11: (101)侨益物流股份有限公司 | D11: 进口集装箱 | E11: QYIC18030145F01 | F11: 凯配贸易（上海）有限公司 | I11: 19.386 | J11: 2018-05-01 | K11: 人民币 | L11: 7874.59 | M11: 7391.6 | N11: =L11-M11 -> 482.99 | R11: =P11-Q11 -> 0 | T11: =L11-P11 -> 7874.59 | U11: 7391.6 | V11: 482.99 | Y11: 0 | Z11: 0 | AB11: 0 | AD11: 0 | AG11: 0 | AH11: 0 | AJ11: 0 | AK11: 0 | AL11: 0
A12: 接收委托 | B12: 确认 | C12: (101)侨益物流股份有限公司 | D12: 进口集装箱 | E12: QYIC18030147F01 | F12: 东莞嘉吉粮油有限公司 | I12: 202.89 | J12: 2018-04-01 | K12: 人民币 | L12: 1855 | M12: 2056 | N12: -201 | P12: 4500 | R12: 4500 | T12: =L12-P12 -> -2645 | U12: 2056 | V12: -4701 | X12: 4500 | Y12: 0 | Z12: 4500 | AB12: 0 | AD12: 0 | AG12: 0 | AH12: 4500 | AJ12: 0 | AK12: 0 | AL12: 0
A13: ETA中转港 | B13: 确认 | C13: (101)侨益物流股份有限公司 | D13: 进口集装箱 | E13: QYIC18030135F01 | F13: 浙江省粮食集团有限公司 | I13: 1002.6 | J13: 2018-04-12 | K13: 人民币 | L13: 13572 | M13: 9211 | N13: 4361 | R13: 0 | T13: 13572 | U13: 9211 | V13: 4361 | Y13: 0 | Z13: 0 | AB13: 0 | AD13: 0 | AG13: 0 | AH13: 0 | AJ13: 0 | AK13: 0 | AL13: 0
A14: 接收委托 | B14: 确认 | C14: (101)侨益物流股份有限公司 | D14: 进口集装箱 | E14: QYIC18030155F01 | F14: 厦门建发原材料贸易有限公司 | I14: 25.927 | J14: 2018-04-04 | K14: 人民币 | L14: 74298.32 | M14: 72789.41 | N14: 1508.91 | P14: 881.52 | R14: 881.52 | T14: 73416.8 | U14: 72789.41 | V14: 627.39 | X14: 881.52 | Y14: 0 | Z14: 881.52 | AB14: 0 | AD14: 0 | AG14: 0 | AH14: 881.52 | AJ14: 0 | AK14: 0 | AL14: 0
A15: 待确认 | B15: 新建 | C15: (101)侨益物流股份有限公司 | D15: 进口散船 | E15: QYIB18030027F01 | F15: 托福国际贸易（上海）有限公司 | I15: 70219.996 | K15: 人民币 | L15: 4382660.36 | M15: 4382650 | N15: 10.36 | R15: 0 | T15: 4382660.36 | U15: 4382650 | V15: 10.36 | Y15: 0 | Z15: 0 | AB15: 0 | AD15: 0 | AG15: 0 | AH15: 0 | AJ15: 0 | AK15: 0 | AL15: 0
A16: ETA中转港 | B16: 确认 | C16: (101)侨益物流股份有限公司 | D16: 进口集装箱 | E16: QYIC18030134F01 | F16: 宁波晶海工贸有限公司 | I16: 260.1 | J16: 2018-06-03 | K16: 人民币 | L16: 5382.71 | M16: 5100.24 | N16: 282.47 | P16: 7280 | R16: 7280 | T16: -1897.29 | U16: 5100.24 | V16: -6997.53 | X16: 7280 | Y16: 0 | Z16: 7280 | AB16: 0 | AD16: 0 | AG16: 0 | AH16: 7280 | AJ16: 0 | AK16: 0 | AL16: 0
A17: ETA中转港 | B17: 确认 | C17: (101)侨益物流股份有限公司 | D17: 进口集装箱 | E17: QYIC18030142F01 | F17: 厦门建发原材料贸易有限公司 | I17: 137.98 | J17: 2018-04-24 | K17: 人民币 | L17: 74302.98 | M17: 72789.41 | N17: 1513.57 | P17: 4691.32 | R17: 4691.32 | T17: 69611.66 | U17: 72789.41 | V17: -3177.75 | X17: 4691.32 | Y17: 0 | Z17: 4691.32 | AB17: 0 | AD17: 0 | AG17: 0 | AH17: 4691.32 | AJ17: 0 | AK17: 0 | AL17: 0
A18: ETA中转港 | B18: 确认 | C18: (101)侨益物流股份有限公司 | D18: 进口集装箱 | E18: QYIC18030136F01 | F18: 宁波晶海工贸有限公司 | I18: 208.96 | J18: 2018-04-09 | K18: 人民币 | L18: 6252.11 | M18: 5985.24 | N18: 266.87 | P18: 7280 | R18: 7280 | T18: -1027.89 | U18: 5985.24 | V18: -7013.13 | X18: 7280 | Y18: 0 | Z18: 7280 | AB18: 0 | AD18: 0 | AG18: 0 | AH18: 7280 | AJ18: 0 | AK18: 0 | AL18: 0
A19: ETA中转港 | B19: 确认 | C19: (101)侨益物流股份有限公司 | D19: 进口集装箱 | E19: QYIC18030137F01 | F19: 宁波晶海工贸有限公司 | I19: 208.959 | J19: 00:00:00 | K19: 人民币 | L19: 5382.71 | M19: 5100.24 | N19: 282.47 | P19: 7280 | R19: 7280 | T19: -1897.29 | U19: 5100.24 | V19: -6997.53 | X19: 7280 | Y19: 0 | Z19: 7280 | AB19: 0 | AD19: 0 | AG19: 0 | AH19: 7280 | AJ19: 0 | AK19: 0 | AL19: 0
A20: ETA中转港 | B20: 确认 | C20: (101)侨益物流股份有限公司 | D20: 进口集装箱 | E20: QYIC18030138F01 | F20: 宁波晶海工贸有限公司 | I20: 253 | J20: 2018-04-30 | K20: 人民币 | L20: 5382.71 | M20: 5100.24 | N20: 282.47 | P20: 7280 | R20: 7280 | T20: -1897.29 | U20: 5100.24 | V20: -6997.53 | X20: 7280 | Y20: 0 | Z20: 7280 | AB20: 0 | AD20: 0 | AG20: 0 | AH20: 7280 | AJ20: 0 | AK20: 0 | AL20: 0
A21: ETA中转港 | B21: 确认 | C21: (101)侨益物流股份有限公司 | D21: 进口集装箱 | E21: QYIC18030140F01 | F21: 厦门建发原材料贸易有限公司 | I21: 342.365 | J21: 2018-04-03 | K21: 人民币 | L21: 74298.32 | M21: 72789.41 | N21: 1508.91 | P21: 11640.41 | Q21: 450 | R21: 11190.41 | T21: 62657.91 | U21: 72339.41 | V21: -9681.5 | X21: 11640.41 | Y21: 0 | Z21: 11640.41 | AA21: 0 | AB21: 0 | AD21: 0 | AE21: 0 | AF21: 0 | AG21: 450 | AH21: 11640.41 | AI21: 450 | AJ21: 0 | AK21: 450 | AL21: 0
A22: ETA中转港 | B22: 确认 | C22: (101)侨益物流股份有限公司 | D22: 进口集装箱 | E22: QYIC18030141F01 | F22: 广东恒兴饲料实业股份有限公司 | I22: 1027.73 | J22: 2018-04-01 | K22: 人民币 | L22: 49171.07 | M22: 49157 | N22: 14.07 | P22: 46247.85 | R22: 46247.85 | T22: 2923.22 | U22: 49157 | V22: -46233.78 | X22: 46247.85 | Y22: 0 | Z22: 46247.85 | AB22: 0 | AD22: 0 | AG22: 0 | AH22: 46247.85 | AJ22: 0 | AK22: 0 | AL22: 0
A23: 待确认 | B23: 新建 | C23: (101)侨益物流股份有限公司 | D23: 进口散船 | E23: QYIB18030028F01 | F23: 中粮四海丰（张家港）贸易有限公司 | I23: 70373.875 | J23: 2018-03-31 | K23: 人民币 | L23: 0 | M23: 0 | N23: 0 | R23: 0 | T23: 0 | U23: 0 | V23: 0 | Y23: 0 | Z23: 0 | AB23: 0 | AD23: 0 | AG23: 0 | AH23: 0 | AJ23: 0 | AK23: 0 | AL23: 0
A24: ETA中转港 | B24: 确认 | C24: (101)侨益物流股份有限公司 | D24: 进口集装箱 | E24: ZJIC18030001F01 | F24: 北大荒粮食集团广州仁亿贸易有限公司 | I24: 272.119 | J24: 2018-04-11 | K24: 人民币 | L24: 19771.59 | M24: 19757.6 | N24: 13.99 | P24: 12789.59 | R24: 12789.59 | T24: 6982 | U24: 19757.6 | V24: -12775.6 | X24: 12789.59 | Y24: 0 | Z24: 12789.59 | AB24: 0 | AD24: 0 | AG24: 0 | AH24: 12789.59 | AJ24: 0 | AK24: 0 | AL24: 0
A25: 接收委托 | B25: 确认 | C25: (101)侨益物流股份有限公司 | D25: 进口集装箱 | E25: QYIC18030146F01 | F25: 东莞嘉吉粮油有限公司 | I25: 1.06 | K25: 人民币 | L25: 1250 | M25: 2281 | N25: -1031 | P25: 650 | R25: 650 | T25: 600 | U25: 2281 | V25: -1681 | X25: 650 | Y25: 0 | Z25: 650 | AB25: 0 | AD25: 0 | AG25: 0 | AH25: 650 | AJ25: 0 | AK25: 0 | AL25: 0
A26: ETA中转港 | B26: 确认 | C26: (101)侨益物流股份有限公司 | D26: 进口集装箱 | E26: QYIC18030143F01 | F26: 厦门建发原材料贸易有限公司 | I26: 277.9 | J26: 2018-04-24 | K26: 人民币 | L26: 74298.32 | M26: 72789.41 | N26: 1508.91 | P26: 9448.6 | R26: 9448.6 | T26: 64849.72 | U26: 72789.41 | V26: -7939.69 | X26: 9448.6 | Y26: 0 | Z26: 9448.6 | AB26: 0 | AD26: 0 | AG26: 0 | AH26: 9448.6 | AJ26: 0 | AK26: 0 | AL26: 0
A27: ETA中转港 | B27: 确认 | C27: (101)侨益物流股份有限公司 | D27: 进口集装箱 | E27: QYIC18030133F01 | F27: 宁波晶海工贸有限公司 | I27: 130.05 | J27: 2018-05-17 | K27: 人民币 | L27: 5382.71 | M27: 5100.24 | N27: 282.47 | P27: 7280 | R27: 7280 | T27: -1897.29 | U27: 5100.24 | V27: -6997.53 | X27: 7280 | Y27: 0 | Z27: 7280 | AB27: 0 | AD27: 0 | AG27: 0 | AH27: 7280 | AJ27: 0 | AK27: 0 | AL27: 0
A28: ETA中转港 | B28: 确认 | C28: (101)侨益物流股份有限公司 | D28: 进口集装箱 | E28: QYIC18030139F01 | F28: 宁波晶海工贸有限公司 | I28: 252.56 | J28: 2018-04-30 | K28: 人民币 | L28: 5382.71 | M28: 5100.24 | N28: 282.47 | P28: 7280 | R28: 7280 | T28: -1897.29 | U28: 5100.24 | V28: -6997.53 | X28: 7280 | Y28: 0 | Z28: 7280 | AB28: 0 | AD28: 0 | AG28: 0 | AH28: 7280 | AJ28: 0 | AK28: 0 | AL28: 0
A29: ETA中转港 | B29: 确认 | C29: (101)侨益物流股份有限公司 | D29: 进口集装箱 | E29: QYIC18030148F01 | F29: 天津建源供应链管理有限公司 | I29: 1548.486 | J29: 2018-04-08 | K29: 人民币 | L29: 49154.2 | M29: 48900.24 | N29: 253.96 | P29: 69681.87 | Q29: 10872.86 | R29: 58809.01 | T29: -20527.67 | U29: 38027.38 | V29: -58555.05 | X29: 69681.87 | Y29: 0 | Z29: 69681.87 | AB29: 0 | AD29: 0 | AF29: 10872.86 | AG29: 0 | AH29: 69681.87 | AJ29: 0 | AK29: 0 | AL29: 0
A30: 合计 | I30: =SUM(I10:I29) -> 147250.043 | L30: =SUM(L10:L29) -> 4917929.96 | M30: =SUM(M10:M29) -> 4906306.07 | N30: =SUM(N10:N29) -> 11623.89 | P30: =SUM(P10:P29) -> 204211.16 | Q30: =SUM(Q10:Q29) -> 32727.86 | R30: =SUM(R10:R29) -> 171483.3 | T30: =SUM(T10:T29) -> 4713718.8 | U30: =SUM(U10:U29) -> 4873578.21 | V30: =SUM(V10:V29) -> -159859.41 | X30: =SUM(X10:X29) -> 204211.16 | Y30: 0 | Z30: 204211.16 | AA30: 0 | AB30: 0 | AC30: 0 | AD30: 0 | AE30: 0 | AF30: 10872.86 | AG30: 21855 | AH30: 204211.16 | AI30: 21855 | AJ30: 0 | AK30: 450 | AL30: -21405 | AM30: 0

Sheet 分环节统计表
A1: 1、统计口径：要求含货代事业部及单家公司所有业务类型的分环节单票费用统计。
A2: 2、搜索条件：业务号、经营单位、卸货码头、货名、仓库、时间（按起止时间，包含以下时间类型：ATA卸货码头时间、流向完结时间、清货完结时间、业务完结时间、权责点时间）、账套、业务类型。
A3: 3、可按Excel表格形式导出数据。
A5: 账套号 | B5: 工作单号 | C5: 经营单位 | D5: 业务类型 | E5: 卸货码头 | F5: 柜数 | G5: 柜型 | H5: 仓库 | I5: 货名 | J5: 船公司费用 | W5: 码头费用 | AJ5: 通关费用 | AW5: 仓储费用 | BJ5: 运输费用 | BW5: 滞修洗费用 | CJ5: 合计 | CW5: ATA卸货码头 | CX5: 流向完结时间 | CY5: 清货完结时间 | CZ5: 业务完结时间 | DA5: 权责点
J6: 货量(ca) | K6: 预估应收(cb) | L6: 预估成本(cd) | M6: 预估利润(ce=cb-cd) | N6: 预估单吨利润(cf=ce/ca) | O6: 实际应收(cg) | P6: 实际成本(ch) | Q6: 实际利润(ci=cg-ch) | R6: 实际单吨利润(cj=ci/ca) | S6: 应收差异(ck=cb-cg) | T6: 应付差异(cl=cd-ch) | U6: 利润差异(cm=ce-ci) | V6: 单吨利润差异(cn=cm/ca) | W6: 货量（a） | X6: 预估应收（b） | Y6: 预估成本（c） | Z6: 预估利润（d=b-c） | AA6: 预估单吨利润（e=d/a） | AB6: 实际应收（f） | AC6: 实际成本（g） | AD6: 实际利润（h=f-g） | AE6: 实际单吨利润（i=h/a） | AF6: 应收差异（j=b-f） | AG6: 应付差异（k=c-g） | AH6: 利润差异（l=d-h） | AI6: 单吨利润差异（m=e-i） | AJ6: 货量（n） | AK6: 预估应收（o） | AL6: 预估成本（p） | AM6: 预估利润（q=o-p） | AN6: 预估单吨利润（r=q/n） | AO6: 实际应收（s） | AP6: 实际成本（t） | AQ6: 实际利润（u=s-t） | AR6: 实际单吨利润（v=u/n） | AS6: 应收差异（w=o-s） | AT6: 应付差异（x=p-t） | AU6: 利润差异（y=q-u） | AV6: 单吨利润差异（z=r-v） | AW6: 货量（aa） | AX6: 预估应收（ab） | AY6: 预估成本（ac） | AZ6: 预估利润（ad=ab-ac） | BA6: 预估单吨利润（ae=ad/aa） | BB6: 实际应收（af） | BC6: 实际成本（ag） | BD6: 实际利润（ah=af-ag） | BE6: 实际单吨利润（ai=ah/aa） | BF6: 应收差异（aj=ab-af） | BG6: 应付差异（ak=ac-ag） | BH6: 利润差异（al=ad-ah） | BI6: 单吨利润差异（am=ae-ai） | BJ6: 货量（an） | BK6: 预估应收（ao） | BL6: 预估成本（ap） | BM6: 预估利润（aq=ao-ap） | BN6: 预估单吨利润（ar=aq/an） | BO6: 实际应收（as） | BP6: 实际成本（at） | BQ6: 实际利润（au=as-at） | BR6: 实际单吨利润（av=au/an） | BS6: 应收差异（aw=ao-as） | BT6: 应付差异（ax=ap-at） | BU6: 利润差异（ay=aq-au） | BV6: 单吨利润差异（az=ar-av） | BW6: 货量（ba） | BX6: 预估应收（bb） | BY6: 预估成本（bc） | BZ6: 预估利润（bd=bb-bc） | CA6: 预估单吨利润（be=bd/ba） | CB6: 实际应收（bf） | CC6: 实际成本（bg） | CD6: 实际利润（bh=bf-bg） | CE6: 实际单吨利润（bi=bh/ba） | CF6: 应收差异（bj=bb-bf） | CG6: 应付差异（bk=bc-bg） | CH6: 利润差异（bl=bd-bh） | CI6: 单吨利润差异（bm=be-bi） | CJ6: 货量（bn） | CK6: 预估应收（bo=b+o+ao+ab+bb+cb） | CL6: 预估成本（bp=+c+p+ap+ac+bc+cd） | CM6: 预估利润（bq=d+q+aq+ad+bd+ce） | CN6: 预估单吨利润（br=e+r+ar+ae+be+cf） | CO6: 实际应收（bs=f+s+as+af+bf+cg） | CP6: 实际成本（bt=g+t+at+ag+bg+ch） | CQ6: 实际利润（bu=h+u+au+ah+bh+ci） | CR6: 实际单吨利润（bv=i+v+av+ai+bi+cj） | CS6: 应收差异（bw=j+w+aw+aj+bj+ck） | CT6: 应付差异（bx=k+x+ax+ak+bk+cl） | CU6: 利润差异（by=l+y+ay+al+bl+cm） | CV6: 单吨利润差异（bz=m+z+az+am+bm+cn）
A7: (101)侨益物流股份有限公司 | B7: QYIC18030131F01 | C7: 广州俊泰饲料有限公司 | D7: 进口集装箱 | W7: 取值应收计费中各包干对应的吨数 | AJ7: 取值应收计费中各包干对应的吨数 | AW7: 取值应收计费中各包干对应的吨数 | BJ7: 取值应收计费中各包干对应的吨数 | CJ7: 取整票毛重（吨） | CW7: 2018-04-23
A8: (101)侨益物流股份有限公司 | B8: QYIC18030145F01 | C8: 凯配贸易（上海）有限公司 | D8: 进口集装箱 | CW8: 2018-05-21
A9: (101)侨益物流股份有限公司 | B9: QYIC18030147F01 | C9: 东莞嘉吉粮油有限公司 | D9: 进口集装箱 | CW9: 2018-05-07
A10: 合计 | W10: =SUM(W7:W9) -> 0 | X10: =SUM(X7:X9) -> 0 | Y10: 0 | Z10: 0 | AA10: 0 | AB10: 0 | AC10: 0 | AD10: 0 | AE10: 0 | AF10: 0 | AG10: 0 | AH10: 0 | AI10: 0 | AJ10: 0 | AK10: 0 | AL10: 0 | AM10: 0 | AN10: 0 | AO10: 0 | AP10: 0 | AQ10: 0 | AR10: 0 | AS10: 0 | AT10: 0 | AU10: 0 | AV10: 0 | AW10: 0 | AX10: 0 | AY10: 0 | AZ10: 0 | BA10: 0 | BB10: 0 | BC10: 0 | BD10: 0 | BE10: 0 | BF10: 0 | BG10: 0 | BH10: 0 | BI10: 0 | BJ10: 0 | BK10: 0 | BL10: 0 | BM10: 0 | BN10: 0 | BO10: 0 | BP10: 0 | BQ10: 0 | BR10: 0 | BS10: 0 | BT10: 0 | BU10: 0 | BV10: 0 | BW10: 0 | BX10: 0 | BY10: 0 | BZ10: 0 | CA10: 0 | CB10: 0 | CC10: 0 | CD10: 0 | CE10: 0 | CF10: 0 | CG10: 0 | CH10: 0 | CI10: 0 | CJ10: =SUM(CJ7:CJ9) -> 0 | CK10: 0 | CL10: 0 | CM10: 0 | CN10: 0 | CO10: 0 | CP10: 0 | CQ10: 0 | CR10: 0 | CS10: 0 | CT10: 0 | CU10: 0 | CV10: 0
W12: 见下图

Sheet 经营财务分析（按经营单位统计）
B2: 还需增加：折线对比图
I5: 本月 | Z5: 上年同期
I6: 第一周 | L6: 第二周 | O6: 第三周 | R6: 第四周 | U6: 合计收入 | V6: 合计成本 | W6: 合计利润 | X6: 毛利率 | Y6: 单吨利润 | Z6: 第一周 | AC6: 第二周 | AF6: 第三周 | AI6: 第四周 | AL6: 合计收入 | AM6: 合计成本 | AN6: 合计利润 | AO6: 毛利率 | AP6: 单吨利润
B7: 公司名（全称） | C7: 月份 | D7: 客户（全称/经营单位） | E7: 货量 | F7: 货类 | G7: 货名 | H7: 运输方式 | I7: 收入 | J7: 成本 | K7: 利润 | L7: 收入 | M7: 成本 | N7: 利润 | O7: 收入 | P7: 成本 | Q7: 利润 | R7: 收入 | S7: 成本 | T7: 利润 | Z7: 收入 | AA7: 成本 | AB7: 利润 | AC7: 收入 | AD7: 成本 | AE7: 利润 | AF7: 收入 | AG7: 成本 | AH7: 利润 | AI7: 收入 | AJ7: 成本 | AK7: 利润
B8: 侨益物流股份有限公司 | C8: 1月 | D8: 厦门建发原材料贸易有限公司 | E8: 20 | F8: 粮谷类 | G8: 高梁 | H8: 集装箱 | U8: 100 | V8: 80 | W8: =U8-V8 -> 20 | X8: =W8/U8 -> 0.2 | Y8: =W8/E8 -> 1
B9: 侨益物流股份有限公司 | C9: 1月 | D9: 新谷(上海)贸易有限公司 | E9: 3 | F9: 饲料 | G9: DDGS | H9: 集装箱 | U9: 20 | V9: 10 | W9: =U9-V9 -> 10 | X9: =W9/U9 -> 0.5 | Y9: 3.333333333
B10: 侨益物流股份有限公司 | C10: 1月 | D10: 厦门市明穗粮油贸易有限公司 | E10: 20 | F10: 饲料 | G10: 鱼粉 | H10: 集装箱 | U10: 18 | V10: 15 | W10: 3 | X10: 0.1666666667 | Y10: 0.15
B11: 侨益物流股份有限公司 | C11: 1月 | D11: 肇庆市福加德面粉有限公司 | E11: 20 | F11: 饲料 | G11: 豆粕 | H11: 集装箱 | U11: 18 | V11: 15 | W11: 3 | X11: 0.1666666667 | Y11: 0.15
B12: 侨益物流股份有限公司 | C12: 1月 | D12: 厦门建发农产品有限公司 | E12: 50 | F12: 粮谷类 | G12: 高梁 | H12: 散船 | U12: 200 | V12: 160 | W12: 40 | X12: 0.2 | Y12: 0.8
B13: 侨益物流股份有限公司 | C13: 1月 | D13: 广州粤和能源有限公司 | E13: 13 | F13: 饲料 | G13: DDGS | H13: 散船 | U13: 22 | V13: 10 | W13: 12 | X13: 0.5454545455 | Y13: 0.9230769231
B14: 侨益物流股份有限公司 | C14: 1月 | D14: 厦门建发农产品有限公司 | E14: 15 | F14: 饲料 | G14: 鱼粉 | H14: 内贸 | U14: 8 | V14: 3 | W14: 5 | X14: 0.625 | Y14: 0.3333333333
B15: 侨益物流股份有限公司 | C15: 1月 | D15: 厦门建发农产品有限公司 | E15: 25 | F15: 饲料 | G15: 豆粕 | H15: 散船 | U15: 12 | V15: 5 | W15: 7 | X15: 0.5833333333 | Y15: 0.28
B16: 侨益物流股份有限公司 | C16: 1月 | D16: 厦门建发农产品有限公司 | E16: 30 | F16: 食品 | G16: 大米 | H16: 散船 | U16: 20 | V16: 15 | W16: 5 | X16: 0.25 | Y16: 0.1666666667

Sheet 经营财务分析（按开票名称统计）
B2: 还需增加：折线对比图
I5: 本月 | Z5: 上年同期
I6: 第一周 | L6: 第二周 | O6: 第三周 | R6: 第四周 | U6: 合计收入 | V6: 合计成本 | W6: 合计利润 | X6: 毛利率 | Y6: 单吨利润 | Z6: 第一周 | AC6: 第二周 | AF6: 第三周 | AI6: 第四周 | AL6: 合计收入 | AM6: 合计成本 | AN6: 合计利润 | AO6: 毛利率 | AP6: 单吨利润
B7: 公司名（全称） | C7: 月份 | D7: 客户（全称/经营单位） | E7: 货量 | F7: 货类 | G7: 货名 | H7: 运输方式 | I7: 收入 | J7: 成本 | K7: 利润 | L7: 收入 | M7: 成本 | N7: 利润 | O7: 收入 | P7: 成本 | Q7: 利润 | R7: 收入 | S7: 成本 | T7: 利润 | Z7: 收入 | AA7: 成本 | AB7: 利润 | AC7: 收入 | AD7: 成本 | AE7: 利润 | AF7: 收入 | AG7: 成本 | AH7: 利润 | AI7: 收入 | AJ7: 成本 | AK7: 利润
B8: 侨益物流股份有限公司 | C8: 1月 | D8: 厦门建发原材料贸易有限公司 | E8: 20 | F8: 粮谷类 | G8: 高梁 | H8: 集装箱 | U8: 100 | V8: 80 | W8: =U8-V8 -> 20 | X8: =W8/U8 -> 0.2 | Y8: =W8/E8 -> 1
B9: 侨益物流股份有限公司 | C9: 1月 | D9: 新谷(上海)贸易有限公司 | E9: 3 | F9: 饲料 | G9: DDGS | H9: 集装箱 | U9: 20 | V9: 10 | W9: =U9-V9 -> 10 | X9: =W9/U9 -> 0.5 | Y9: 3.333333333
B10: 侨益物流股份有限公司 | C10: 1月 | D10: 厦门市明穗粮油贸易有限公司 | E10: 20 | F10: 饲料 | G10: 鱼粉 | H10: 集装箱 | U10: 18 | V10: 15 | W10: 3 | X10: 0.1666666667 | Y10: 0.15
B11: 侨益物流股份有限公司 | C11: 1月 | D11: 肇庆市福加德面粉有限公司 | E11: 20 | F11: 饲料 | G11: 豆粕 | H11: 集装箱 | U11: 18 | V11: 15 | W11: 3 | X11: 0.1666666667 | Y11: 0.15
B12: 侨益物流股份有限公司 | C12: 1月 | D12: 厦门建发农产品有限公司 | E12: 50 | F12: 粮谷类 | G12: 高梁 | H12: 散船 | U12: 200 | V12: 160 | W12: 40 | X12: 0.2 | Y12: 0.8
B13: 侨益物流股份有限公司 | C13: 1月 | D13: 广州粤和能源有限公司 | E13: 13 | F13: 饲料 | G13: DDGS | H13: 散船 | U13: 22 | V13: 10 | W13: 12 | X13: 0.5454545455 | Y13: 0.9230769231
B14: 侨益物流股份有限公司 | C14: 1月 | D14: 厦门建发农产品有限公司 | E14: 15 | F14: 饲料 | G14: 鱼粉 | H14: 内贸 | U14: 8 | V14: 3 | W14: 5 | X14: 0.625 | Y14: 0.3333333333
B15: 侨益物流股份有限公司 | C15: 1月 | D15: 厦门建发农产品有限公司 | E15: 25 | F15: 饲料 | G15: 豆粕 | H15: 散船 | U15: 12 | V15: 5 | W15: 7 | X15: 0.5833333333 | Y15: 0.28
B16: 侨益物流股份有限公司 | C16: 1月 | D16: 厦门建发农产品有限公司 | E16: 30 | F16: 食品 | G16: 大米 | H16: 散船 | U16: 20 | V16: 15 | W16: 5 | X16: 0.25 | Y16: 0.1666666667

Sheet 应收、预收账龄表
B1: 1、按账套区分；
B2: 2、统计口径：可分别按发票日期、权责日期统计；
B3: 3、搜索条件：帐套、经营单位、结算单位、会计期、统计口径、发票日期（起止时间）、权责日期（起止时间）；
B4: 4、统计金额可点击查看并导出按业务号显示的明细（可参照T表应收、应付费目明细）；
B5: 5、可按Excel表格形式导出数据。
B6: 搜索条件：经营单位/结算单位 | C6: 业务完结日期 | K6: 单位：元
B7: 本公司名称 | C7: 单位名称 | D7: 金额（a=b+c+d+e+f+g+h） | E7: 30天以内（b） | F7: 31-60天（c） | G7: 61-90天（d） | H7: 91-120天（e） | I7: 121-180天（f） | J7: 181-360天（g） | K7: 360天以上（h）
D8: =SUM(E8:K8) -> 0
D9: =SUM(E9:K9) -> 0
D10: =SUM(E10:K10) -> 0
D11: =SUM(E11:K11) -> 0
B12: 合计 | D12: =SUM(D8:D11) -> 0 | E12: =SUM(E8:E11) -> 0 | F12: 0 | G12: 0 | H12: 0 | I12: 0 | J12: 0 | K12: 0

Sheet 应付、预付账龄表
B1: 1、按账套区分；
B2: 2、统计口径：可分别按发票日期、权责日期统计；
B3: 3、搜索条件：帐套、结算单位、会计期、统计口径、发票日期（起止时间）、权责日期（起止时间）；
B4: 4、统计金额可点击查看并导出按业务号显示的明细（可参照T表应收、应付费目明细）；
B5: 5、可按Excel表格形式导出数据。
B6: 搜索条件：经营单位/结算单位 | C6: 会计期 | K6: 单位：元
B7: 本公司名称 | C7: 结算单位 | D7: 金额（a=b+c+d+e+f+g+h） | E7: 30天以内（b） | F7: 31-60天（c） | G7: 61-90天（d） | H7: 91-120天（e） | I7: 121-180天（f） | J7: 181-360天（g） | K7: 360天以上（h）
D8: =SUM(E8:K8) -> 0
D9: =SUM(E9:K9) -> 0
D10: =SUM(E10:K10) -> 0
D11: =SUM(E11:K11) -> 0
B12: 合计 | D12: =SUM(D8:D11) -> 0 | E12: =SUM(E8:E11) -> 0 | F12: 0 | G12: 0 | H12: 0 | I12: 0 | J12: 0 | K12: 0
A14: 1、预付账款账龄表金额一列为空，搜索条件缺少经营单位、会计期，应增加按帐套区分；
A33: 2、预付账款账龄表从系统导出excel后单位名称显示为代码；
A46: 3、该表数据不对：
A47: 3.1例如，预付账款账龄表上广州市锦运物流有限公司91-120天预付款10000元，实际是2018年5月11日退押金给广州市锦运物流有限公司10000元，并非预付账款。
A124: 3.2、又例如，预付账款账龄表上湛江市源利国际货运代理有限公司31-60天预付款30000元，实际是2018年7月退押金给湛江市源利国际货运代理有限公司30000元，并非预付账款。

Sheet 应付账龄表
B2: 侨益物流股份有限公司
B3: 搜索条件：经营单位/结算单位 | C3: 会计期 | I3: 单位：元
B4: 本公司名称 | C4: 供应商 | D4: 金额 | E4: 30天以内 | F4: 31-60天 | G4: 61-90天 | H4: 91-120天 | I4: 121-180天 | J4: 181-360天 | K4: 360天以上
A20: 1、该表搜索条件无经营单位、会计期，搜索条件应增加按帐套区分，总应付金额一列为空；
A60: 2、应付账款账龄表从系统导出excel后单位名称显示为代码；
A81: 3、该表数据待核实，例如，广州市广海物流有限公司，30天以内应付金额为12000元，并未有收到该公司的应付发票12000元。

Sheet 应收账龄表
B2: 侨益物流股份有限公司
B3: 搜索条件：经营单位/结算单位 | C3: 会计期 | I3: 单位：元
B4: 本公司名称 | C4: 单位名称 | D4: 金额 | E4: 30天以内 | F4: 31-60天 | G4: 61-90天 | H4: 91-120天 | I4: 121-180天 | J4: 181-360天 | K4: 360天以上
A20: 1、应收账款账龄表搜索条件无经营单位、会计期，金额一列为空，应增加帐套名称作为搜索条件区分；
A51: 2、该表导出Excel后单位名称均是代码；
A80: 3、该表数据待核实，例如，东莞嘉吉粮油有限公司业务号QYIB18070008F01在7月16日开票10000元未收款，截止2018年7月17日的应收账款账龄表，该笔应收款在31-60天账龄内，请核实。

Sheet 可用资金汇总表
A1: 1、搜索条件无年份、月份，统计表无经营单位；

Sheet 资金日历、计划与实际差异表
A1: 系统应提供一个录入最初期初余额的地方，出纳在初始先将最开始的期初录入，后期每天需将实除余额录入，预计的每日期初等于实际的上一天的余额
A4: 搜索： | B4: 按月份
A6: 日期 | C6: 预计 | H6: 实际 | M6: 差异
B7: 期初 | C7: 业务应收 | D7: 业务应付 | E7: 费用报销 | F7: 其他 | G7: 余额 | H7: 应收 | I7: 应付 | J7: 费用报销 | K7: 其他 | L7: 余额 | M7: 应收 | N7: 应付 | O7: 费用报销 | P7: 其他 | Q7: 余额
A8: 1
A9: 2
A10: 3
A11: 4
A12: 5
A13: 6
A14: 7
A15: 8
A16: 9
A17: 10
A18: 11
A19: 12
A20: 13
A21: 14
A22: 15
A23: 16
A24: 17
A25: 18
A26: 19
A27: 20
A28: 21
A29: 22
A30: 23
A31: 24
A32: 25
A33: 26
A34: 27
A35: 28
A36: 29
A37: 30
A38: 31
A39: 小计

Sheet 贷款备查簿
A1: 贷款备查簿
A3: 编号 | B3: 贷款银行 | C3: 借款期限 | E3: 浮动/固定利率 | F3: 综合年/月利率 | G3: 担保费 | H3: 期初余额 | I3: 提款金额 | K3: 还款金额 | M3: 期末余额（元） | N3: 扣息日期 | O3: 利息 | P3: 是(否)逾期 | Q3: 借款条件 | T3: 借款用途
C4: 借款日 | D4: 约定还款日 | I4: 日期 | J4: 金额（元） | K4: 日期 | L4: 金额（元） | Q4: 信用/保证/抵(质)押 | R4: 保证人/抵(质)押物 | S4: 担保期限
A5: 1 | B5: 中国农业发展银行广东省分行营业部 | C5: 2016-11-18 | D5: 2017-10-31 | F5: 0.0435 | H5: 0 | I5: 2016-11-21 | J5: 39580000 | M5: =H5+J5-L5 -> 39580000 | P5: 否 | S5: 2016年11月1日—2019年10月31日 | T5: 购小麦
K6: 2017-10-24 | L6: 12128927 | M6: =M5+J6-L6 -> 27451073 | N6: 2017-01-21 | O6: 148260.08
A32: 2 | B32: 中国工商银行广州黄埔支行
A66: 3 | B66: 中国工商银行广州黄埔支行
A96: 4 | B96: 广州惠民村镇银行科汇金谷支行
A113: 合 计 | B113: ---- | C113: ---- | D113: ---- | E113: ---- | F113: ---- | H113: ---- | I113: ---- | K113: ---- | M113: =M13+M47+M70+M96 -> 0 | P113: ---- | Q113: ---- | R113: ---- | S113: ---- | T113: ----

Sheet 信控风险分析

Sheet （客户、供应商）合同结算期跟踪统计表

Sheet 费用统计表(按部门预算对比）
A1: 费用预算进度表
A10: 部门 | B10: 费用大类=科目 | C10: 年度预算对比 | F10: 月度预算对比 | I10: 原因说明
C11: 本年预算 | D11: 本年累计 | E11: 预算进度 | F11: 本月预算 | G11: 本月实际 | H11: 预算进度
A12: 管理部门 | B12: 职工薪酬
A13: 管理部门 | B13: 职工教育经费
A14: 管理部门 | B14: 职工福利费
A15: 管理部门 | B15: 办公费用
A16: 管理部门 | B16: 招待费用
A17: 管理部门 | B17: 差旅费
A18: 管理部门 | B18: 车辆费用
A19: 管理部门 | B19: 通讯费
A20: 管理部门 | B20: 税费
A21: 管理部门 | B21: 其他
A22: 管理部门 | B22: 小计
A23: 商务部门 | B23: 职工薪酬
A24: 商务部门 | B24: 职工教育经费
A25: 商务部门 | B25: 职工福利费
A26: 商务部门 | B26: 办公费用
A27: 商务部门 | B27: 招待费用
A28: 商务部门 | B28: 差旅费
A29: 商务部门 | B29: 车辆费用
A30: 商务部门 | B30: 通讯费
A31: 商务部门 | B31: 税费
A32: 商务部门 | B32: 其他
A33: 商务部门 | B33: 小计
A34: 。。。 | B34: 职工薪酬
B35: 职工教育经费
B36: 职工福利费
B37: 办公费用
A38: 汇总 | B38: 招待费用
B39: 差旅费
B40: 车辆费用
B41: 通讯费
B42: 税费
B43: 其他
B44: 小计

Sheet 报销费用汇总（按个人）
A5: 报销费用汇总-按部门个人
A6: 制表日期：2018年03月31日
A7: 统计时段：2014年01月01日 至 2018年03月31日
A8: 管理部 | C8: 陈小明 | D8: 陈峥峥 | E8: 何海 | F8: 姜苗 | G8: 梁健斌 | H8: 彭彪 | I8: 秦结儿 | J8: 秦锦钊 | K8: 秦松添 | L8: 阮金艳 | M8: 苏月飞 | N8: 温璐明 | O8: 徐良能 | P8: 叶艺芬 | Q8: 朱晓晖 | R8: 总计
C9: 3420 | R9: 3420
B10: 办公用品 | C10: 272.4 | D10: 1838 | F10: 342 | H10: 28 | J10: 10000 | R10: 12480.4
B11: 部门餐费 | F11: 2351.5 | L11: 2700 | R11: 5051.5
B12: 部门活动费 | L12: 991 | P12: 788 | R12: 1779
B13: 餐费 | C13: 11009.9 | D13: 68764.69 | F13: 7192 | H13: 36287.8 | I13: 161 | K13: 7236 | M13: 50 | N13: 350 | Q13: 6128 | R13: 137179.39
B14: 操作费 | D14: 689306 | R14: 689306
B15: 车船税 | D15: 3000 | R15: 3000
B16: 车辆保险费 | D16: 8500 | R16: 8500
B17: 车辆保养费 | C17: 7880 | D17: 447 | R17: 8327
B18: 车辆维修费 | C18: 67100.71 | D18: 4745 | R18: 71845.71
B19: 工作误餐费 | C19: 6290 | D19: 2054 | E19: 134 | F19: 559 | G19: 50 | H19: 265 | R19: 9352
B20: 会议费 | C20: 12000 | H20: 22000 | R20: 34000
B21: 交通费 | C21: 297 | D21: 6347.2 | F21: 216 | H21: 662 | I21: 155.5 | M21: 895.5 | R21: 8573.2
B22: 快递费 | D22: 500 | M22: 109.5 | R22: 609.5
B23: 礼品费 | C23: 2800 | D23: 115080.82 | F23: 4195.62 | H23: 17378 | O23: 2414 | Q23: 11556.3 | R23: 153424.74
B24: 路桥费 | C24: 3541.66 | D24: 6410 | F24: 257 | R24: 10208.66
B25: 年票费 | C25: 1960 | D25: 980 | R25: 2940
B26: 其他 | C26: 2820 | D26: 62155.88 | R26: 64975.88
B27: 汽车油费 | C27: 1446.04 | D27: 53449 | R27: 54895.04
B28: 市内交通费 | C28: 1856 | D28: 2813 | F28: 435 | R28: 5104
B29: 停车费 | C29: 1859 | D29: 989 | R29: 2848
B30: 文体活动费 | C30: 24261 | H30: 78940 | Q30: 452 | R30: 103653
B31: 易耗品 | H31: 1688 | Q31: 324.8 | R31: 2012.8
B32: 住宿费 | C32: 1366.2 | D32: 67382.73 | F32: 33391 | H32: 35268.2 | I32: 780 | K32: 899 | R32: 139087.13
B33: 总计 | C33: 150179.91 | D33: 1094762.32 | E33: 134 | F33: 48939.12 | G33: 50 | H33: 192517 | I33: 1096.5 | J33: 10000 | K33: 8135 | L33: 3691 | M33: 1055 | N33: 350 | O33: 2414 | P33: 788 | Q33: 18461.1 | R33: 1532572.95

Sheet 报销费用汇总（按部门明细）
A5: 报销费用汇总-按部门明细
A6: 制表日期：2018年03月31日
A7: 统计时段：2014年01月01日 至 2018年03月31日
A8: 费用大类 | B8: 科目名称 | C8: 办公室 | D8: 财务部 | E8: 操作部 | F8: 管理部 | G8: 集运部 | H8: 商务部 | I8: 市场部 | J8: 通关部 | K8: 客服部 | L8: 储运部 | M8: 集团人力行政部 | N8: 总计
A9: 办公费用 | B9: 其他年审费 | C9: 0 | D9: 0 | E9: 150 | F9: 0 | G9: 0 | H9: 0 | I9: 0 | J9: 0 | K9: 0 | L9: 0 | M9: 0 | N9: 150
B10: 办公设备维修费 | C10: 5690 | D10: 980 | E10: 460 | F10: 0 | G10: 0 | H10: 0 | I10: 0 | J10: 0 | K10: 0 | L10: 0 | M10: 0 | N10: 7130
B11: 耗材费 | C11: 16910 | D11: 0 | E11: 120 | F11: 0 | G11: 0 | H11: 34480 | I11: 0 | J11: 826 | K11: 0 | L11: 0 | M11: 0 | N11: 52336
B12: 劳保用品 | C12: 6747.9 | D12: 0 | E12: 1700 | F12: 0 | G12: 0 | H12: 180 | I12: 0 | J12: 6532.3 | K12: 0 | L12: 0 | M12: 0 | N12: 15160.2
B13: 订报费 | C13: 2160 | D13: 0 | E13: 0 | F13: 0 | G13: 0 | H13: 0 | I13: 0 | J13: 3520 | K13: 0 | L13: 0 | M13: 0 | N13: 5680
B14: 证件年审费 | C14: 0 | D14: 0 | E14: 100 | F14: 0 | G14: 0 | H14: 0 | I14: 0 | J14: 50 | K14: 0 | L14: 0 | M14: 0 | N14: 150
B15: 资料书籍费 | C15: 3265.4 | D15: 15 | E15: 312 | F15: 0 | G15: 0 | H15: 191.3 | I15: 0 | J15: 1870 | K15: 2208 | L15: 0 | M15: 0 | N15: 7861.7
B16: 会议费 | C16: 22017 | D16: 0 | E16: 0 | F16: 34000 | G16: 0 | H16: 58500 | I16: 0 | J16: 0 | K16: 0 | L16: 0 | M16: 0 | N16: 114517
B17: 房租费 | C17: 2031 | D17: 0 | E17: 10560 | F17: 0 | G17: 0 | H17: 0 | I17: 0 | J17: 460 | K17: 0 | L17: 0 | M17: 0 | N17: 13051
B18: 复印机月租费 | C18: 720 | D18: 0 | E18: 0 | F18: 0 | G18: 0 | H18: 0 | I18: 0 | J18: 0 | K18: 0 | L18: 0 | M18: 0 | N18: 720
B19: 市内交通费 | C19: 977 | D19: 2604.94 | E19: 223547.35 | F19: 5104 | G19: 8055 | H19: 382 | I19: 3973.2 | J19: 103522.51 | K19: 612 | L19: 1700 | M19: 218 | N19: 350696
B20: 水电费 | C20: 0 | D20: 0 | E20: 799.1 | F20: 0 | G20: 0 | H20: 0 | I20: 0 | J20: 225 | K20: 0 | L20: 0 | M20: 0 | N20: 1024.1
B21: 易耗品 | C21: 3290.9 | D21: 1503 | E21: 30436 | F21: 2012.8 | G21: 664 | H21: 7042 | I21: 1331 | J21: 22850.3 | K21: 25 | L21: 0 | M21: 0 | N21: 69155
B22: 办公用品 | C22: 25386.4 | D22: 7921.5 | E22: 31193.6 | F22: 12480.4 | G22: 1947 | H22: 47753.7 | I22: 12708 | J22: 62810.37 | K22: 6316 | L22: 0 | M22: 0 | N22: 208516.97
B23: 资质或证件类使用费 | C23: 0 | D23: 300 | E23: 0 | F23: 0 | G23: 0 | H23: 0 | I23: 0 | J23: 170469.28 | K23: 0 | L23: 0 | M23: 0 | N23: 170769.28
B24: 快递费 | C24: 9829 | D24: 245 | E24: 54 | F24: 609.5 | G24: 610 | H24: 3113 | I24: 0 | J24: 650 | K24: 135 | L24: 0 | M24: 0 | N24: 15245.5
B25: 饮用水费 | C25: 13998.5 | D25: 0 | E25: 0 | F25: 0 | G25: 0 | H25: 0 | I25: 0 | J25: 2073 | K25: 0 | L25: 0 | M25: 0 | N25: 16071.5
A26: 报关代理费 | B26: 免税表打单费 | C26: 0 | D26: 0 | E26: 0 | F26: 0 | G26: 0 | H26: 0 | I26: 0 | J26: 270 | K26: 0 | L26: 0 | M26: 0 | N26: 270
B27: 报关单打单费 | C27: 0 | D27: 0 | E27: 0 | F27: 0 | G27: 0 | H27: 0 | I27: 0 | J27: 18371 | K27: 0 | L27: 0 | M27: 0 | N27: 18371
A28: 操作费 | B28: 操作费 | C28: 0 | D28: 0 | E28: 4692 | F28: 689306 | G28: 0 | H28: 0 | I28: 0 | J28: 468671 | K28: 0 | L28: 0 | M28: 0 | N28: 1162669
A29: 差旅费 | B29: 住宿费 | C29: 3772 | D29: 2840 | E29: 195261 | F29: 139087.13 | G29: 19154 | H29: 220255.74 | I29: 134524.08 | J29: 115978.75 | K29: 23186.74 | L29: 0 | M29: 2300.01 | N29: 856359.45
B30: 其他 | C30: 30 | D30: 0 | E30: 6300 | F30: 4008.88 | G30: 6267.9 | H30: 31747.5 | I30: 5419 | J30: 48486 | K30: 180 | L30: 0 | M30: 0 | N30: 102439.28
B31: 礼品费 | C31: 0 | D31: 0 | E31: 3846 | F31: 0 | G31: 0 | H31: 0 | I31: 0 | J31: 2050 | K31: 0 | L31: 0 | M31: 0 | N31: 5896
B32: 交通费 | C32: 31910 | D32: 995.4 | E32: 33492.9 | F32: 8573.2 | G32: 6512 | H32: 25300.85 | I32: 76759.86 | J32: 32417.47 | K32: 59445.95 | L32: 0 | M32: 405 | N32: 275812.63
B33: 餐费 | C33: 11582 | D33: 400 | E33: 64495.6 | F33: 29173.37 | G33: 3519 | H33: 10822.5 | I33: 40212.8 | J33: 39595 | K33: 7212 | L33: 0 | M33: 542.5 | N33: 207554.77
A34: 车辆费用 | B34: 车辆年审费 | C34: 2435 | D34: 0 | E34: 70 | F34: 0 | G34: 0 | H34: 0 | I34: 0 | J34: 0 | K34: 0 | L34: 0 | M34: 0 | N34: 2505
B35: 停车费 | C35: 9079 | D35: 0 | E35: 1158 | F35: 2848 | G35: 10 | H35: 0 | I35: 451.5 | J35: 7781.5 | K35: 0 | L35: 0 | M35: 2977 | N35: 24305
B36: 汽车油费 | C36: 159971.87 | D36: 0 | E36: 173138.1 | F36: 54895.04 | G36: 10250 | H36: 8979 | I36: 18079 | J36: 426022.49 | K36: 800 | L36: 0 | M36: 0 | N36: 852135.5
B37: 外租车辆费 | C37: 1342 | D37: 0 | E37: 130 | F37: 0 | G37: 0 | H37: 13000 | I37: 0 | J37: 18873.32 | K37: 0 | L37: 0 | M37: 0 | N37: 33345.32
B38: 车辆维修费 | C38: 12433.81 | D38: 0 | E38: 50 | F38: 71845.71 | G38: 0 | H38: 0 | I38: 0 | J38: 7685.9 | K38: 0 | L38: 0 | M38: 120 | N38: 92135.42
B39: 车辆保养费 | C39: 3695 | D39: 0 | E39: 0 | F39: 8327 | G39: 0 | H39: 0 | I39: 0 | J39: 0 | K39: 0 | L39: 0 | M39: 1510 | N39: 13532
B40: 年票费 | C40: 18725 | D40: 0 | E40: 50 | F40: 2940 | G40: 0 | H40: 0 | I40: 0 | J40: 3760 | K40: 0 | L40: 0 | M40: 0 | N40: 25475
C41: 2193 | D41: 0 | E41: 0 | F41: 3420 | G41: 0 | H41: 0 | I41: 0 | J41: 0 | K41: 0 | L41: 0 | M41: 0 | N41: 5613
B42: 路桥费 | C42: 12803 | D42: 0 | E42: 30710 | F42: 10208.66 | G42: 86 | H42: 14660 | I42: 9217 | J42: 171525.58 | K42: 120 | L42: 0 | M42: 310 | N42: 249640.24
B43: 车辆保险费 | C43: 16525.66 | D43: 0 | E43: 0 | F43: 8500 | G43: 0 | H43: 0 | I43: 0 | J43: 13283.45 | K43: 0 | L43: 0 | M43: 0 | N43: 38309.11
A44: 船公司费用 | B44: 出口封条费 | C44: 0 | D44: 0 | E44: 0 | F44: 0 | G44: 0 | H44: 0 | I44: 0 | J44: 0 | K44: 400 | L44: 0 | M44: 0 | N44: 400
A45: 搭架材料及人工费 | B45: 工人费 | C45: 0 | D45: 0 | E45: 4723 | F45: 0 | G45: 0 | H45: 0 | I45: 0 | J45: 17440 | K45: 500 | L45: 0 | M45: 0 | N45: 22663
A46: 港建费 | B46: 内贸港建费 | C46: 0 | D46: 0 | E46: 16248 | F46: 0 | G46: 8658 | H46: 0 | I46: 0 | J46: 0 | K46: 900 | L46: 0 | M46: 0 | N46: 25806
A47: 港口费 | B47: 工本费 | C47: 0 | D47: 0 | E47: 9036 | F47: 0 | G47: 0 | H47: 0 | I47: 0 | J47: 20 | K47: 0 | L47: 0 | M47: 0 | N47: 9056
B48: 装卸车费 | C48: 0 | D48: 0 | E48: 0 | F48: 0 | G48: 0 | H48: 0 | I48: 0 | J48: 140 | K48: 0 | L48: 0 | M48: 0 | N48: 140
B49: 吊柜费 | C49: 0 | D49: 0 | E49: 225 | F49: 0 | G49: 0 | H49: 0 | I49: 0 | J49: 0 | K49: 0 | L49: 0 | M49: 0 | N49: 225
B50: 工时费 | C50: 0 | D50: 0 | E50: 200 | F50: 0 | G50: 0 | H50: 0 | I50: 0 | J50: 200 | K50: 0 | L50: 0 | M50: 0 | N50: 400
B51: 内贸港建费 | C51: 0 | D51: 0 | E51: 170 | F51: 0 | G51: 0 | H51: 0 | I51: 0 | J51: 0 | K51: 0 | L51: 0 | M51: 0 | N51: 170
B52: 抽样吊柜费 | C52: 0 | D52: 0 | E52: 0 | F52: 0 | G52: 0 | H52: 0 | I52: 0 | J52: 3965 | K52: 0 | L52: 0 | M52: 0 | N52: 3965
A53: 海关费用 | B53: 操作费 | C53: 0 | D53: 0 | E53: 0 | F53: 0 | G53: 0 | H53: 0 | I53: 0 | J53: 2400 | K53: 0 | L53: 0 | M53: 0 | N53: 2400
A54: 其他 | B54: 其他 | C54: 22 | D54: 0 | E54: 1860 | F54: 1850 | G54: 0 | H54: 9000 | I54: 0 | J54: 36484 | K54: 32 | L54: 0 | M54: 0 | N54: 49248
A55: 商检费用 | B55: 抽样费 | C55: 0 | D55: 0 | E55: 0 | F55: 0 | G55: 0 | H55: 0 | I55: 0 | J55: 28480 | K55: 0 | L55: 0 | M55: 0 | N55: 28480
B56: 水尺费 | C56: 0 | D56: 0 | E56: 0 | F56: 0 | G56: 0 | H56: 0 | I56: 0 | J56: 200 | K56: 0 | L56: 0 | M56: 0 | N56: 200
B57: 大飞 | C57: 0 | D57: 0 | E57: 26840 | F57: 0 | G57: 0 | H57: 0 | I57: 0 | J57: 56550 | K57: 0 | L57: 0 | M57: 0 | N57: 83390
B58: 检测费 | C58: 0 | D58: 0 | E58: 0 | F58: 0 | G58: 0 | H58: 0 | I58: 0 | J58: 84140 | K58: 0 | L58: 0 | M58: 0 | N58: 84140
B59: 商检费 | C59: 0 | D59: 0 | E59: 0 | F59: 0 | G59: 0 | H59: 0 | I59: 0 | J59: 1766 | K59: 0 | L59: 0 | M59: 0 | N59: 1766
B60: 消毒自理费 | C60: 0 | D60: 0 | E60: 0 | F60: 0 | G60: 0 | H60: 0 | I60: 0 | J60: 238982 | K60: 0 | L60: 0 | M60: 0 | N60: 238982
B61: 水船费 | C61: 0 | D61: 0 | E61: 0 | F61: 0 | G61: 0 | H61: 0 | I61: 0 | J61: 73500 | K61: 0 | L61: 0 | M61: 0 | N61: 73500
B62: 消毒费 | C62: 0 | D62: 0 | E62: 0 | F62: 0 | G62: 0 | H62: 0 | I62: 0 | J62: 3080 | K62: 200 | L62: 0 | M62: 0 | N62: 3280
B63: 操作费 | C63: 0 | D63: 0 | E63: 3200 | F63: 0 | G63: 0 | H63: 0 | I63: 0 | J63: 1533970.5 | K63: 0 | L63: 0 | M63: 0 | N63: 1537170.5
A64: 税费 | B64: 车船税 | C64: 3600 | D64: 14724 | E64: 0 | F64: 3000 | G64: 0 | H64: 0 | I64: 0 | J64: 0 | K64: 0 | L64: 0 | M64: 0 | N64: 21324
B65: 印花税 | C65: 0 | D65: 1500 | E65: 0 | F65: 0 | G65: 0 | H65: 0 | I65: 0 | J65: 0 | K65: 0 | L65: 0 | M65: 0 | N65: 1500
A66: 铁路运杂费 | B66: 其他杂费 | C66: 0 | D66: 0 | E66: 250 | F66: 0 | G66: 0 | H66: 0 | I66: 0 | J66: 0 | K66: 0 | L66: 0 | M66: 0 | N66: 250
A67: 通讯费 | B67: 电话费 | C67: 1670.54 | D67: 0 | E67: 32858 | F67: 0 | G67: 2900 | H67: 0 | I67: 1250 | J67: 1493 | K67: 3050 | L67: 0 | M67: 0 | N67: 43221.54
A68: 外包费 | B68: 外包装卸费 | C68: 0 | D68: 0 | E68: 400 | F68: 0 | G68: 0 | H68: 124299 | I68: 0 | J68: 451657 | K68: 0 | L68: 0 | M68: 0 | N68: 576356
A69: 物料费 | B69: 封条 | C69: 0 | D69: 0 | E69: 11200 | F69: 0 | G69: 0 | H69: 0 | I69: 0 | J69: 0 | K69: 0 | L69: 0 | M69: 0 | N69: 11200
B70: 小包装袋 | C70: 0 | D70: 0 | E70: 300 | F70: 0 | G70: 0 | H70: 0 | I70: 0 | J70: 0 | K70: 0 | L70: 0 | M70: 0 | N70: 300
A71: 招待费用 | B71: 娱乐费 | C71: 0 | D71: 0 | E71: 30646 | F71: 0 | G71: 0 | H71: 17195 | I71: 0 | J71: 215855.35 | K71: 0 | L71: 0 | M71: 0 | N71: 263696.35
B72: 文体活动费 | C72: 0 | D72: 0 | E72: 151869.33 | F72: 103653 | G72: 0 | H72: 19983 | I72: 22353.98 | J72: 105893.8 | K72: 0 | L72: 0 | M72: 3680 | N72: 407433.11
B73: 招待费 | C73: 0 | D73: 0 | E73: 1264 | F73: 0 | G73: 1900 | H73: 1502941.11 | I73: 0 | J73: 3917 | K73: 0 | L73: 0 | M73: 0 | N73: 1510022.11
B74: 路桥费 | C74: 0 | D74: 0 | E74: 295 | F74: 0 | G74: 0 | H74: 1902 | I74: 0 | J74: 3983 | K74: 0 | L74: 0 | M74: 0 | N74: 6180
B75: 餐费 | C75: 7011.6 | D75: 1346 | E75: 515036.22 | F75: 108006.02 | G75: 19057 | H75: 235128.5 | I75: 107316.13 | J75: 2055795.06 | K75: 12806.5 | L75: 0 | M75: 4432.4 | N75: 3065935.43
B76: 其他 | C76: 47400 | D76: 0 | E76: 6864 | F76: 59117 | G76: 0 | H76: 551883.74 | I76: 2288 | J76: 92818.7 | K76: 67 | L76: 0 | M76: 0 | N76: 760438.44
B77: 礼品费 | C77: 43060.4 | D77: 680 | E77: 151664.4 | F77: 153424.74 | G77: 1660 | H77: 157845.4 | I77: 53826 | J77: 945377.21 | K77: 3069 | L77: 0 | M77: 0 | N77: 1510607.15
A78: 职工福利费 | B78: 工人餐费及水费 | C78: 2976 | D78: 0 | E78: 1584 | F78: 0 | G78: 390 | H78: 0 | I78: 0 | J78: 0 | K78: 350 | L78: 0 | M78: 0 | N78: 5300
B79: 药品及其他保健 | C79: 1172.8 | D79: 0 | E79: 0 | F79: 0 | G79: 0 | H79: 0 | I79: 1735 | J79: 0 | K79: 300 | L79: 0 | M79: 0 | N79: 3207.8
B80: 工作误餐费 | C80: 32587 | D80: 13532.28 | E80: 2714 | F80: 9352 | G80: 658.5 | H80: 662 | I80: 0 | J80: 1174 | K80: 14064.2 | L80: 0 | M80: 1313 | N80: 76056.98
B81: 部门活动费 | C81: 30236.6 | D81: 0 | E81: 57153 | F81: 1779 | G81: 0 | H81: 0 | I81: 0 | J81: 0 | K81: 799 | L81: 0 | M81: 0 | N81: 89967.6
B82: 部门餐费 | C82: 5746 | D82: 2864.5 | E82: 17738 | F82: 5051.5 | G82: 0 | H82: 2415 | I82: 776 | J82: 5359 | K82: 16282.5 | L82: 0 | M82: 0 | N82: 56232.5
B83: 体检费 | C83: 0 | D83: 240 | E83: 0 | F83: 0 | G83: 0 | H83: 0 | I83: 0 | J83: 0 | K83: 0 | L83: 0 | M83: 0 | N83: 240
A84: 职工教育经费 | B84: 资料及书费 | C84: 0 | D84: 0 | E84: 0 | F84: 0 | G84: 0 | H84: 0 | I84: 0 | J84: 0 | K84: 1880 | L84: 0 | M84: 0 | N84: 1880
B85: 培训费 | C85: 45567 | D85: 0 | E85: 0 | F85: 0 | G85: 0 | H85: 0 | I85: 1500 | J85: 800 | K85: 0 | L85: 0 | M85: 0 | N85: 47867
A86: 资产采购 | B86: 电子设备 | C86: 9045 | D86: 0 | E86: 4600 | F86: 0 | G86: 16500 | H86: 0 | I86: 0 | J86: 0 | K86: 0 | L86: 0 | M86: 0 | N86: 30145
B87: 办公用具 | C87: 2682 | D87: 0 | E87: 9499 | F87: 0 | G87: 600 | H87: 0 | I87: 0 | J87: 100 | K87: 0 | L87: 0 | M87: 0 | N87: 12881
B88: 车辆购置税 | C88: 82317 | D88: 0 | E88: 0 | F88: 0 | G88: 0 | H88: 0 | I88: 0 | J88: 0 | K88: 0 | L88: 0 | M88: 0 | N88: 82317
B89: 合计 | C89: 714614.38 | D89: 52691.62 | E89: 1871262.6 | F89: 1532572.95 | G89: 109398.4 | H89: 3099662.34 | I89: 493720.55 | J89: 7716170.84 | K89: 154940.89 | L89: 1700 | M89: 17807.91 | N89: 15764542.48

Sheet 关联交易统计表
A1: 关联交易统计表
A2: 查询日期： | D2: 统计公司名称：各公司帐套名（或不选，则是股份内所有公司）
A3: 统计公司名称 | B3: 核算科目 | C3: 本月交易金额 | D3: 本年累计金额 | E3: 对方单位 | F3: 对方科目 | G3: 对方本月交易金额 | H3: 对方本年累计金额 | I3: 差异金额
A4: 侨益物流股份有限公司 | B4: 主营业务成本 | E4: 生生物流 | F4: 主营业务收入
B5: 存货
A7: 1、该统计表无法查询出数据。

Sheet 关联应收应付统计表
A1: 关联应收应付统计表
A2: 查询日期： | D2: 统计公司名称：各公司帐套名（或不选，则是股份内所有公司）
A3: 统计公司名称 | B3: 核算科目 | C3: 本月交易金额 | D3: 期末余额 | E3: 对方单位 | F3: 对方科目 | G3: 对方本月交易金额 | H3: 期末余额 | I3: 差异金额
A4: 侨益物流股份有限公司 | B4: 应付帐款 | E4: 生生物流 | F4: 应收帐款 | I4: =D4-H4 -> 0

Sheet 协同业务明细表
A1: 搜索条件
A2: 业务号： | C2: 事业部：全部/货代/船代/运输/仓储 | I2: 公司名： | J2: 选帐套名 | M2: 日期： | N2: ***年***月**日---***年***月**日
A3: 经营单位： | C3: 船名：
B5: 业务号 | C5: 经营单位 | D5: 船名 | E5: 货名 | F5: 货吨 | G5: 事业部 | H5: 公司名 | I5: 收入 | J5: 成本 | K5: 公摊成本 | L5: 毛利

Sheet 业务员业绩统计表
A1: 搜索条件
A2: 业务员 | D2: 业务号： | F2: 事业部：全部/货代/船代/运输/仓储 | K2: 公司名： | L2: 选帐套名 | O2: 日期： | P2: ***年***月**日---***年***月**日
A3: 经营单位： | C3: 船名：
A4: 公摊成本： 元/吨
A5: 业务员 | B5: 业务号 | C5: 经营单位 | D5: 船名 | E5: 货名 | F5: 货吨 | G5: 入仓吨数 | H5: 入仓地点 | I5: 事业部 | J5: 公司名 | K5: 收入 | L5: 成本 | M5: 公摊成本 | N5: 毛利

Sheet 分货名毛利统计表
A1: 分货名毛利统计表
A2: 统计口径：分别按经营单位、结算单位（发票抬头）进行统计
A3: 搜索条件
A4: 货名 | B4: 业务类型 | D4: 事业部：货代/船代/运输/仓储/全部 | F4: 经营单位 | G4: 结算单位（发票抬头） | I4: 公司名： | J4: 选账套名 | L4: 日期： | M4: ***年***月**日---***年***月**日
A6: 可按Excel表格形式导出数据
A8: 事业部 | B8: 本公司名称 | C8: 月份 | D8: 经营单位/结算单位（发票抬头） | E8: 货名 | F8: 业务类型 | G8: 货吨 | H8: 收入（a） | I8: 成本（b） | J8: 毛利（c=a-b）
J9: =H9-I9 -> 0
J10: =H10-I10 -> 0
J11: 0
J12: 0
J13: 0
J14: 0
J15: 0
J16: 0
J17: 0
J18: 0
J19: 0
J20: 0
J21: 0
J22: 0
J23: 0
J24: 0
J25: 0
J26: 0
A27: 合计 | G27: =SUM(G9:G26) -> 0 | H27: =SUM(H9:H26) -> 0 | I27: =SUM(I9:I26) -> 0 | J27: =SUM(J9:J26) -> 0
A30: 1、分货类单吨毛利明细表未完成，无货名货类，等于要人为导出该表后按照业务号去匹配货名并汇总整理出数据。

Sheet 业务完结情况表
A1: 到港时间 | B1: 业务类型 | C1: 是否入仓 | D1: 到港业务量 | F1: 已达权责业务量 | Q1: 剩余未达权责业务量
F2: 2019-01-01 | H2: 2019-02-01 | J2: 2019-03-01 | L2: 。。。 | N2: 合计
D3: 票数 | E3: 货量 | F3: 票数 | G3: 货量 | H3: 票数 | I3: 货量 | J3: 票数 | K3: 货量 | L3: 票数 | M3: 货量 | N3: 票数 | O3: 货量 | P3: 完结货量% | Q3: 票数 | R3: 货量
A4: 2019-01-01 | B4: 集装箱 | C4: 是 | D4: 78 | E4: 58543.901 | F4: 11 | G4: 3837.71 | H4: 13 | I4: 10135.53 | N4: =SUM(F4,H4) -> 24 | O4: =SUM(G4,I4) -> 13973.24 | P4: =O4/E4 -> 0.2386796876 | Q4: =D4-N4 -> 54 | R4: =E4-O4 -> 44570.661
C5: 否 | D5: 92 | E5: 47954.758 | F5: 49 | G5: 21676.062 | H5: 24 | I5: 12151.081 | N5: =SUM(F5,H5) -> 73 | O5: =SUM(G5,I5) -> 33827.143 | P5: =O5/E5 -> 0.7053970119 | Q5: =D5-N5 -> 19 | R5: =E5-O5 -> 14127.615
B6: 集装箱小计 | D6: =SUM(D4:D5) -> 170 | E6: =SUM(E4:E5) -> 106498.659 | F6: 60 | G6: 25513.772 | H6: 37 | I6: 22286.611 | N6: 97 | O6: 47800.383 | P6: 0.4488355389 | Q6: 73 | R6: 58698.276
B7: 散船 | C7: 是 | D7: 7 | E7: 59234.76 | F7: 3 | G7: 6015.76 | H7: 1 | I7: 5665 | N7: =SUM(F7,H7) -> 4 | O7: =SUM(G7,I7) -> 11680.76 | P7: 0.1971943501 | Q7: =D7-N7 -> 3 | R7: =E7-O7 -> 47554
C8: 否 | D8: 8 | E8: 204598.188 | F8: 1 | G8: 7000 | N8: =SUM(F8,H8) -> 1 | O8: =SUM(G8,I8) -> 7000 | P8: 0.03421340173 | Q8: =D8-N8 -> 7 | R8: =E8-O8 -> 197598.188
B9: 散船小计 | D9: =SUM(D7:D8) -> 15 | E9: =SUM(E7:E8) -> 263832.948 | F9: 4 | G9: 13015.76 | H9: 1 | I9: 5665 | N9: 5 | O9: 18680.76 | P9: 0.07080525818 | Q9: =SUM(Q7:Q8) -> 10 | R9: =SUM(R7:R8) -> 245152.188
B10: 小计 | C10: 是 | D10: =SUM(D4,D7) -> 85 | E10: =SUM(E4,E7) -> 117778.661 | F10: 14 | G10: 9853.47 | H10: 14 | I10: 15800.53 | N10: 28 | O10: 25654 | P10: 0.2178153477 | Q10: 57 | R10: 92124.661
C11: 否 | D11: =SUM(D5,D8) -> 100 | E11: 252552.946 | F11: 50 | G11: 28676.062 | H11: 24 | I11: 12151.081 | N11: 74 | O11: 40827.143 | P11: 0.1616577579 | Q11: 26 | R11: 211725.803
B12: 2019年1月合计 | D12: =SUM(D10:D11) -> 185 | E12: =SUM(E10:E11) -> 370331.607 | F12: 64 | G12: 38529.532 | H12: 38 | I12: 27951.611 | N12: 102 | O12: 66481.143 | P12: 0.1795178746 | Q12: =SUM(Q10:Q11) -> 83 | R12: =SUM(R10:R11) -> 303850.464
A13: 2019-02-01 | B13: 集装箱 | C13: 是 | D13: 29 | E13: 18264.832 | H13: 1 | I13: 2.06 | N13: =SUM(F13,H13) -> 1 | O13: =SUM(G13,I13) -> 2.06 | P13: 0.0001127850505 | Q13: =D13-N13 -> 28 | R13: =E13-O13 -> 18262.772
C14: 否 | D14: 59 | E14: 33227.634 | H14: 8 | I14: 1412.05 | N14: =SUM(F14,H14) -> 8 | O14: =SUM(G14,I14) -> 1412.05 | P14: 0.04249625477 | Q14: =D14-N14 -> 51 | R14: =E14-O14 -> 31815.584
B15: 集装箱小计 | D15: =SUM(D13:D14) -> 88 | E15: =SUM(E13:E14) -> 51492.466 | F15: 0 | G15: 0 | H15: 9 | I15: 1414.11 | N15: 9 | O15: 1414.11 | P15: 0.02746246412 | Q15: =SUM(Q13:Q14) -> 79 | R15: =SUM(R13:R14) -> 50078.356
B16: 散船 | C16: 是 | D16: 2 | E16: 10699.39 | N16: =SUM(F16,H16) -> 0 | O16: =SUM(G16,I16) -> 0 | P16: 0 | Q16: =D16-N16 -> 2 | R16: =E16-O16 -> 10699.39
C17: 否 | D17: 6 | E17: 149646.172 | N17: =SUM(F17,H17) -> 0 | O17: =SUM(G17,I17) -> 0 | P17: 0 | Q17: =D17-N17 -> 6 | R17: =E17-O17 -> 149646.172
B18: 散船小计 | D18: =SUM(D16:D17) -> 8 | E18: =SUM(E16:E17) -> 160345.562 | F18: 0 | G18: 0 | H18: 0 | I18: 0 | N18: 0 | O18: 0 | P18: 0 | Q18: =SUM(Q16:Q17) -> 8 | R18: =SUM(R16:R17) -> 160345.562
B19: 小计 | C19: 是 | D19: =SUM(D13,D16) -> 31 | E19: =SUM(E13,E16) -> 28964.222 | F19: 0 | G19: 0 | H19: 1 | I19: 2.06 | N19: 1 | O19: 2.06 | P19: 7.112222797e-05 | Q19: 30 | R19: 28962.162
C20: 否 | D20: =SUM(D14,D17) -> 65 | E20: 182873.806 | F20: 0 | G20: 0 | H20: 8 | I20: 1412.05 | N20: 8 | O20: 1412.05 | P20: 0.007721444809 | Q20: 57 | R20: 181461.756
B21: 2019年2月合计 | D21: =SUM(D19:D20) -> 96 | E21: =SUM(E19:E20) -> 211838.028 | F21: 0 | G21: 0 | H21: 9 | I21: 1414.11 | N21: 9 | O21: 1414.11 | P21: 0.006675430343 | Q21: =SUM(Q19:Q20) -> 87 | R21: =SUM(R19:R20) -> 210423.918
A22: 。。。 | B22: 集装箱 | C22: 是 | N22: =SUM(F22,H22) -> 0 | O22: =SUM(G22,I22) -> 0 | P22: =O22/E22 ->  | Q22: =D22-N22 -> 0 | R22: =E22-O22 -> 0
C23: 否 | N23: =SUM(F23,H23) -> 0 | O23: =SUM(G23,I23) -> 0 | Q23: =D23-N23 -> 0 | R23: =E23-O23 -> 0
B24: 集装箱小计 | N24: =SUM(N22:N23) -> 0 | O24: =SUM(O22:O23) -> 0 | Q24: =SUM(Q22:Q23) -> 0 | R24: =SUM(R22:R23) -> 0
B25: 散船 | C25: 是 | N25: =SUM(F25,H25) -> 0 | O25: =SUM(G25,I25) -> 0 | Q25: =D25-N25 -> 0 | R25: =E25-O25 -> 0
C26: 否 | N26: =SUM(F26,H26) -> 0 | O26: =SUM(G26,I26) -> 0 | Q26: =D26-N26 -> 0 | R26: =E26-O26 -> 0
B27: 散船小计 | N27: =SUM(N25:N26) -> 0 | O27: =SUM(O25:O26) -> 0 | Q27: =SUM(Q25:Q26) -> 0 | R27: =SUM(R25:R26) -> 0
B28: 小计 | C28: 是 | N28: =SUM(N22,N25) -> 0 | O28: =SUM(O22,O25) -> 0 | Q28: =SUM(Q22,Q25) -> 0 | R28: =SUM(R22,R25) -> 0
C29: 否 | N29: =SUM(N23,N26) -> 0 | O29: =SUM(O23,O26) -> 0 | Q29: =SUM(Q23,Q26) -> 0 | R29: =SUM(R23,R26) -> 0
B30: 。。。 | N30: =SUM(N28:N29) -> 0 | O30: =SUM(O28:O29) -> 0 | Q30: =SUM(Q28:Q29) -> 0 | R30: =SUM(R28:R29) -> 0
A31: 合计 | B31: 集装箱 | C31: 是 | D31: =SUM(D4,D13) -> 107 | E31: 76808.733 | F31: 11 | G31: 3837.71 | H31: 14 | I31: 10137.59 | N31: =SUM(N4,N13) -> 25 | O31: =SUM(O4,O13) -> 13975.3 | P31: 0.1819493625 | Q31: =SUM(Q4,Q13) -> 82 | R31: =SUM(R4,R13) -> 62833.433
C32: 否 | D32: =SUM(D5,D14) -> 151 | E32: 81182.392 | F32: 49 | G32: 21676.062 | H32: 32 | I32: 13563.131 | N32: =SUM(N5,N14) -> 81 | O32: =SUM(O5,O14) -> 35239.193 | P32: 0.4340743372 | Q32: =SUM(Q5,Q14) -> 70 | R32: =SUM(R5,R14) -> 45943.199
B33: 集装箱合计 | D33: =SUM(D31:D32) -> 258 | E33: =SUM(E31:E32) -> 157991.125 | F33: 60 | G33: 25513.772 | H33: 46 | I33: 23700.721 | N33: 106 | O33: 49214.493 | P33: 0.3115016302 | Q33: =SUM(Q31:Q32) -> 152 | R33: =SUM(R31:R32) -> 108776.632
B34: 散船 | C34: 是 | D34: =SUM(D7,D16) -> 9 | E34: 69934.15 | F34: 3 | G34: 6015.76 | H34: 1 | I34: 5665 | N34: =SUM(N7,N16) -> 4 | O34: =SUM(O7,O16) -> 11680.76 | P34: 0.1670251229 | Q34: =SUM(Q7,Q16) -> 5 | R34: =SUM(R7,R16) -> 58253.39
C35: 否 | D35: =SUM(D8,D17) -> 14 | E35: 354244.36 | F35: 1 | G35: 7000 | H35: 0 | I35: 0 | N35: =SUM(N8,N17) -> 1 | O35: =SUM(O8,O17) -> 7000 | P35: 0.01976037106 | Q35: =SUM(Q8,Q17) -> 13 | R35: =SUM(R8,R17) -> 347244.36
B36: 散船合计 | D36: =SUM(D34:D35) -> 23 | E36: =SUM(E34:E35) -> 424178.51 | F36: 4 | G36: 13015.76 | H36: 1 | I36: 5665 | N36: 5 | O36: 18680.76 | P36: 0.04403985482 | Q36: 18 | R36: 405497.75
B37: 小计 | C37: 是 | D37: =SUM(D31,D34) -> 116 | E37: =SUM(E31,E34) -> 146742.883 | F37: 14 | G37: 9853.47 | H37: 15 | I37: 15802.59 | N37: 29 | O37: 25656.06 | P37: 0.1748368267 | Q37: 87 | R37: 121086.823
C38: 否 | D38: =SUM(D32,D35) -> 165 | E38: 435426.752 | F38: 50 | G38: 28676.062 | H38: 32 | I38: 13563.131 | N38: 82 | O38: 42239.193 | P38: 0.09700642601 | Q38: 83 | R38: 393187.559
B39: 合计 | D39: =SUM(D37:D38) -> 281 | E39: =SUM(E37:E38) -> 582169.635 | F39: 64 | G39: 38529.532 | H39: 47 | I39: 29365.721 | N39: 111 | O39: 67895.253 | P39: 0.1166245179 | Q39: =SUM(Q37:Q38) -> 170 | R39: =SUM(R37:R38) -> 514274.382

Sheet 月度回款统计
A1: 公司名： | B1: 选帐套名 | E1: 期间（会计期） | F1: ***年***月**日---***年***月**日
G3: 业务系统出纳取数
A4: 结算单位 | B4: 求和项:未收款金额 | C4: 求和项:未开票金额 | D4: 未收款比例 | E4: 未开票比例 | G4: 第一周回款 | H4: 第二周回款 | I4: 第三周回款 | J4: 第四周回款 | K4: 小计
A5: 厦门建发原材料贸易有限公司 | B5: 819.190777 | C5: 849.256183 | D5: 0.3184809628 | E5: 0.2578186885 | F5: =67252.2 -> 67252.2 | G5: =F5/10000 -> 6.72522 | K5: =SUM(G5:J5) -> 6.72522
A6: 厦门建发物产有限公司 | B6: 458.788409 | C6: 429.355602 | D6: 0.1783655021 | E6: 0.1303445302 | F6: 2095564.04 | G6: 209.556404 | K6: =SUM(G6:J6) -> 209.556404
A7: 深圳市中金岭南有色金属股份有限公司 | B7: 181.98909 | C7: 59.097171 | D7: 0.07075282355 | E7: 0.0179408233 | F7: 2434590.36 | G7: 243.459036 | K7: 243.459036
A8: 云南元佳富农业科技有限公司 | B8: 129.532482 | C8: 22.979274 | D8: 0.05035900152 | E8: 0.006976088492 | F8: =380000 -> 380000 | G8: 38 | K8: 38
A9: 天津建源供应链管理有限公司 | B9: 101.210719 | C9: 110.524846 | D9: 0.03934820574 | E9: 0.0335533275 | F9: 506858.73 | G9: 50.685873 | K9: 50.685873
A10: 湖南宇腾有色金属股份有限公司 | B10: 100.826996 | C10: 1214.490716 | D10: 0.03919902373 | E10: 0.3686972316 | G10: 0 | K10: 0
A11: 广州东凌贸易有限公司 | B11: 91.28042 | C11: 91.28042 | D11: 0.03548755292 | E11: 0.02771107075 | G11: 0 | K11: 0
A12: 双胞胎饲料有限公司 | B12: 89.707756 | C12: 89.138572 | D12: 0.03487614027 | E12: 0.02706084476 | F12: =5691.84 -> 5691.84 | G12: 0.569184 | H12: 0.6 | K12: 1.169184
A13: 深圳市盛康源贸易有限公司 | B13: 68.525518 | C13: 5.767297 | D13: 0.02664101394 | E13: 0.001750846186 | G13: 0 | H13: 35.5 | K13: 35.5
A14: 厦门市明穗粮油贸易有限公司 | B14: 64.155553 | C14: 55.981906 | D14: 0.02494208048 | E14: 0.01699508567 | G14: 0 | H14: 8.2 | K14: 8.2
A15: 新谷（上海）贸易有限公司 | B15: 55.91429 | C15: 55.91429 | D15: 0.02173808277 | E15: 0.01697455868 | G15: 0 | H15: 36.7 | K15: 36.7
A16: 厦门建发农产品有限公司 | B16: 47.019706 | C16: 30.447897 | D16: 0.01828009013 | E16: 0.009243426222 | F16: =165718.09 -> 165718.09 | G16: 16.571809 | K16: 16.571809
A17: 上海海申国际物流有限公司 | B17: 41.161859 | C17: 23.067334 | D17: 0.01600270514 | E17: 0.007002821902 | G17: 0 | K17: 0
A18: 广东恒兴饲料实业股份有限公司 | B18: 36.282794 | C18: 0 | D18: 0.01410584627 | E18: 0 | G18: 0 | K18: 0
A19: 中牧农业连锁发展有限公司 | B19: 35.298467 | C19: 43.59507 | D19: 0.01372316443 | E19: 0.01323466817 | G19: 0 | H19: 5.7 | I19: 预估仓租原因 | K19: 5.7
A20: 建发物流集团有限公司 | B20: 27.513352 | C20: 0 | D20: 0.0106965057 | E20: 0 | F20: 562645.28 | G20: 56.264528 | H20: =23.5+46.3 -> 69.8 | K20: 126.064528
A21: 中国国投国际贸易有限公司 | B21: 24.731452 | C21: 24.731452 | D21: 0.009614972319 | E21: 0.007508017776 | G21: 0 | K21: 0
A22: 广州东凌国际投资股份有限公司 | B22: 23.523222 | C22: 23.523222 | D22: 0.0091452426 | E22: 0.007141221184 | G22: 0 | K22: 0
A23: 安徽安粮国际发展有限公司 | B23: 22.471662 | C23: 5.016294 | D23: 0.008736422273 | E23: 0.001522855372 | G23: 0 | H23: 0.4 | K23: 0.4
A24: 北京嘉粮益谷饲料有限公司 | B24: 21.824813 | C24: 4.964939 | D24: 0.008484943483 | E24: 0.00150726493 | F24: =60000 -> 60000 | G24: 6 | H24: 10.5 | K24: 16.5
A25: 东莞嘉吉粮油有限公司 | B25: 19.976232 | C25: 0.211 | D25: 0.007766261251 | E25: 6.405575179e-05 | G25: 0 | K25: 0
A26: 东莞顶志食品有限公司 | B26: 16.031114 | C26: 6.922444 | D26: 0.006232497686 | E26: 0.002101527747 | F26: 91086.7 | G26: 9.10867 | K26: 9.10867
A27: 广州市中川货运运输代理有限公司 | B27: 14.554075 | C27: 14.554075 | D27: 0.005658261714 | E27: 0.004418351734 | F27: 119918.33 | G27: 11.991833 | K27: 11.991833
A28: 辽宁丰元天利农业生产资料有限公司 | B28: 14.510835 | C28: 0 | D28: 0.00564145108 | E28: 0 | G28: 0 | K28: 0
A29: 广州市粮食集团有限责任公司 | B29: 12.042696 | C29: 0 | D29: 0.004681900144 | E29: 0 | F29: 120426.96 | G29: 12.042696 | K29: 12.042696
A30: 招远市宝发食品有限公司 | B30: 12.017465 | C30: 0 | D30: 0.00467209096 | E30: 0 | G30: 0 | K30: 0
A31: 湖南湘利来化工有限公司 | B31: 10.075384 | C31: 8.786896 | D31: 0.003917058257 | E31: 0.002667541371 | G31: 0 | K31: 0
A32: 新兴铸管（上海）金属资源有限公司 | B32: 9.33008 | C32: 9.190007 | D32: 0.003627302625 | E32: 0.002789918518 | G32: 0 | K32: 0
A33: 湛江嘉泰贸易有限公司 | B33: 9.109525 | C33: 2.464685 | D33: 0.003541556344 | E33: 0.0007482334152 | F33: =50345.16 -> 50345.16 | G33: 5.034516 | H33: 3.7 | K33: 8.734516
A34: 福州建发实业有限公司 | B34: 8.898872 | C34: 2.547257 | D34: 0.003459659706 | E34: 0.0007733007685 | G34: 0 | H34: 2.1 | K34: 2.1
A35: 青岛建发国际货运代理有限公司 | B35: 7.780147 | C35: 0 | D35: 0.003024727295 | E35: 0 | G35: 0 | K35: 0
A36: 湛江嘉冠禾贸易有限公司 | B36: 7.598497 | C36: 1.076597 | D36: 0.002954106307 | E36: 0.0003268352143 | F36: =59041 -> 59041 | G36: 5.9041 | H36: 1.07 | K36: 6.9741
A37: 建发物流（青岛）有限公司 | B37: 7.396545 | C37: 0 | D37: 0.002875592395 | E37: 0 | G37: 0 | K37: 0
A38: 厦门启润实业有限公司 | B38: 7.042852 | C38: 7.042852 | D38: 0.00273808537 | E38: 0.00213808142 | G38: 0 | K38: 0
A39: 苏州环秀湖国际贸易有限公司 | B39: 6.712497 | C39: 0.01343 | D39: 0.002609651577 | E39: 4.077103064e-06 | G39: 0 | K39: 0
A40: 大连金易鸿嘉有限公司 | B40: 6.494525 | C40: 0 | D40: 0.0025249095 | E40: 0 | F40: 64945.25 | G40: 6.494525 | K40: 6.494525
A41: 成都金色纤维科技有限公司 | B41: 6.247305 | C41: 0.711646 | D41: 0.002428796524 | E41: 0.0002160427466 | G41: 0 | K41: 0
A42: 广州市富人米贸易有限公司 | B42: 5.3344 | C42: 5.3344 | D42: 0.002073881806 | E42: 0.001619426552 | G42: 0 | K42: 0
A43: 广州星屏食品有限公司 | B43: 4.329238 | C43: 0 | D43: 0.001683099865 | E43: 0 | F43: 43292.38 | G43: 4.329238 | K43: 4.329238
A44: 广东新供销天成供应链有限公司 | B44: 3.601054 | C44: 1.2631 | D44: 0.00140000007 | E44: 0.0003834541237 | G44: 0 | K44: 0
A45: 国投俊杰农产品（北京）有限公司 | B45: 3.382882 | C45: 3.382882 | D45: 0.001315180232 | E45: 0.001026981278 | G45: 0 | K45: 0
A46: 天津信隆海铁进出口贸易有限公司 | B46: 3.221522 | C46: 6.006122 | D46: 0.001252447483 | E46: 0.0018233491 | G46: 0 | K46: 0
A47: 漳州美豆饲料科技有限公司 | B47: 2.5 | C47: 2.5 | D47: 0.0009719377091 | E47: 0.0007589544052 | G47: 0 | K47: 0
A48: 荣成市蓝海海洋生物科技有限公司 | B48: 2.460779 | C48: 2.460779 | D48: 0.0009566895596 | E48: 0.0007470476249 | G48: 0 | K48: 0
A49: 广西双胞胎饲料有限公司 | B49: 1.476598 | C49: -0.061615 | D49: 0.0005740645098 | E49: -1.870519027e-05 | G49: 0 | K49: 0
A50: 重庆禾睿康粮油有限公司 | B50: 1.411598 | C50: 0 | D50: 0.0005487941305 | E50: 0 | G50: 0 | K50: 0
A51: 北大荒米业集团国际米业（北京）有限公司 | B51: 1.292266 | C51: 0 | D51: 0.0005024008212 | E51: 0 | F51: 12922.66 | G51: 1.292266 | K51: 1.292266
A52: 双胞胎（集团）股份有限公司 | B52: 0.639 | C52: 0.639 | D52: 0.000248427278 | E52: 0.000193988746 | G52: 0 | K52: 0
A53: 晋宇国际货代（中国）有限公司 | B53: 0.501621 | C53: 0.501621 | D53: 0.0001950177458 | E53: 0.0001522829871 | G53: 0 | K53: 0
A54: 建发物流集团有限公司 | B54: 0.385243 | C54: 78.186421 | D54: 0.0001497728795 | E54: 0.02373597146 | F54: 178182 | G54: 17.8182 | K54: 17.8182
A55: 双胞胎（集团）股份有限公司 | B55: 0.314063 | C55: 0.262837 | D55: 0.0001220998689 | E55: 7.979251959e-05 | G55: 0 | K55: 0
A56: 广东俊杰农产品有限公司 | B56: 0.285491 | C56: 0.285491 | D56: 0.0001109917874 | E56: 8.666986083e-05 | G56: 0 | K56: 0
A57: 青岛柏尊贸易有限公司 | B57: 0.218571 | C57: 0.218571 | D57: 8.497495864e-05 | E57: 6.635416932e-05 | G57: 0 | K57: 0
A58: 厦门港务贸易有限公司 | B58: 0.21632 | C58: 0 | D58: 8.409982593e-05 | E58: 0 | G58: 0 | K58: 0
A59: 广州江兆进出口有限公司 | B59: 0.191629 | C59: 0.936078 | D59: 7.450058035e-05 | E59: 0.0002841762087 | G59: 0 | K59: 0
A60: 广州半边旗化工有限公司 | B60: 0.181679 | C60: 0.34205 | D60: 7.063226828e-05 | E60: 0.0001038401417 | F60: 1816.79 | G60: 0.181679 | K60: 0.181679
A61: 通威股份有限公司 | B61: 0.15406 | C61: 0.15406 | D61: 5.989468927e-05 | E61: 4.676980626e-05 | G61: 0 | K61: 0
A62: 武汉东周化工有限公司 | B62: 0.125868 | C62: 0.742031 | D62: 4.893434213e-05 | E62: 0.0002252670785 | G62: 0 | K62: 0
A63: 上海海申国际物流有限公司 | B63: 0.063753 | C63: 0.26795 | D63: 2.478557786e-05 | E63: 8.134473314e-05 | G63: 0 | K63: 0
A64: 厦门夏商国际贸易有限公司 | B64: 0.00504 | C64: 0.00504 | D64: 1.959426418e-06 | E64: 1.530052081e-06 | G64: 0 | K64: 0
A65: 厦门国贸集团股份有限公司 | B65: -2.924029 | C65: -2.924029 | D65: -0.001136789617 | E65: -0.0008876818761 | G65: 0 | K65: 0
A66: 中粮饲料有限公司 | B66: -4.055324 | C66: 0.84936 | D66: -0.001576608927 | E66: 0.0002578502054 | G66: 0 | K66: 0
A67: 广州市华壬谷物贸易有限公司 | B67: -69.9 | C67: 0 | D67: -0.02717537829 | E67: 0 | G67: 0 | K67: 0
A68: 合计 | B68: =SUM(B5:B67) -> 2572.181305 | C68: =SUM(C5:C67) -> 3294.005523 | D68: =SUM(D5:D67) -> 1.000000001 | E68: =SUM(E5:E67) -> 1.000000001 | G68: =SUM(G5:G67) -> 702.029777 | H68: =SUM(H4:H67) -> 174.27
A70: 未收款比例数值 | B70: 未收款比例客户（单位：个）
A71: >1% | B71: 16
A72: >0.1% | B72: 26
A73: <0.1% | B73: 21

Sheet 港口对账单统计
K1: 应收款 | O1: 已收款 | P1: 未收款 | Q1: 已开票 | R1: 未开票 | S1: 应付款 | W1: 已付款 | X1: 未付款 | Y1: 已回票 | Z1: 未回票 | AA1: 已收款-已付款
A2: 卸货码头 | B2: 业务号 | C2: 客户 | D2: 信用额度 | E2: 配额 | F2: 结算单位 | G2: 船名 | H2: 到港日期 | I2: 货名 | J2: 货量 | K2: 港建费 | L2: 港口费 | M2: 堆存 | N2: 合计 | S2: 港建费 | T2: 港口费 | U2: 堆存 | V2: 合计
A3: 新港 | B3: QYB1705012 | C3: 厦门建发股份有限公司 | F3: 广州港股份有限公司新港分公司 | G3: 托帕斯 | H3: 2017.6.17 | I3: 玉米 | J3: 65300.068 | K3: 182843 | L3: =3246211 -> 3246211 | M3: =52764+23+45+1843+1925+10771+112044+50076+32814 -> 262305 | N3: =SUM(K3:M3) -> 3691359 | O3: =3182842+246212+251265+11040 -> 3691359 | P3: =N3-O3 -> 0 | S3: 182843 | T3: =3246211 -> 3246211 | U3: =52764+23+45+1843+1925+10771+112044+50076+32814 -> 262305 | V3: =SUM(S3:U3) -> 3691359 | W3: =3182842+246212+251265+11040 -> 3691359 | X3: =V3-W3 -> 0

Sheet 商务KPI
A1: 状态 | B1: 业务计费完结 | C1: 流向计费完结 | D1: 开票完结 | E1: 收款完结 | F1: 结算单位 | G1: 业务号 | H1: 头程提单号 | I1: 船名 | J1: 装卸码头 | K1: 货名 | L1: 柜量 | M1: 柜型 | N1: 吨数 | O1: 应收金额 | P1: 已收款金额 | Q1: 未收款金额 | R1: 已开票金额 | S1: 未开票金额 | T1: 请求报价时间 | U1: 报价时间 | V1: 报价时效标准天数 | W1: 标价时效 | X1: ATA卸货码头 | Y1: 业务完结时间 | Z1: 业务创建时间 | AA1: 流向完结日期 | AB1: 流向计费完结日期 | AC1: 流向计费时效标准天数 | AD1: 流向计费时效 | AE1: 清货完结日期 | AF1: 清货计费完成日期 | AG1: 清货计费时效标准天数 | AH1: 清货计费时效 | AI1: 收款完结日期 | AJ1: 流向收款时效标准天数 | AK1: 流向收款时效 | AL1: 清货收款时效标准天数 | AM1: 清货收款时效 | AN1: 商务员 | AO1: 计费员
A2: 业务完结 | B2: √ | C2: √ | D2: √ | E2: √ | F2: 福州建发实业有限公司 | G2: QYIC18060138F01 | H2: NSSLHCHGC1800103 | I2: 博石航88/520101807050 | J2: 黄埔老港码头 | K2: 米糠 | L2: 23 | M2: 20GP*23 | N2: 540.06 | O2: 43308.7 | P2: 43308.7 | Q2: 0 | R2: 43308.7 | S2: 0 | T2: 2018-06-29T13:15:26 | U2: 2018-06-29T16:11:59 | V2: 1 | W2: 0.1 | X2: 2018-07-05 | Y2: 2019-03-25 | Z2: 2018-06-29 | AA2: 2018-08-01 | AB2: 2018-08-02 | AC2: 3 | AD2: 2 | AE2: 2019-03-25 | AF2: 2018-09-27 | AG2: 3 | AH2: -178 | AI2: 2018-11-05 | AJ2: 70 | AK2: 96 | AL2: 70 | AM2: 40 | AN2: 周翠
A3: 业务完结 | C3: √ | F3: 云南元佳富农业科技有限公司 | G3: QYIC18070044F01 | H3: ONEYLIMU03093500 | I3: / | J3: 乌冲码头 | K3: 鱼粉 | L3: 18 | M3: 40HQ*18 | N3: 475.25 | O3: 178207.08 | P3: 0 | Q3: 178207.08 | R3: 144836.36 | S3: 33370.72 | T3: 2018-07-18T16:51:55 | U3: 2018-07-19T15:57:35 | V3: 1 | W3: 1 | X3: 2018-08-08 | Y3: 2019-03-26 | Z3: 2018-07-11 | AA3: 2018-09-02 | AB3: 2018-09-03 | AC3: 3 | AD3: 2 | AE3: 2019-03-26 | AG3: 3 | AJ3: 70 | AL3: 70 | AN3: 罗东明
A4: 业务完结 | C4: √ | F4: 云南元佳富农业科技有限公司 | G4: QYIC18080031F01 | H4: COSU8012088910 | I4: NORTHERN JASPER/0370-002W | J4: 乌冲码头 | K4: 鱼粉 | L4: 19 | M4: 40GP*19 | N4: 495.64 | O4: 119048.96 | P4: 0 | Q4: 119048.96 | R4: 116708.74 | S4: 2340.22 | T4: 2018-08-07T17:03:39 | U4: 2018-08-08T08:46:42 | V4: 1 | W4: 0.7 | X4: 2018-08-24 | Y4: 2019-03-21 | Z4: 2018-08-07 | AA4: 2018-08-30 | AB4: 2018-08-31 | AC4: 3 | AD4: 2 | AE4: 2019-03-21 | AG4: 3 | AJ4: 70 | AL4: 70 | AN4: 罗东明
A5: 业务完结 | C5: √ | F5: 云南元佳富农业科技有限公司 | G5: QYIC18080041F01 | H5: ONEYLIMU04336600 | I5: / | J5: 乌冲码头 | K5: 鱼粉 | L5: 19 | M5: 40HQ*19 | N5: 496.04 | O5: 143699.49 | P5: 0 | Q5: 143699.49 | R5: 123788.37 | S5: 19911.12 | T5: 2018-08-09T16:04:04 | U5: 2018-08-13T08:52:54 | V5: 1 | W5: 3.7 | X5: 2018-09-03 | Y5: 2019-03-21 | Z5: 2018-08-09 | AA5: 2018-09-30 | AB5: 2018-10-08 | AC5: 3 | AD5: 9 | AE5: 2019-03-21 | AG5: 3 | AJ5: 70 | AL5: 70 | AN5: 罗东明
A6: 业务完结 | C6: √ | F6: 中牧农业连锁发展有限公司 | G6: QYIC18080096F01 | H6: EGLV751800026119 | I6: / | J6: 乌冲码头 | K6: 鱼粉 | L6: 19 | M6: 40HQ*19 | N6: 497.39 | O6: 124398.17 | P6: 94070.59 | Q6: 30327.58 | R6: 94070.59 | S6: 30327.58 | T6: 2018-08-27T09:29:54 | U6: 2018-08-27T09:35:35 | V6: 1 | W6: 0 | X6: 2018-09-28 | Y6: 2019-03-28 | Z6: 2018-08-24 | AA6: 2018-10-19 | AB6: 2018-10-19 | AC6: 3 | AD6: 1 | AE6: 2019-03-28 | AG6: 3 | AJ6: 70 | AL6: 70 | AN6: 林彩凤
A7: 业务完结 | B7: √ | C7: √ | D7: √ | E7: √ | F7: 北京嘉粮益谷饲料有限公司 | G7: QYD18090038TH01 | H7: * | I7: / | K7: 米糠 | M7: 20GP*1 | N7: 22 | O7: 1028.97 | P7: 1028.97 | Q7: 0 | R7: 1028.97 | S7: 0 | T7: 2018-09-20T14:36:17 | U7: 2018-09-20T14:37:42 | V7: 1 | W7: 0 | Y7: 2019-03-27 | Z7: 2018-09-19 | AB7: 2018-10-11 | AC7: 3 | AE7: 2019-03-27 | AF7: 2018-10-11 | AG7: 3 | AH7: -166 | AI7: 2018-12-13 | AJ7: 70 | AK7: 64 | AL7: 70 | AM7: 64 | AN7: 罗东明
A8: 业务完结 | C8: √ | F8: 厦门建发物产有限公司 | G8: QYIC18100140F01 | H8: SMLMVAN8A0870400 | I8: / | J8: 南沙二期码头 | K8: 菜籽粕 | L8: 100 | M8: 20HQ*100 | N8: 2130.59 | O8: 225154.72 | P8: 225154.72 | Q8: 0 | R8: 225154.72 | S8: 0 | T8: 2018-10-30T18:18:01 | U8: 2018-10-30T18:27:31 | V8: 1 | W8: 0 | X8: 2018-11-05 | Y8: 2019-03-27 | Z8: 2018-10-25 | AA8: 2018-11-29 | AB8: 2018-12-05 | AC8: 3 | AD8: 7 | AE8: 2019-03-27 | AG8: 3 | AJ8: 70 | AL8: 70 | AN8: 周翠
A9: 业务完结 | C9: √ | F9: 上海海申国际物流有限公司 | G9: QYIC18110015F01 | H9: YMLUS505003528 | I9: / | J9: 乌冲码头 | K9: 低压高密度聚乙烯HDPE | L9: 5 | M9: 40HQ*5 | N9: 130.815 | O9: 17278.3 | P9: 17278.3 | Q9: 0 | R9: 17278.3 | S9: 0 | T9: 2018-11-02T18:47:27 | U9: 2018-11-05T08:41:37 | V9: 1 | W9: 2.6 | X9: 2018-11-12 | Y9: 2019-03-28 | Z9: 2018-11-02 | AA9: 2018-11-29 | AB9: 2018-11-30 | AC9: 3 | AD9: 2 | AE9: 2019-03-28 | AG9: 3 | AJ9: 70 | AL9: 70 | AN9: 罗东明
A10: 业务完结 | F10: 中粮饲料有限公司 | G10: QYIB18110030F01 | J10: 黄埔新港码头 | K10: 棕榈粕 | L10: 0 | N10: 3700 | O10: 513111.55 | P10: 463928.42 | Q10: 49183.13 | R10: 463928.42 | S10: 49183.13 | T10: 2018-11-26T10:57:12 | U10: 2018-11-26T11:27:56 | V10: 1 | W10: 0 | X10: 2019-01-11 | Y10: 2019-03-26 | Z10: 2018-11-26T10:56:03 | AC10: 3 | AE10: 2019-03-26 | AG10: 3 | AJ10: 70 | AL10: 70 | AN10: 罗东明
A11: 业务完结 | B11: √ | C11: √ | F11: 厦门国贸集团股份有限公司 | G11: QYIC18110128F01 | H11: OEA0147054 | I11: / | J11: 乌冲码头 | K11: 葵花籽粕 | L11: 9 | M11: 40HQ*9 | N11: 243.27 | O11: 60743.12 | P11: 29391.52 | Q11: 31351.6 | R11: 29391.52 | S11: 31351.6 | T11: 2018-12-06T10:40:06 | U11: 2018-12-25T15:05:11 | V11: 1 | W11: 19.2 | X11: 2019-01-04 | Y11: 2019-03-25 | Z11: 2018-11-27 | AA11: 2019-01-29 | AB11: 2019-01-29 | AC11: 3 | AD11: 1 | AE11: 2019-03-25 | AF11: 2019-03-12 | AG11: 3 | AH11: -12 | AJ11: 70 | AL11: 70 | AN11: 林彩凤
A12: 业务完结 | C12: √ | F12: 福州建发实业有限公司 | G12: QYIC18120008F01 | H12: OOLU2613699700 | I12: / | J12: 乌冲码头 | K12: 鱼粉 | L12: 17 | M12: 20GP*17 | N12: 301.855 | O12: 66204.24 | P12: 57502.79 | Q12: 8701.45 | R12: 57502.79 | S12: 8701.45 | T12: 2018-12-04T16:59:21 | U12: 2018-12-13T11:23:04 | V12: 1 | W12: 8.8 | X12: 2018-12-21 | Y12: 2019-03-28 | Z12: 2018-12-04 | AA12: 2018-12-28 | AB12: 2018-12-29 | AC12: 3 | AD12: 2 | AE12: 2019-03-28 | AG12: 3 | AJ12: 70 | AL12: 70 | AN12: 周翠
A13: 业务完结 | C13: √ | F13: 新谷（上海）贸易有限公司 | G13: QYIC18120012F01 | H13: HLCUMTR181120392 | I13: / | J13: 乌冲码头 | K13: 菜籽粕 | L13: 54 | M13: 20GP*54 | N13: 1295.665 | O13: 87272.88 | P13: 83764.88 | Q13: 3508 | R13: 87272.88 | S13: 0 | T13: 2018-12-05T14:58:24 | U13: 2018-12-29T21:56:34 | V13: 1 | W13: 24.3 | X13: 2019-01-06 | Y13: 2019-03-27 | Z13: 2018-12-05 | AA13: 2019-02-02 | AB13: 2019-02-11 | AC13: 3 | AD13: 10 | AE13: 2019-03-27 | AG13: 3 | AJ13: 70 | AL13: 70 | AN13: 周翠
A14: 业务完结 | B14: √ | C14: √ | F14: 厦门国贸集团股份有限公司 | G14: QYIC18120018F01 | H14: OEA0147816 | I14: / | J14: 乌冲码头 | K14: 葵花籽粕 | L14: 8 | M14: 40HQ*8 | N14: 228.45 | O14: 55783.39 | P14: 26687.45 | Q14: 29095.94 | R14: 26687.45 | S14: 29095.94 | T14: 2018-12-24T18:26:00 | U14: 2018-12-25T15:08:41 | V14: 1 | W14: 0.9 | X14: 2019-01-04 | Y14: 2019-03-25 | Z14: 2018-12-06 | AA14: 2019-01-25 | AB14: 2019-01-24 | AC14: 3 | AD14: 0 | AE14: 2019-03-25 | AF14: 2019-03-12 | AG14: 3 | AH14: -12 | AJ14: 70 | AL14: 70 | AN14: 林彩凤
A15: 业务完结 | C15: √ | F15: 广东新供销天成供应链有限公司 | G15: QYIC18120056F01 | H15: COSU8016660490 | I15: / | J15: 乌冲码头 | K15: 豌豆 | L15: 80 | M15: 20GP*80 | N15: 2191.3 | O15: 297344.55 | P15: 266878.61 | Q15: 30465.94 | R15: 266878.61 | S15: 30465.94 | T15: 2018-12-13T10:22:35 | U15: 2018-12-13T14:58:06 | V15: 1 | W15: 0.2 | X15: 2018-12-22 | Y15: 2019-03-25 | Z15: 2018-12-13 | AA15: 2019-02-28 | AB15: 2019-01-22 | AC15: 3 | AD15: -36 | AE15: 2019-03-25 | AG15: 3 | AJ15: 70 | AL15: 70 | AN15: 吴燕钗
A16: 业务完结 | C16: √ | F16: 广东新供销天成供应链有限公司 | G16: QYIC18120075F01 | H16: SUDU28004AE26XCA | I16: / | J16: 乌冲码头 | K16: 豌豆 | L16: 30 | M16: 20GP*30 | N16: 825 | O16: 111480.9 | P16: 81921.1 | Q16: 29559.8 | R16: 81921.1 | S16: 29559.8 | T16: 2018-12-17T18:31:13 | U16: 2018-12-18T09:10:02 | V16: 1 | W16: 0.6 | X16: 2019-01-01 | Y16: 2019-03-25 | Z16: 2018-12-17 | AA16: 2019-02-02 | AB16: 2019-01-22 | AC16: 3 | AD16: -10 | AE16: 2019-03-25 | AG16: 3 | AJ16: 70 | AL16: 70 | AN16: 吴燕钗
A17: 业务完结 | C17: √ | F17: 广东新供销天成供应链有限公司 | G17: QYIC18120076F01 | H17: SUDU28004AE43X7U | I17: / | J17: 乌冲码头 | K17: 豌豆 | L17: 25 | M17: 20GP*25 | N17: 687.5 | O17: 107902.08 | P17: 81843.74 | Q17: 26058.34 | R17: 81843.74 | S17: 26058.34 | T17: 2018-12-17T18:40:06 | U17: 2018-12-18T08:57:26 | V17: 1 | W17: 0.6 | X17: 2018-12-31 | Y17: 2019-03-25 | Z17: 2018-12-17 | AA17: 2019-02-28 | AB17: 2019-01-22 | AC17: 3 | AD17: -36 | AE17: 2019-03-25 | AG17: 3 | AJ17: 70 | AL17: 70 | AN17: 吴燕钗
A18: 业务完结 | B18: √ | C18: √ | F18: 新谷（上海）贸易有限公司 | G18: QYIC18120088F01 | H18: OEA0147571 | I18: / | J18: 乌冲码头 | K18: 葵花籽粕（颗粒） | L18: 36 | M18: 40HQ*36 | N18: 1031.66 | O18: 183605.58 | P18: 0 | Q18: 183605.58 | R18: 169194.76 | S18: 14410.82 | T18: 2018-12-19T10:41:31 | U18: 2019-01-07T10:28:18 | V18: 1 | W18: 19 | X18: 2019-01-16 | Y18: 2019-03-25 | Z18: 2018-12-19 | AA18: 2019-02-13 | AB18: 2019-02-14 | AC18: 3 | AD18: 2 | AE18: 2019-03-25 | AF18: 2019-03-14 | AG18: 3 | AH18: -10 | AJ18: 70 | AL18: 70 | AN18: 周翠
A19: 业务完结 | C19: √ | F19: 天津建源供应链管理有限公司 | G19: QYIC18120123F01 | H19: MEDUMT168959 | I19: / | J19: 东江仓码头 | K19: 大豆 | L19: 99 | M19: 20HQ*99 | N19: 2448.39 | O19: 163011.94 | P19: 0 | Q19: 163011.94 | R19: 0 | S19: 163011.94 | T19: 2018-12-28T11:51:54 | U19: 2018-12-28T14:31:29 | V19: 1 | W19: 0.1 | X19: 2019-01-03 | Y19: 2019-03-25 | Z19: 2018-12-26 | AA19: 2019-01-25 | AB19: 2019-01-28 | AC19: 3 | AD19: 4 | AE19: 2019-03-25 | AG19: 3 | AJ19: 70 | AL19: 70 | AN19: 周翠
A20: 业务完结 | C20: √ | F20: 新谷（上海）贸易有限公司 | G20: QYIC19010009F01 | H20: COSU8006099860 | I20: / | J20: 乌冲码头 | K20: 菜籽粕 | L20: 73 | M20: 20GP*73 | N20: 1747.23 | O20: 88635.56 | P20: 87619.56 | Q20: 1016 | R20: 87875.56 | S20: 760 | T20: 2019-01-03T18:12:18 | U20: 2019-01-07T08:53:50 | V20: 1 | W20: 3.6 | X20: 2019-01-16 | Y20: 2019-03-27 | Z20: 2019-01-02 | AA20: 2019-02-18 | AB20: 2019-02-20 | AC20: 3 | AD20: 3 | AE20: 2019-03-27 | AG20: 3 | AJ20: 70 | AL20: 70 | AN20: 周翠
A21: 业务完结 | D21: √ | E21: √ | F21: 安徽安粮国际发展有限公司 | G21: QYIC19010069F01 | H21: LCHCB19000178 | I21: / | J21: 黄埔老港码头 | K21: 泰国茉莉香米 | L21: 2 | M21: 20GP*2 | N21: 35.19 | O21: 2484 | P21: 6844.91 | Q21: -4360.91 | R21: 2484 | S21: 0 | T21: 2019-01-09T14:57:45 | U21: 2019-01-11T18:09:09 | V21: 1 | W21: 2.1 | X21: 2019-01-18 | Y21: 2019-03-25 | Z21: 2019-01-09 | AA21: 2019-02-26 | AC21: 3 | AE21: 2019-03-25 | AG21: 3 | AI21: 2019-03-18 | AJ21: 70 | AL21: 70 | AN21: 吴燕钗
A22: 业务完结 | D22: √ | E22: √ | F22: 安徽安粮国际发展有限公司 | G22: QYIC19010069F01 | H22: LCHCB19000178 | I22: / | J22: 黄埔老港码头 | K22: 泰国茉莉香米 | L22: 2 | M22: 20GP*2 | N22: 35.19 | O22: 4360.91 | P22: 6844.91 | Q22: -2484 | R22: 4360.91 | S22: 0 | T22: 2019-01-09T14:57:45 | U22: 2019-01-11T18:09:09 | V22: 1 | W22: 2.1 | X22: 2019-01-18 | Y22: 2019-03-25 | Z22: 2019-01-09 | AA22: 2019-02-26 | AC22: 3 | AE22: 2019-03-25 | AG22: 3 | AI22: 2019-03-18 | AJ22: 70 | AL22: 70 | AN22: 吴燕钗
A23: 业务完结 | F23: 厦门纳新贸易有限公司 | G23: XMIC19010042F01 | H23: PCSLHPXMC1800114 | I23: PEGASUS ZETTA/0070W | J23: 海天码头 | K23: 棉纱 | L23: 2 | M23: 40HQ*2 | N23: 45.356 | O23: 9193.84 | P23: 0 | Q23: 9193.84 | R23: 0 | S23: 9193.84 | T23: 2019-01-10T10:20:08 | U23: 2019-01-10T10:29:18 | V23: 1 | W23: 0 | X23: 2019-01-01 | Y23: 2019-03-28 | Z23: 2019-01-10 | AA23: 2019-01-21 | AC23: 3 | AE23: 2019-03-28 | AG23: 3 | AJ23: 70 | AL23: 70 | AN23: 黄倩琳
A24: 业务完结 | F24: 国投俊杰农产品（北京）有限公司 | G24: QYIC19010081F01 | H24: COSU8020548480 | I24: / | J24: 乌冲码头 | K24: 乳清粉 | L24: 8 | M24: 40GP*8 | N24: 203 | O24: 25788.18 | P24: 23232.6 | Q24: 2555.58 | R24: 0 | S24: 25788.18 | T24: 2019-01-16T14:45:47 | U24: 2019-01-16T14:49:15 | V24: 1 | W24: 0 | X24: 2019-01-31 | Y24: 2019-03-25 | Z24: 2019-01-14 | AA24: 2019-02-21 | AC24: 3 | AE24: 2019-03-25 | AG24: 3 | AJ24: 70 | AL24: 70 | AN24: 吴燕钗
A25: 业务完结 | B25: √ | C25: √ | F25: 湖南宇腾有色金属股份有限公司 | G25: QYIC19010098F01 | H25: 579962670 | I25: / | J25: 东江仓码头 | K25: 银精矿 | L25: 35 | M25: 20GP*35 | N25: 937.845 | O25: 121180.82 | P25: 0 | Q25: 121180.82 | R25: 0 | S25: 121180.82 | T25: 2019-01-18T11:56:51 | U25: 2019-01-18T17:52:20 | V25: 1 | W25: 0.2 | X25: 2019-02-01 | Y25: 2019-03-25 | Z25: 2019-01-17 | AA25: 2019-03-01 | AB25: 2019-02-02 | AC25: 3 | AD25: -26 | AE25: 2019-03-25 | AF25: 2019-03-06 | AG25: 3 | AH25: -18 | AJ25: 70 | AL25: 70 | AN25: 林彩凤
A26: 业务完结 | F26: 厦门恒圳贸易有限公司 | G26: XMIC19010098F01 | H26: MEDUCO322191 | I26: MURCIA MAERSK/851EI | J26: 嵩屿码头 | K26: 板材 | L26: 7 | M26: 40HQ*7 | N26: 162.275 | O26: 25243.6 | P26: 25243.6 | Q26: 0 | R26: 25243.6 | S26: 0 | T26: 2019-01-25T10:55:45 | U26: 2019-01-25T10:56:11 | V26: 1 | W26: 0 | X26: 2019-01-28 | Y26: 2019-03-28 | Z26: 2019-01-23 | AA26: 2019-02-01 | AC26: 3 | AE26: 2019-03-28 | AG26: 3 | AJ26: 70 | AL26: 70 | AN26: 黄倩琳
A27: 业务完结 | F27: 广东新供销天成供应链有限公司 | G27: QYD19010096TH01 | H27: * | I27: / | K27: 豌豆 | M27: *1 | N27: 30 | O27: 2788.54 | P27: 0 | Q27: 2788.54 | R27: 0 | S27: 2788.54 | T27: 2019-01-28T16:52:51 | U27: 2019-02-14T15:31:27 | V27: 1 | W27: 16.9 | Y27: 2019-03-25 | Z27: 2019-01-28 | AC27: 3 | AE27: 2019-03-25 | AG27: 3 | AJ27: 70 | AL27: 70 | AN27: 吴燕钗
A28: 业务完结 | B28: √ | F28: 厦门建发物产有限公司 | G28: QYIC19010146F01 | H28: OEA0149148 | I28: / | J28: 南沙二期码头 | K28: 葵花籽粕 | L28: 9 | M28: 40HQ*9 | N28: 254.99 | O28: 26870.81 | P28: 0 | Q28: 26870.81 | R28: 0 | S28: 26870.81 | T28: 2019-02-11T14:05:49 | U28: 2019-02-11T17:25:46 | V28: 1 | W28: 0.1 | X28: 2019-03-09 | Y28: 2019-03-23 | Z28: 2019-01-31 | AA28: 2019-03-23 | AC28: 3 | AE28: 2019-03-23 | AF28: 2019-03-27 | AG28: 3 | AH28: 5 | AJ28: 70 | AL28: 70 | AN28: 周翠
A29: 业务完结 | C29: √ | F29: 厦门建发农产品有限公司 | G29: QYIC19010149F01 | H29: MEDUOD021665 | I29: / | J29: 南沙二期码头 | K29: 葵花籽粕 | L29: 35 | M29: 40GP*35 | N29: 983.15 | O29: 80016.75 | P29: 0 | Q29: 80016.75 | R29: 0 | S29: 80016.75 | T29: 2019-01-31T10:06:20 | U29: 2019-01-31T10:15:30 | V29: 1 | W29: 0 | X29: 2019-01-31 | Y29: 2019-03-25 | Z29: 2019-01-31 | AA29: 2019-02-18 | AB29: 2019-02-20 | AC29: 3 | AD29: 3 | AE29: 2019-03-25 | AG29: 3 | AJ29: 70 | AL29: 70 | AN29: 周翠
A30: 业务完结 | F30: 厦门建发物产有限公司 | G30: HKIC19010004F01 | H30: HLCUOD1181202655 | I30: / | J30: 海口港集装箱码头 | K30: 葵花籽粕（颗粒） | L30: 17 | M30: 40HQ*17 | N30: 481.07 | O30: 78811.1 | P30: 0 | Q30: 78811.1 | R30: 0 | S30: 78811.1 | T30: 2019-02-11T14:05:32 | U30: 2019-02-11T17:14:36 | V30: 1 | W30: 0.1 | X30: 2019-03-02 | Y30: 2019-03-25 | Z30: 2019-01-31 | AA30: 2019-03-19 | AC30: 3 | AE30: 2019-03-25 | AG30: 3 | AJ30: 70 | AL30: 70 | AN30: 周翠
A31: 业务完结 | F31: 厦门恒圳贸易有限公司 | G31: XMIC19020002F01 | H31: GTG0246768 | I31: CMA CGM GEORG FORSTER /0FL28E1MAI | J31: 远海码头 | K31: 板材 | L31: 6 | M31: 40HQ*6 | N31: 142.72 | O31: 17196.48 | P31: 16890.48 | Q31: 306 | R31: 16890.48 | S31: 306 | T31: 2019-02-11T08:36:40 | U31: 2019-02-11T08:37:49 | V31: 1 | W31: 0 | X31: 2019-02-06 | Y31: 2019-03-28 | Z31: 2019-02-02 | AA31: 2019-03-28 | AC31: 3 | AE31: 2019-03-28 | AG31: 3 | AJ31: 70 | AL31: 70 | AN31: 黄倩琳
A32: 业务完结 | B32: √ | C32: √ | F32: 广东源信饲料实业有限公司 | G32: QYIC19020012F01 | H32: ZIMUOSS804540 | I32: / | J32: 乌冲码头 | K32: 葵花籽粕（颗粒） | L32: 10 | M32: 40HQ*10 | N32: 285.84 | O32: 39469.24 | P32: 0 | Q32: 39469.24 | R32: 0 | S32: 39469.24 | T32: 2019-02-11T15:07:24 | U32: 2019-02-11T16:14:32 | V32: 1 | W32: 0 | X32: 2019-02-28 | Y32: 2019-03-23 | Z32: 2019-02-11 | AA32: 2019-03-23 | AB32: 2019-03-28 | AC32: 3 | AD32: 6 | AE32: 2019-03-23 | AF32: 2019-03-28 | AG32: 3 | AH32: 6 | AJ32: 70 | AL32: 70 | AN32: 林彩凤
A33: 业务完结 | F33: 江苏国泰华博进出口有限公司 | G33: QYIC19020016F01 | H33: HDMUTHGJ1048406 | I33: / | J33: 乌冲码头 | K33: 木薯淀粉 | L33: 20 | M33: 20GP*20 | N33: 381.14 | O33: 47735.48 | P33: 0 | Q33: 47735.48 | R33: 0 | S33: 47735.48 | T33: 2019-02-13T15:04:27 | U33: 2019-02-13T15:08:46 | V33: 1 | W33: 0 | X33: 2019-02-18 | Y33: 2019-03-26 | Z33: 2019-02-11 | AA33: 2019-03-26 | AC33: 3 | AE33: 2019-03-26 | AG33: 3 | AJ33: 70 | AL33: 70 | AN33: 周翠
A34: 业务完结 | F34: 厦门建发农产品有限公司 | G34: QYIB19020004F01 | J34: 黄埔新港码头 | K34: 棕榈粕 | L34: 0 | N34: 5199.39 | O34: 190339.28 | P34: 0 | Q34: 190339.28 | R34: 180000 | S34: 10339.28 | T34: 2019-02-13T09:34:52 | U34: 2019-02-14T14:18:14 | V34: 1 | W34: 1.2 | X34: 2019-02-20T18:00:00 | Y34: 2019-03-25 | Z34: 2019-02-12T10:59:10 | AC34: 3 | AE34: 2019-03-25 | AG34: 3 | AJ34: 70 | AL34: 70 | AN34: 周翠
A35: 业务完结 | F35: 厦门建发农产品有限公司 | G35: QYIB19020004F01 | J35: 黄埔新港码头 | K35: 棕榈粕 | L35: 0 | N35: 5199.39 | O35: 149143.32 | P35: 0 | Q35: 149143.32 | R35: 97818.74 | S35: 51324.58 | T35: 2019-02-13T09:34:52 | U35: 2019-02-14T14:18:14 | V35: 1 | W35: 1.2 | X35: 2019-02-20T18:00:00 | Y35: 2019-03-25 | Z35: 2019-02-12T10:59:10 | AC35: 3 | AE35: 2019-03-25 | AG35: 3 | AJ35: 70 | AL35: 70 | AN35: 周翠
A36: 业务完结 | B36: √ | C36: √ | F36: 北京嘉粮益谷饲料有限公司 | G36: QYIC19020026F01 | H36: COSU8020589310 | I36: / | J36: 南沙二期码头 | K36: 米糠 | L36: 38 | M36: 40GP*38 | N36: 968.722 | O36: 204735.74 | P36: 160000 | Q36: 44735.74 | R36: 150748.9 | S36: 53986.84 | T36: 2019-02-13T17:43:20 | U36: 2019-02-14T08:54:16 | V36: 1 | W36: 0.6 | X36: 2019-02-27 | Y36: 2019-03-23 | Z36: 2019-02-13 | AA36: 2019-03-23 | AB36: 2019-03-25 | AC36: 3 | AD36: 3 | AE36: 2019-03-23 | AF36: 2019-03-25 | AG36: 3 | AH36: 3 | AJ36: 70 | AL36: 70 | AN36: 罗东明
A37: 业务完结 | C37: √ | F37: 建发物流（上海）有限公司 | G37: GXIB19020001F01 | J37: 钦州港 | K37: 锰矿 | L37: 0 | N37: 5500 | O37: 237252.78 | P37: 237252.78 | Q37: 0 | R37: 237252.78 | S37: 0 | T37: 2019-02-14T18:08:54 | U37: 2019-02-15T17:16:59 | V37: 1 | W37: 1 | X37: 2019-02-08 | Y37: 2019-03-22 | Z37: 2019-02-14T18:04:59 | AB37: 2019-03-28 | AC37: 3 | AE37: 2019-03-22 | AG37: 3 | AJ37: 70 | AL37: 70 | AN37: 罗东明
A38: 业务完结 | F38: 湛江嘉泰贸易有限公司 | G38: QYIC19020049F01 | H38: YGNCB19000682 | I38: / | J38: 乌冲码头 | K38: 鱼粉 | L38: 5 | M38: 20HQ*5 | N38: 100.28 | O38: 8829.6 | P38: 0 | Q38: 8829.6 | R38: 0 | S38: 8829.6 | T38: 2019-02-25T15:48:53 | U38: 2019-02-25T17:42:11 | V38: 1 | W38: 0.1 | X38: 2019-03-17 | Y38: 2019-03-25 | Z38: 2019-02-15 | AA38: 2019-03-25 | AC38: 3 | AE38: 2019-03-25 | AG38: 3 | AJ38: 70 | AL38: 70 | AN38: 吴燕钗
A39: 业务完结 | F39: 厦门建发物产有限公司 | G39: XMIC19020026F01 | H39: OOLU2614456361 | I39: DONG FANG XING/537WH | J39: 海润码头 | K39: 豌豆 | L39: 1 | M39: 20GP*1 | N39: 27.353 | O39: 1301.59 | P39: 0 | Q39: 1301.59 | R39: 0 | S39: 1301.59 | T39: 2019-02-25T15:55:10 | U39: 2019-02-25T15:55:59 | V39: 1 | W39: 0 | X39: 2019-02-27 | Y39: 2019-03-25 | Z39: 2019-02-15 | AA39: 2019-03-25 | AC39: 3 | AE39: 2019-03-25 | AG39: 3 | AJ39: 70 | AL39: 70 | AN39: 黄倩琳
A40: 业务完结 | B40: √ | C40: √ | F40: 双胞胎饲料有限公司 | G40: QYIC19020071F01 | H40: EGLV751900001622 | I40: / | J40: 乌冲码头 | K40: 鱼粉 | L40: 19 | M40: 40HQ*19 | N40: 493.995 | O40: 101240.58 | P40: 363.37 | Q40: 100877.21 | R40: 363.37 | S40: 100877.21 | T40: 2019-02-20T16:27:39 | U40: 2019-02-21T08:43:31 | V40: 1 | W40: 0.7 | X40: 2019-02-26 | Y40: 2019-03-25 | Z40: 2019-02-20 | AA40: 2019-03-06 | AB40: 2019-03-08 | AC40: 3 | AD40: 3 | AE40: 2019-03-25 | AF40: 2019-03-08 | AG40: 3 | AH40: -16 | AJ40: 70 | AL40: 70 | AN40: 罗东明
A41: 业务完结 | F41: 湛江嘉泰贸易有限公司 | G41: QYIC19020073F01 | H41: ERU0101368 | I41: / | J41: 黄埔老港码头 | K41: 鱼粉 | L41: 16 | M41: 40HQ*16 | N41: 422.16 | O41: 37150.08 | P41: 0 | Q41: 37150.08 | R41: 0 | S41: 37150.08 | T41: 2019-02-20T17:11:38 | U41: 2019-02-21T16:34:12 | V41: 1 | W41: 1 | X41: 2019-03-05 | Y41: 2019-03-26 | Z41: 2019-02-20 | AA41: 2019-03-21 | AC41: 3 | AE41: 2019-03-26 | AG41: 3 | AJ41: 70 | AL41: 70 | AN41: 吴燕钗
A42: 业务完结 | F42: 新谷（上海）贸易有限公司 | G42: XMIC19020056F01 | H42: COSU8016673200 | I42: CSCL SATURN/0TX2DE1MAI | J42: 远海码头 | K42: 菜粕 | L42: 93 | M42: 20GP*93 | N42: 1934.96 | O42: 96748 | P42: 0 | Q42: 96748 | R42: 0 | S42: 96748 | T42: 2019-02-27T09:10:07 | U42: 2019-02-27T09:10:32 | V42: 1 | W42: 0 | X42: 2019-02-28 | Y42: 2019-03-25 | Z42: 2019-02-21 | AA42: 2019-03-25 | AC42: 3 | AE42: 2019-03-25 | AG42: 3 | AJ42: 70 | AL42: 70 | AN42: 黄倩琳
A43: 业务完结 | F43: 厦门建发物产有限公司 | G43: XMIC19020064F01 | H43: 320910031735 | I43: NORDLILY/1902NI | J43: 海天码头 | K43: 鱼粉 | L43: 10 | M43: 20GP*10 | N43: 200.48 | O43: 18669.2 | P43: 0 | Q43: 18669.2 | R43: 0 | S43: 18669.2 | T43: 2019-02-22T11:11:12 | U43: 2019-02-22T11:13:49 | V43: 1 | W43: 0 | X43: 2019-02-24 | Y43: 2019-03-28 | Z43: 2019-02-22 | AA43: 2019-03-28 | AC43: 3 | AE43: 2019-03-28 | AG43: 3 | AJ43: 70 | AL43: 70 | AN43: 黄倩琳
A44: 业务完结 | F44: 厦门建发物产有限公司 | G44: XMIC19020069F01 | H44: ZIMUVAN0075983 | I44: OCTAVIA/28EI | J44: 海润码头 | K44: 菜粕 | L44: 70 | M44: 20GP*70 | N44: 1445.84 | O44: 48510 | P44: 48510 | Q44: 0 | R44: 0 | S44: 48510 | T44: 2019-02-25T15:00:49 | U44: 2019-02-25T15:01:18 | V44: 1 | W44: 0 | X44: 2019-02-26 | Y44: 2019-03-26 | Z44: 2019-02-22 | AA44: 2019-03-26 | AC44: 3 | AE44: 2019-03-26 | AG44: 3 | AJ44: 70 | AL44: 70 | AN44: 黄倩琳
A45: 业务完结 | F45: 厦门建发物产有限公司 | G45: XMIC19020069F01 | H45: ZIMUVAN0075983 | I45: OCTAVIA/28EI | J45: 海润码头 | K45: 菜粕 | L45: 70 | M45: 20GP*70 | N45: 1445.84 | O45: 92681.2 | P45: 48510 | Q45: 44171.2 | R45: 0 | S45: 92681.2 | T45: 2019-02-25T15:00:49 | U45: 2019-02-25T15:01:18 | V45: 1 | W45: 0 | X45: 2019-02-26 | Y45: 2019-03-26 | Z45: 2019-02-22 | AA45: 2019-03-26 | AC45: 3 | AE45: 2019-03-26 | AG45: 3 | AJ45: 70 | AL45: 70 | AN45: 黄倩琳
A46: 业务完结 | F46: 江苏杰龙农产品加工有限公司 | G46: QYIC19020095F01 | H46: COSU6163899690 | I46: KOTA MEGAH/0116E | J46: 南沙二期码头 | K46: 棉籽粕 | L46: 19 | M46: 40HQ*19 | N46: 496.14 | O46: 18853.32 | P46: 0 | Q46: 18853.32 | R46: 0 | S46: 18853.32 | T46: 2019-02-27T11:33:25 | U46: 2019-02-27T15:44:25 | V46: 1 | W46: 0.2 | X46: 2019-03-03 | Y46: 2019-03-23 | Z46: 2019-02-27 | AA46: 2019-03-23 | AC46: 3 | AE46: 2019-03-23 | AG46: 3 | AJ46: 70 | AL46: 70 | AN46: 吴燕钗
A47: 业务完结 | F47: 江苏杰龙农产品加工有限公司 | G47: QYIC19020095F01 | H47: COSU6163899690 | I47: KOTA MEGAH/0116E | J47: 南沙二期码头 | K47: 棉籽粕 | L47: 19 | M47: 40HQ*19 | N47: 496.14 | O47: 26199.08 | P47: 0 | Q47: 26199.08 | R47: 0 | S47: 26199.08 | T47: 2019-02-27T11:33:25 | U47: 2019-02-27T15:44:25 | V47: 1 | W47: 0.2 | X47: 2019-03-03 | Y47: 2019-03-23 | Z47: 2019-02-27 | AA47: 2019-03-23 | AC47: 3 | AE47: 2019-03-23 | AG47: 3 | AJ47: 70 | AL47: 70 | AN47: 吴燕钗
A48: 业务完结 | D48: √ | E48: √ | F48: 广州市富人米贸易有限公司 | G48: QYIC19020104F01 | H48: 550910010021 | I48: KMTC DUBAI/1901E | J48: 乌冲码头 | K48: 巴基斯坦大米 | L48: 20 | M48: 20GP*20 | N48: 501.2 | O48: 10000 | P48: 10000 | Q48: 0 | R48: 10000 | S48: 0 | T48: 2019-02-28T17:22:37 | U48: 2019-03-01T08:57:36 | V48: 1 | W48: 0.6 | X48: 2019-03-06 | Y48: 2019-03-25 | Z48: 2019-02-28 | AA48: 2019-03-25 | AC48: 3 | AE48: 2019-03-25 | AG48: 3 | AI48: 2019-03-27 | AJ48: 70 | AL48: 70 | AN48: 吴燕钗
A49: 业务完结 | F49: 广州市富人米贸易有限公司 | G49: QYIC19020105F01 | H49: 550910010144 | I49: / | J49: 乌冲码头 | K49: 巴基斯坦大米 | L49: 40 | M49: 20HQ*40 | N49: 1002.4 | O49: 20000 | P49: 0 | Q49: 20000 | R49: 20000 | S49: 0 | T49: 2019-02-28T17:33:02 | U49: 2019-03-01T08:52:12 | V49: 1 | W49: 0.6 | X49: 2019-03-09 | Y49: 2019-03-23 | Z49: 2019-02-28 | AA49: 2019-03-23 | AC49: 3 | AE49: 2019-03-23 | AG49: 3 | AJ49: 70 | AL49: 70 | AN49: 吴燕钗
A50: 业务完结 | F50: 厦门恒圳贸易有限公司 | G50: XMIC19030001F01 | H50: 579731457 | I50: MAERSK CABINDA/1902I | J50: 海润码头 | K50: 板材 | L50: 3 | M50: 40HQ*3 | N50: 70.885 | O50: 4001 | P50: 0 | Q50: 4001 | R50: 0 | S50: 4001 | T50: 2019-03-01T17:44:39 | U50: 2019-03-01T17:44:48 | V50: 1 | W50: 0 | X50: 2019-03-03 | Y50: 2019-03-28 | Z50: 2019-03-01 | AA50: 2019-03-28 | AC50: 3 | AE50: 2019-03-28 | AG50: 3 | AJ50: 70 | AL50: 70 | AN50: 黄倩琳
A51: 业务完结 | F51: 厦门恒圳贸易有限公司 | G51: XMIC19030002F01 | H51: 580229625 | I51: MAERSK CABINDA/1902I | J51: 海润码头 | K51: 板材 | L51: 5 | M51: 40HQ*5 | N51: 116.816 | O51: 6601 | P51: 0 | Q51: 6601 | R51: 0 | S51: 6601 | T51: 2019-03-01T17:47:22 | U51: 2019-03-01T17:47:35 | V51: 1 | W51: 0 | X51: 2019-03-03 | Y51: 2019-03-27 | Z51: 2019-03-01 | AA51: 2019-03-27 | AC51: 3 | AE51: 2019-03-27 | AG51: 3 | AJ51: 70 | AL51: 70 | AN51: 黄倩琳
A52: 业务完结 | F52: 厦门恒圳贸易有限公司 | G52: XMIC19030003F01 | H52: 580155786 | I52: MAERSK CABINDA/1902I | J52: 海润码头 | K52: 板材 | L52: 8 | M52: 40HQ*8 | N52: 190.409 | O52: 10501 | P52: 0 | Q52: 10501 | R52: 0 | S52: 10501 | T52: 2019-03-01T17:49:23 | U52: 2019-03-01T17:49:30 | V52: 1 | W52: 0 | X52: 2019-03-03 | Y52: 2019-03-27 | Z52: 2019-03-01 | AA52: 2019-03-27 | AC52: 3 | AE52: 2019-03-27 | AG52: 3 | AJ52: 70 | AL52: 70 | AN52: 黄倩琳
A53: 业务完结 | F53: 厦门恒圳贸易有限公司 | G53: XMIC19030005F01 | H53: 580229643 | I53: MAERSK CABINDA/1902I | J53: 海润码头 | K53: 板材 | L53: 15 | M53: 40HQ*15 | N53: 349.056 | O53: 19803 | P53: 0 | Q53: 19803 | R53: 0 | S53: 19803 | T53: 2019-03-01T17:50:56 | U53: 2019-03-01T17:51:03 | V53: 1 | W53: 0 | X53: 2019-03-03 | Y53: 2019-03-28 | Z53: 2019-03-01 | AA53: 2019-03-28 | AC53: 3 | AE53: 2019-03-28 | AG53: 3 | AJ53: 70 | AL53: 70 | AN53: 黄倩琳
A54: 业务完结 | F54: 广州棕宝国际贸易有限公司 | G54: XMIC19030007F01 | H54: 1449X00619 | I54: WAN HAI 103/S233 | K54: 天然椰丝（椰壳纤维） | L54: 6 | M54: 40HQ*6 | N54: 115.14 | O54: 37310.94 | P54: 27146.87 | Q54: 10164.07 | R54: 0 | S54: 37310.94 | T54: 2019-03-01T17:53:02 | U54: 2019-03-01T17:53:11 | V54: 1 | W54: 0 | X54: 2019-03-03 | Y54: 2019-03-28 | Z54: 2019-03-01 | AA54: 2019-03-28 | AC54: 3 | AE54: 2019-03-28 | AG54: 3 | AJ54: 70 | AL54: 70 | AN54: 黄倩琳
A55: 业务完结 | F55: 广州棕宝国际贸易有限公司 | G55: XMIC19030007F01 | H55: 1449X00619 | I55: WAN HAI 103/S233 | K55: 天然椰丝（椰壳纤维） | L55: 6 | M55: 40HQ*6 | N55: 115.14 | O55: 27146.87 | P55: 27146.87 | Q55: 0 | R55: 27146.87 | S55: 0 | T55: 2019-03-01T17:53:02 | U55: 2019-03-01T17:53:11 | V55: 1 | W55: 0 | X55: 2019-03-03 | Y55: 2019-03-28 | Z55: 2019-03-01 | AA55: 2019-03-28 | AC55: 3 | AE55: 2019-03-28 | AG55: 3 | AJ55: 70 | AL55: 70 | AN55: 黄倩琳
A56: 业务完结 | F56: 湖南湘利来化工有限公司 | G56: QYIC19030001F01 | H56: BKKCB1900130901 | I56: / | J56: 乌冲码头 | K56: 木薯淀粉 | L56: 10 | M56: 20GP*10 | N56: 190.76 | O56: 15833.08 | P56: 0 | Q56: 15833.08 | R56: 0 | S56: 15833.08 | T56: 2019-03-04T11:18:11 | U56: 2019-03-04T11:25:44 | V56: 1 | W56: 0 | X56: 2019-03-03 | Y56: 2019-03-23 | Z56: 2019-03-01 | AA56: 2019-03-23 | AC56: 3 | AE56: 2019-03-23 | AG56: 3 | AJ56: 70 | AL56: 70 | AN56: 周翠
A57: 业务完结 | B57: √ | C57: √ | F57: 东莞嘉吉粮油有限公司 | G57: QYIC19030002F01 | H57: PKG900069100 | I57: / | J57: 集司码头 | K57: 代可可脂 | L57: 4 | M57: 20GP*4 | N57: 82.8 | O57: 9349.18 | P57: 0 | Q57: 9349.18 | R57: 0 | S57: 9349.18 | T57: 2019-03-11T09:09:10 | U57: 2019-03-11T09:23:21 | V57: 1 | W57: 0 | X57: 2019-03-10 | Y57: 2019-03-25 | Z57: 2019-03-01 | AA57: 2019-03-25 | AB57: 2019-03-20 | AC57: 3 | AD57: -4 | AE57: 2019-03-25 | AF57: 2019-03-25 | AG57: 3 | AH57: 1 | AJ57: 70 | AL57: 70 | AN57: 龙衍婷
A58: 业务完结 | F58: 湖南湘利来化工有限公司 | G58: QYIC19030015F01 | H58: HDMUTHWB1064052 | I58: / | J58: 乌冲码头 | K58: 木薯淀粉 | L58: 30 | M58: 20GP*30 | N58: 511.8 | O58: 43262.59 | P58: 0 | Q58: 43262.59 | R58: 0 | S58: 43262.59 | T58: 2019-03-04T17:52:51 | U58: 2019-03-05T19:24:11 | V58: 1 | W58: 1.1 | X58: 2019-03-09 | Y58: 2019-03-25 | Z58: 2019-03-04 | AA58: 2019-03-25 | AC58: 3 | AE58: 2019-03-25 | AG58: 3 | AJ58: 70 | AL58: 70 | AN58: 周翠
A59: 业务完结 | F59: 厦门恒圳贸易有限公司 | G59: XMIC19030055F01 | H59: 580207729 | I59: MSC REEF/FH905E | J59: 嵩屿码头 | K59: 板材 | L59: 5 | M59: 40HQ*5 | N59: 119.667 | O59: 6500 | P59: 0 | Q59: 6500 | R59: 0 | S59: 6500 | T59: 2019-03-08T14:32:31 | U59: 2019-03-08T14:32:46 | V59: 1 | W59: 0 | X59: 2019-03-11 | Y59: 2019-03-28 | Z59: 2019-03-08 | AA59: 2019-03-28 | AC59: 3 | AE59: 2019-03-28 | AG59: 3 | AJ59: 70 | AL59: 70 | AN59: 黄倩琳
A60: 业务完结 | F60: 厦门纳新贸易有限公司 | G60: XMIC19030061F01 | H60: GOSUNDL6034189 | I60: OOCL ATLANTA/104E | J60: 海天码头 | K60: 棉纱 | L60: 2 | M60: 40HQ*2 | N60: 41.932 | O60: 5244 | P60: 0 | Q60: 5244 | R60: 0 | S60: 5244 | T60: 2019-03-13T09:16:57 | U60: 2019-03-13T09:17:40 | V60: 1 | W60: 0 | X60: 2019-03-14 | Y60: 2019-03-28 | Z60: 2019-03-12 | AA60: 2019-03-28 | AC60: 3 | AE60: 2019-03-28 | AG60: 3 | AJ60: 70 | AL60: 70 | AN60: 黄倩琳
A61: 业务完结 | F61: 厦门海峡投资有限公司 | G61: XMIC19030084F01 | H61: GOSURQL6081084 | I61: SEAMAX STRATFORD/004E | J61: 海天码头 | K61: 棉纱 | L61: 1 | M61: 40HQ*1 | N61: 20.726 | O61: 2922 | P61: 0 | Q61: 2922 | R61: 0 | S61: 2922 | T61: 2019-03-18T10:56:08 | U61: 2019-03-18T10:57:32 | V61: 1 | W61: 0 | X61: 2019-03-17 | Y61: 2019-03-27 | Z61: 2019-03-18 | AA61: 2019-03-27 | AC61: 3 | AE61: 2019-03-27 | AG61: 3 | AJ61: 70 | AL61: 70 | AN61: 黄倩琳
A62: 业务完结 | F62: 厦门纳新贸易有限公司 | G62: XMIC19030098F01 | H62: 454910003215 | I62: KMTC JAKARTA/1903NI | J62: 海天码头 | K62: 棉纱 | L62: 2 | M62: 40HQ*2 | N62: 45.496 | O62: 5773 | P62: 0 | Q62: 5773 | R62: 0 | S62: 5773 | T62: 2019-03-20T09:28:35 | U62: 2019-03-20T09:29:53 | V62: 1 | W62: 0 | X62: 2019-03-14 | Y62: 2019-03-28 | Z62: 2019-03-20 | AA62: 2019-03-28 | AC62: 3 | AE62: 2019-03-28 | AG62: 3 | AJ62: 70 | AL62: 70 | AN62: 黄倩琳
A63: 业务完结 | F63: 上海佳农香蕉实业有限公司 | G63: XMIC19030101F01 | H63: KMTCLCH2439572 | I63: TOKYO TOWER/19004NI | J63: 海天码头 | K63: 鲜椰子 | L63: 1 | M63: 40GP*1 | N63: 21.451 | O63: 13250.3 | P63: 10881.3 | Q63: 2369 | R63: 0 | S63: 13250.3 | T63: 2019-03-20T15:08:16 | U63: 2019-03-20T16:25:46 | V63: 1 | W63: 0.1 | X63: 2019-03-21 | Y63: 2019-03-22 | Z63: 2019-03-20 | AC63: 3 | AE63: 2019-03-22 | AG63: 3 | AJ63: 70 | AL63: 70
A64: 业务完结 | F64: 上海佳农香蕉实业有限公司 | G64: XMIC19030115F01 | H64: KMTCLCH2441126 | I64: / | J64: 海天码头 | K64: 鲜椰子 | M64: 40RF*1 | N64: 21.42 | O64: 2369 | P64: 0 | Q64: 2369 | R64: 0 | S64: 2369 | T64: 2019-03-25T08:59:51 | U64: 2019-03-25T14:07:16 | V64: 1 | W64: 0.2 | X64: 2019-03-26 | Y64: 2019-03-27 | Z64: 2019-03-25 | AC64: 3 | AE64: 2019-03-27 | AG64: 3 | AJ64: 70 | AL64: 70
A65: 业务完结 | F65: 厦门太松新材料有限公司 | G65: XMIC19030116F01 | H65: EGLV003900654303 | I65: / | J65: 海天码头 | K65: 聚甲醛POM | M65: 20GP*1 | N65: 20.24 | O65: 1787 | P65: 0 | Q65: 1787 | R65: 0 | S65: 1787 | T65: 2019-03-25T10:02:03 | U65: 2019-03-25T14:08:47 | V65: 1 | W65: 0.2 | X65: 2019-03-23 | Y65: 2019-03-27 | Z65: 2019-03-25 | AC65: 3 | AE65: 2019-03-27 | AG65: 3 | AJ65: 70 | AL65: 70

Sheet 平仓损益表
G1: 应收

Sheet 本模板规则
A1: 分类 | B1: 报表统计范围 | C1: 频度 | D1: 推送方式 | E1: 推送角色
A2: 消息通知 | B2: 股份合并、事业部、单体 | C2: 每次 | D2: 微信 | E2: 财务总监
A3: 待办事项 | B3: 股份合并 | C3: 每小时 | D3: 短信 | E3: 股份财务经理
A4: 预警提醒 | B4: 事业部 | C4: 每天 | D4: 系统在线 | E4: 股份出纳
A5: 每日业务一览 | B5: 单体 | C5: 每周 | E5: 股份公司副总经理
A6: 我的报表 | C6: 每月 | E6: 股份公司总经理
A7: 知识窗口 | C7: 每季度 | E7: 股份会计
C8: 每年 | E8: 股份资金经理
E9: 广州侨益办单专员
E10: 广州侨益报价员
E11: 广州侨益操作经理
E12: 广州侨益发卡专员
E13: 广州侨益副总经理
E14: 广州侨益黄埔通关内勤
E15: 广州侨益客服经理
E16: 广州侨益客服主管
E17: 广州侨益控货复核
E18: 广州侨益控货专员
E19: 广州侨益联运经理
E20: 广州侨益联运专员
E21: 广州侨益南沙通关内勤
E22: 广州侨益人力行政经理
E23: 广州侨益人力行政专员
E24: 广州侨益商务经理
E25: 广州侨益商务主管
E26: 广州侨益商务专员
E27: 广州侨益市场经理
E28: 广州侨益市场专员
E29: 广州侨益通关经理
E30: 广州侨益总经理
E31: 广州侨益总经理助理
E32: 广州悦达人力行政专员
E33: 广州悦达业务经理
E34: 广州悦达业务员
E35: 广州悦达总经理
E36: 黄埔报关报检员
E37: 黄埔通关外勤
E38: 黄埔主管
E39: 货代财务经理
E40: 货代出纳
E41: 货代会计
E42: 检验鉴定员
E43: 客服1组
E44: 客服2组
E45: 客服3组
E46: 客服4组
E47: 客服5组
E48: 老港报关供应商
E49: 老港操作外勤
E50: 南沙报关报检员
E51: 南沙操作外勤
E52: 南沙通关外勤
E53: 南沙主管
E54: 内部审计
E55: 市场专员
E56: 市场总监
E57: 市场总监助理
E58: 新港报关供应商
E59: 新港操作外勤
E60: 新沙报关报检员
E61: 新沙通关外勤
E62: 新沙主管
